Workbook

Sheet FACTORES (hidden)
A1: DEDUCIBLE | C1: COASEGURO | E1: TOPES COA | F1: EMERGENCIA EN EL EXTRANJERO | J1: DED CERO POR ACC | K1: COSTO | N1: RPF | O1: FIJO | P1: CAPTURA | Q1: % CALCULO | S1: FACTORES PRIMA DE TARIFA
C2: 0 | D2: 1.14 | F2: SI | G2: 1.05 | N2: SEMESTRAL | O2: 0.0473 | P2: =+COTIZACION!H39 -> 0.0473 | Q2: =IF(P2=0,1+O2,1+P2) -> 1.0473 | S2: 0.265 | T2: 0.265 | W2: ADQUISICIÓN
A3: 6000 | B3: 1 | C3: 0.05 | D3: 1.07 | E3: $30,000 | F3: NO | G3: 1 | N3: TRIMESTRAL | O3: 0.07 | P3: =+COTIZACION!H40 -> 0.0699 | Q3: =IF(P3=0,1+O3,1+P3) -> 1.0699 | S3: 0.15 | T3: 0.1 | W3: AMINISTRACIÓN
A4: 7000 | B4: 0.97 | C4: 0.1 | D4: 1 | E4: $35,000 | N4: MENSUAL | O4: 0.1 | P4: =+COTIZACION!H41 -> 0.0999 | Q4: =IF(P4=0,1+O4,1+P4) -> 1.0999 | S4: 0.15 | T4: 0.08 | W4: UTILIDAD
A5: 8000 | B5: 0.94 | C5: 0.15 | D5: 0.97 | E5: $40,000 | F5: COBERTURA EN EL EXTRANJERO | J5: 5500 | K5: 1132.878862 | S5: =+SUM(S2:S4) -> 0.565 | T5: =+SUM(T2:T4) -> 0.445
A6: 9000 | B6: 0.91 | C6: 0.2 | D6: 0.93 | E6: $50,000 | F6: ZONA A | G6: 3.3 | J6: 6000 | K6: 1201.551349
A7: 10000 | B7: 0.88 | C7: Catálogo | F7: ZONA B | G7: 2.4 | J7: 7000 | K7: 1259.574693 | N7: BASE DE CATALOGO | S7: DEDUCIBLE CONDICIONADO A POLIZA NUEVA O RENOVADA
A8: 15000 | B8: 0.759 | C8: 0 | D8: 1 | F8: ZONA C | G8: 1.9 | J8: 8000 | K8: 1309.844434 | N8: ZONA | O8: MONTO | S8: =+IF(COTIZACION!D$7=COTIZACION!$G$241,"FAVOR DE SELECCIONAR",FACTORES!A5) -> FAVOR DE SELECCIONAR | T8: =+IF(S8<>8000,"",B5) -> 
A9: 20000 | B9: 0.654 | C9: 0.15 | D9: 1.09 | F9: FORMA DE PAGO | J9: 9000 | K9: 1354.258754 | N9: 1 | O9: 0.627 | P9: =+O9*$O$14 -> 38873.99766 | S9: =+IF(COTIZACION!D$7=COTIZACION!$G$241,"FAVOR DE SELECCIONAR",FACTORES!A6) -> FAVOR DE SELECCIONAR | T9: =+IF(S9<>9000,"",B6) -> 
A10: 25000 | B10: 0.567 | C10: 0.25 | D10: 1.11 | F10: A = ANUAL | G10: 0 | J10: 10000 | K10: 1393.911525 | N10: 2 | O10: 0.627 | P10: =+O10*$O$14 -> 38873.99766 | S10: 10000 | T10: 0.88
A11: 30000 | B11: 0.52 | C11: 0.5 | D11: 1.2 | F11: S = SEMESTRAL | G11: 0.0473 | J11: 15000 | K11: 1546.602845 | N11: 3 | O11: 0.737 | P11: =+O11*$O$14 -> 45693.99725 | S11: 15000 | T11: 0.76
A12: 35000 | B12: 0.486 | C12: 0.75 | D12: 1.28 | F12: T = TRIMESTRAL | G12: 0.07 | J12: 20000 | K12: 1654.960275 | N12: 4 | O12: 0.824 | P12: =+O12*$O$14 -> 51087.99693 | S12: 20000 | T12: 0.66
A13: 40000 | B13: 0.457 | C13: 1 | D13: 1.38 | F13: M = MENSUAL | G13: 0.1 | J13: 25000 | K13: 1738.979107 | N13: 5 | O13: 1 | P13: =+O13*$O$14 -> 61999.99627 | S13: 25000 | T13: 0.59
A14: 45000 | B14: 0.432 | F14: RENOVADA | J14: 30000 | K14: 2770.594605 | N14: BASE | O14: 61999.99627 | S14: 30000 | T14: 0.53
A15: 50000 | B15: 0.409 | E15: +utilidad | F15: PARTO Y CESAREA | J15: 35000 | K15: 2859.616282 | S15: 35000 | T15: 0.49
A16: 60000 | B16: 0.369 | F16: 20000 | G16: 3152.110755 | J16: 40000 | K16: 2936.653654 | S16: 40000 | T16: 0.45
A17: 70000 | B17: 0.335 | F17: 30000 | G17: 3574.057038 | J17: 45000 | K17: 3004.650515 | N17: Base tabulador | S17: 45000 | T17: 0.42
A18: 75000 | B18: 0.32 | F18: 40000 | G18: 12803.46667 | J18: 50000 | K18: 3065.42462 | N18: 2019 | O18: 52400 | S18: 50000 | T18: 0.39
A19: 80000 | B19: 0.306 | F19: 50000 | G19: 13364.33333 | N19: 2020 | O19: 55500 | S19: 60000 | T19: 0.345
A20: 90000 | B20: 0.281 | N20: 2020 | O20: =+O19*1.05 -> 58275 | S20: 70000 | T20: 0.3
A21: 100000 | B21: 0.258 | F21: NUEVO | S21: 75000 | T21: 0.29
A22: 300000 | B22: 0 | F22: PARTO Y CESAREA | S22: 80000 | T22: 0.27
A23: 400000 | B23: 0 | E23: 0.1 | F23: 20000 | G23: 3152.110755 | S23: 90000 | T23: 0.235
A24: 500000 | B24: 0 | E24: 0.08 | F24: 30000 | G24: 3574.057038 | S24: 100000 | T24: 0.215
A25: 600000 | B25: 0 | F25: 40000 | G25: 12803.46667 | S25: 300000 | T25: 0
A26: 700000 | B26: 0 | F26: 50000 | G26: 13364.33333 | S26: 400000 | T26: 0
A27: 800000 | B27: 0 | S27: 500000 | T27: 0
A28: 900000 | B28: 0 | S28: 600000 | T28: 0
A29: 1000000 | B29: 0 | F29: ZONA | G29: FACTOR | S29: 700000 | T29: 0
F30: 1 | G30: 0.52 | S30: 800000 | T30: 0
F31: 2 | G31: 0.57 | S31: 900000 | T31: 0
A32: G.M.M. INDIVIDUAL/FAMILIAR | F32: 3 | G32: 0.67 | J32: SUMA ASEGURADA | M32: ENFERMEDADES GRAVES | S32: 1000000 | T32: 0
A33: SUMA ASEGURADA | C33: 1000000 | F33: 4 | G33: 0.8 | J33: 200000 | K33: 0.82 | M33: 10000 | N33: 221.3641946
A34: DEDUCIBLE | C34: 6000 | F34: 5 | G34: 1 | J34: 300000 | K34: 0.86 | M34: 20000 | N34: =ROUND(M34/$M$33*$N$33,2) -> 442.73
A35: COASEGURO | C35: 0.1 | J35: 400000 | K35: 0.9 | M35: 30000 | N35: 664.09
B36: BÁSICAS | F36: ZONA | G36: =+COTIZACION!D14 -> 5 | H36: =+VLOOKUP(G36,I238:J242,2,FALSE) -> B | J36: 500000 | K36: 0.92 | M36: 40000 | N36: 885.46
A37: =+IF(COTIZACION!A7+COTIZACION!A8=2,1,0) -> 0 | B37: 250,000 a | C37: 10000000 | F37: FACTOR | G37: =VLOOKUP(G36,F30:G35,2,FALSE) -> 1 | J37: 600000 | K37: 0.94 | M37: 50000 | N37: 1106.82
A38: E D A D | B38: HOMBRES | C38: MUJERES | D38: HOMBRES | E38: MUJERES | F38: HOMBRES | G38: MUJERES | J38: 700000 | K38: 0.96 | M38: 75000 | N38: 1660.23
A39: 0 | B39: =IF($A$37=$C$130,ROUND(C132*(1-DESC),2),ROUND(E132*(1-DESC),2)) -> 12378.07 | C39: =IF($A$37=$C$130,ROUND(D132*(1-DESC),2),ROUND(F132*(1-DESC),2)) -> 12385.76 | D39: =B39 -> 12378.07 | E39: =C39 -> 12385.76 | F39: =ROUND(D39*$G$37,2) -> 12378.07 | G39: =ROUND(E39*$G$37,2) -> 12385.76 | J39: 800000 | K39: 0.97 | M39: 100000 | N39: 2213.64
A40: 1 | B40: 12378.07 | C40: 12385.76 | D40: =B40 -> 12378.07 | E40: =C40 -> 12385.76 | F40: 12378.07 | G40: 12385.76 | J40: 1000000 | K40: 1 | M40: 150000 | N40: 3320.46
A41: =+A40+1 -> 2 | B41: 12378.07 | C41: 12385.76 | D41: =B41 -> 12378.07 | E41: =C41 -> 12385.76 | F41: 12378.07 | G41: 12385.76 | J41: 2000000 | K41: 1.08 | M41: 200000 | N41: 4427.28
A42: =+A41+1 -> 3 | B42: 12378.07 | C42: 12385.76 | D42: 12378.07 | E42: 12385.76 | F42: 12378.07 | G42: 12385.76 | J42: 3000000 | K42: 1.13 | M42: 250000 | N42: 5534.1
A43: 4 | B43: 12378.07 | C43: 12385.76 | D43: 12378.07 | E43: 12385.76 | F43: 12378.07 | G43: 12385.76 | J43: 4000000 | K43: 1.16 | M43: 300000 | N43: 6640.93
A44: 5 | B44: 12378.07 | C44: 12385.76 | D44: 12378.07 | E44: 12385.76 | F44: 12378.07 | G44: 12385.76 | J44: 5000000 | K44: 1.18 | M44: 350000 | N44: 7747.75
A45: 6 | B45: 12378.07 | C45: 12385.76 | D45: 12378.07 | E45: 12385.76 | F45: 12378.07 | G45: 12385.76 | J45: 6000000 | K45: 1.2 | M45: 400000 | N45: 8854.57
A46: 7 | B46: 12378.07 | C46: 12385.76 | D46: 12378.07 | E46: 12385.76 | F46: 12378.07 | G46: 12385.76 | J46: 7000000 | K46: 1.22 | M46: 450000 | N46: =ROUND(M46/$M$33*$N$33,2) -> 9961.39
A47: 8 | B47: 12378.07 | C47: 12385.76 | D47: 12378.07 | E47: 12385.76 | F47: 12378.07 | G47: 12385.76 | J47: 8000000 | K47: 1.24 | M47: 500000 | N47: =ROUND(M47/$M$33*$N$33,2) -> 11068.21
A48: 9 | B48: 12378.07 | C48: 12385.76 | D48: 12378.07 | E48: 12385.76 | F48: 12378.07 | G48: 12385.76 | J48: 9000000 | K48: 1.25 | M48: 550000 | N48: 12175.03
A49: 10 | B49: 12378.07 | C49: 12385.76 | D49: 12378.07 | E49: 12385.76 | F49: 12378.07 | G49: 12385.76 | J49: 10000000 | K49: 1.26 | M49: 600000 | N49: 13281.85
A50: 11 | B50: 12306.53 | C50: 12194.75 | D50: 12306.53 | E50: 12194.75 | F50: 12306.53 | G50: 12194.75 | J50: 11000000 | K50: 1.27 | M50: 650000 | N50: 14388.67
A51: 12 | B51: 12249.81 | C51: 12361.46 | D51: 12249.81 | E51: 12361.46 | F51: 12249.81 | G51: 12361.46 | J51: 12000000 | K51: 1.28 | M51: 700000 | N51: 15495.49
A52: 13 | B52: 12165.24 | C52: 12280.13 | D52: 12165.24 | E52: 12280.13 | F52: 12165.24 | G52: 12280.13 | J52: 13000000 | K52: 1.29 | M52: 750000 | N52: 16602.31
A53: 14 | B53: 11849.38 | C53: 12030.09 | D53: 11849.38 | E53: 12030.09 | F53: 11849.38 | G53: 12030.09 | J53: 14000000 | K53: 1.3 | M53: 800000 | N53: =ROUND(M53/$M$33*$N$33,2) -> 17709.14
A54: 15 | B54: 11897.64 | C54: 11834.85 | D54: 11897.64 | E54: 11834.85 | F54: 11897.64 | G54: 11834.85 | J54: 15000000 | K54: 1.31 | M54: 850000 | N54: =ROUND(M54/$M$33*$N$33,2) -> 18815.96
A55: 16 | B55: 11675.15 | C55: 11386.03 | D55: 11675.15 | E55: 11386.03 | F55: 11675.15 | G55: 11386.03 | J55: 16000000 | K55: 1.32 | M55: 900000 | N55: =ROUND(M55/$M$33*$N$33,2) -> 19922.78
A56: 17 | B56: 11739.39 | C56: 11566.45 | D56: 11739.39 | E56: 11566.45 | F56: 11739.39 | G56: 11566.45 | J56: 18000000 | K56: 1.33
A57: 18 | B57: 12082.8 | C57: 10928.32 | D57: 12082.8 | E57: 10928.32 | F57: 12082.8 | G57: 10928.32 | J57: 20000000 | K57: 1.34
A58: 19 | B58: 12492.97 | C58: 11090.75 | D58: 12492.97 | E58: 11090.75 | F58: 12492.97 | G58: 11090.75 | J58: 22000000 | K58: 1.35
A59: 20 | B59: 12872.05 | C59: 12869.95 | D59: 12872.05 | E59: 12869.95 | F59: 12872.05 | G59: 12869.95 | J59: 24000000 | K59: 1.36
A60: 21 | B60: 13549.3 | C60: 16688.65 | D60: 13549.3 | E60: 16688.65 | F60: 13549.3 | G60: 16688.65 | J60: 26000000 | K60: 1.37
A61: 22 | B61: 14157.02 | C61: 17495.15 | D61: 14157.02 | E61: 17495.15 | F61: 14157.02 | G61: 17495.15 | J61: 28000000 | K61: 1.38
A62: 23 | B62: 15091.62 | C62: 18332.53 | D62: 15091.62 | E62: 18332.53 | F62: 15091.62 | G62: 18332.53 | J62: 30000000 | K62: 1.39
A63: 24 | B63: 15719.2 | C63: 19205.8 | D63: 15719.2 | E63: 19205.8 | F63: 15719.2 | G63: 19205.8 | J63: 40000000 | K63: 1.42
A64: 25 | B64: 16340.07 | C64: 20106.52 | D64: 16340.07 | E64: 20106.52 | F64: 16340.07 | G64: 20106.52 | J64: 50000000 | K64: 1.45
A65: 26 | B65: 17449.36 | C65: 21069.91 | D65: 17449.36 | E65: 21069.91 | F65: 17449.36 | G65: 21069.91 | J65: 60000000 | K65: 1.46
A66: 27 | B66: 18217.98 | C66: 22043.33 | D66: 18217.98 | E66: 22043.33 | F66: 18217.98 | G66: 22043.33 | J66: 70000000 | K66: 1.48
A67: 28 | B67: 19299.34 | C67: 23090.74 | D67: 19299.34 | E67: 23090.74 | F67: 19299.34 | G67: 23090.74 | J67: 100000000 | K67: 1.53
A68: 29 | B68: 20303.51 | C68: 24156.42 | D68: 20303.51 | E68: 24156.42 | F68: 20303.51 | G68: 24156.42
A69: 30 | B69: 21245.76 | C69: 25302.74 | D69: 21245.76 | E69: 25302.74 | F69: 21245.76 | G69: 25302.74
A70: 31 | B70: 22128.25 | C70: 26485.8 | D70: 22128.25 | E70: 26485.8 | F70: 22128.25 | G70: 26485.8
A71: 32 | B71: =IF($A$37=$C$130,ROUND(C164*(1-DESC),2),ROUND(E164*(1-DESC),2)) -> 23485.96 | C71: =IF($A$37=$C$130,ROUND(D164*(1-DESC),2),ROUND(F164*(1-DESC),2)) -> 27705.85 | D71: 23485.96 | E71: 27705.85 | F71: =ROUND(D71*$G$37,2) -> 23485.96 | G71: =ROUND(E71*$G$37,2) -> 27705.85
A72: 33 | B72: 24336.28 | C72: 28717.54 | D72: =B72 -> 24336.28 | E72: 28717.54 | F72: 24336.28 | G72: 28717.54
A73: 34 | B73: 25725.86 | C73: 30046.13 | D73: 25725.86 | E73: =C73 -> 30046.13 | F73: 25725.86 | G73: 30046.13
A74: 35 | B74: 27171.73 | C74: 31443.47 | D74: 27171.73 | E74: 31443.47 | F74: 27171.73 | G74: 31443.47
A75: 36 | B75: 28355.55 | C75: 32887.93 | D75: 28355.55 | E75: 32887.93 | F75: 28355.55 | G75: 32887.93
A76: 37 | B76: 29914.1 | C76: 34446.35 | D76: 29914.1 | E76: 34446.35 | F76: 29914.1 | G76: 34446.35
A77: 38 | B77: 31559.65 | C77: 36011.43 | D77: 31559.65 | E77: 36011.43 | F77: 31559.65 | G77: 36011.43
A78: 39 | B78: 33319.16 | C78: 37665.95 | D78: 33319.16 | E78: 37665.95 | F78: 33319.16 | G78: 37665.95
A79: 40 | B79: 34501.45 | C79: 39386.25 | D79: 34501.45 | E79: 39386.25 | F79: 34501.45 | G79: 39386.25
A80: 41 | B80: 35796.97 | C80: 41191.81 | D80: 35796.97 | E80: 41191.81 | F80: 35796.97 | G80: 41191.81
A81: 42 | B81: 37210.04 | C81: 43075.31 | D81: 37210.04 | E81: 43075.31 | F81: 37210.04 | G81: 43075.31
A82: 43 | B82: 38739.07 | C82: 45039.42 | D82: 38739.07 | E82: 45039.42 | F82: 38739.07 | G82: 45039.42
A83: 44 | B83: 40430.2 | C83: 47306.18 | D83: 40430.2 | E83: 47306.18 | F83: 40430.2 | G83: 47306.18
A84: 45 | B84: 42269.62 | C84: 49545.61 | D84: 42269.62 | E84: 49545.61 | F84: 42269.62 | G84: 49545.61
A85: 46 | B85: 44301.98 | C85: 51460 | D85: 44301.98 | E85: 51460 | F85: 44301.98 | G85: 51460
A86: 47 | B86: 46521.21 | C86: 54105.54 | D86: 46521.21 | E86: 54105.54 | F86: 46521.21 | G86: 54105.54
A87: 48 | B87: 48954.3 | C87: 56319.82 | D87: 48954.3 | E87: 56319.82 | F87: 48954.3 | G87: 56319.82
A88: 49 | B88: 51617.53 | C88: 58710.49 | D88: 51617.53 | E88: 58710.49 | F88: 51617.53 | G88: 58710.49
A89: 50 | B89: 54520.54 | C89: 61238.75 | D89: 54520.54 | E89: 61238.75 | F89: 54520.54 | G89: 61238.75
A90: 51 | B90: 57645.66 | C90: 63965.15 | D90: 57645.66 | E90: 63965.15 | F90: 57645.66 | G90: 63965.15
A91: 52 | B91: 61053.93 | C91: 66885.55 | D91: 61053.93 | E91: 66885.55 | F91: 61053.93 | G91: 66885.55
A92: 53 | B92: 64779.17 | C92: 70018.19 | D92: 64779.17 | E92: 70018.19 | F92: 64779.17 | G92: 70018.19
A93: 54 | B93: 68811.34 | C93: 73349.4 | D93: 68811.34 | E93: 73349.4 | F93: 68811.34 | G93: 73349.4
A94: 55 | B94: 73108.24 | C94: 76820.07 | D94: 73108.24 | E94: 76820.07 | F94: 73108.24 | G94: 76820.07
A95: 56 | B95: 77791.99 | C95: 81502.92 | D95: 77791.99 | E95: 81502.92 | F95: 77791.99 | G95: 81502.92
A96: 57 | B96: 82817.28 | C96: 84679.68 | D96: 82817.28 | E96: 84679.68 | F96: 82817.28 | G96: 84679.68
A97: 58 | B97: 86421.08 | C97: 88106.27 | D97: 86421.08 | E97: 88106.27 | F97: 86421.08 | G97: 88106.27
A98: 59 | B98: 92087.57 | C98: 89627.1 | D98: 92087.57 | E98: 89627.1 | F98: 92087.57 | G98: 89627.1
A99: 60 | B99: 147743.41 | C99: 146685.87 | D99: 147743.41 | E99: 146685.87 | F99: 147743.41 | G99: 146685.87
A100: 61 | B100: 155909.95 | C100: 153123.67 | D100: 155909.95 | E100: 153123.67 | F100: 155909.95 | G100: 153123.67
A101: 62 | B101: 164225.43 | C101: 159748.08 | D101: 164225.43 | E101: 159748.08 | F101: 164225.43 | G101: 159748.08
A102: 63 | B102: 173359.16 | C102: 166714.98 | D102: 173359.16 | E102: 166714.98 | F102: 173359.16 | G102: 166714.98
A103: 64 | B103: =IF($A$37=$C$130,ROUND(C196*(1-DESC),2),ROUND(E196*(1-DESC),2)) -> 182567.29 | C103: =IF($A$37=$C$130,ROUND(D196*(1-DESC),2),ROUND(F196*(1-DESC),2)) -> 174120.51 | D103: 182567.29 | E103: 174120.51 | F103: =ROUND(D103*$G$37,2) -> 182567.29 | G103: =ROUND(E103*$G$37,2) -> 174120.51
A104: 65 | B104: 192314.04 | C104: 181768.47 | D104: =B104 -> 192314.04 | E104: 181768.47 | F104: 192314.04 | G104: 181768.47
A105: 66 | B105: 202516.5 | C105: 189853.51 | D105: 202516.5 | E105: =C105 -> 189853.51 | F105: 202516.5 | G105: 189853.51
A106: =+A105+1 -> 67 | B106: 213043.91 | C106: 198051.48 | D106: 213043.91 | E106: 198051.48 | F106: 213043.91 | G106: 198051.48
A107: 68 | B107: 224165.7 | C107: 206723.74 | D107: 224165.7 | E107: 206723.74 | F107: 224165.7 | G107: 206723.74
A108: 69 | B108: 235246.54 | C108: 215895.47 | D108: 235246.54 | E108: 215895.47 | F108: 235246.54 | G108: 215895.47
A109: 70 | B109: 247049.39 | C109: 225285.84 | D109: 247049.39 | E109: 225285.84 | F109: 247049.39 | G109: 225285.84
A110: 71 | B110: 259436.31 | C110: 234748.54 | D110: 259436.31 | E110: 234748.54 | F110: 259436.31 | G110: 234748.54
A111: 72 | B111: 271861.69 | C111: 245053.82 | D111: 271861.69 | E111: 245053.82 | F111: 271861.69 | G111: 245053.82
A112: 73 | B112: 285004.06 | C112: 255450.39 | D112: 285004.06 | E112: 255450.39 | F112: 285004.06 | G112: 255450.39
A113: 74 | B113: 298233.63 | C113: 266027.66 | D113: 298233.63 | E113: 266027.66 | F113: 298233.63 | G113: 266027.66
A114: 75 | B114: 311951.62 | C114: 276904.81 | D114: 311951.62 | E114: 276904.81 | F114: 311951.62 | G114: 276904.81
A115: 76 | B115: 328083.96 | C115: 289201.17 | D115: 328083.96 | E115: 289201.17 | F115: 328083.96 | G115: 289201.17
A116: 77 | B116: 344704.18 | C116: 302317.2 | D116: 344704.18 | E116: 302317.2 | F116: 344704.18 | G116: 302317.2
A117: 78 | B117: 362382.41 | C117: 315922.25 | D117: 362382.41 | E117: 315922.25 | F117: 362382.41 | G117: 315922.25
A118: 79 | B118: 382447.65 | C118: 329524.95 | D118: 382447.65 | E118: 329524.95 | F118: 382447.65 | G118: 329524.95
A119: 80 | B119: 401609.84 | C119: 343807.84 | D119: 401609.84 | E119: 343807.84 | F119: 401609.84 | G119: 343807.84
A120: 81 | B120: 423568.5 | C120: 358214.25 | D120: 423568.5 | E120: 358214.25 | F120: 423568.5 | G120: 358214.25
A121: 82 | B121: 445959.61 | C121: 372775.03 | D121: 445959.61 | E121: 372775.03 | F121: 445959.61 | G121: 372775.03
A122: 83 | B122: 469514.03 | C122: 389266.63 | D122: 469514.03 | E122: 389266.63 | F122: 469514.03 | G122: 389266.63
A123: 84 | B123: 495183.54 | C123: 405351.58 | D123: 495183.54 | E123: 405351.58 | F123: 495183.54 | G123: 405351.58
A124: 85 | B124: 520599.27 | C124: 420904.48 | D124: 520599.27 | E124: 420904.48 | F124: 520599.27 | G124: 420904.48
C129: Renovada | E129: Nueva | M129: Tarifa 2015-2016
C130: 1 | D130: Renovada | E130: 0 | F130: Nueva | N130: 1 | O130: Renovada | P130: 0 | Q130: Nueva
A131: E D A D | B131: Auxiliar por zona | C131: HOMBRES | D131: MUJERES | E131: HOMBRES | F131: MUJERES | I131: =AVERAGE(I132:J217) -> 0.6976744186 | M131: E D A D | N131: HOMBRES | O131: MUJERES | P131: HOMBRES | Q131: MUJERES
A132: 0 | B132: =+CONCATENATE(A132,$H$36) -> 0B | C132: =+VLOOKUP($B132,$B$237:$F$445,2,FALSE) -> 12378.06829 | D132: =+VLOOKUP($B132,$B$237:$F$445,3,FALSE) -> 12385.76387 | E132: =+VLOOKUP($B132,$B$237:$F$445,4,FALSE) -> 12378.06829 | F132: =+VLOOKUP($B132,$B$237:$F$445,5,FALSE) -> 12385.76387 | G132: =+B39 -> 12378.07 | H132: =+C39 -> 12385.76 | I132: =IF(ROUND(C132,2)=G132,1,0) -> 1 | J132: =IF(ROUND(D132,2)=H132,1,0) -> 1 | M132: 0 | N132: 5283.584505 | O132: 5286.869369 | P132: 5283.584505 | Q132: 5286.869369
A133: 1 | B133: 1B | C133: =+VLOOKUP($B133,$B$237:$F$445,2,FALSE) -> 12378.06829 | D133: =+VLOOKUP($B133,$B$237:$F$445,3,FALSE) -> 12385.76387 | E133: =+VLOOKUP($B133,$B$237:$F$445,4,FALSE) -> 12378.06829 | F133: =+VLOOKUP($B133,$B$237:$F$445,5,FALSE) -> 12385.76387 | G133: =+B40 -> 12378.07 | H133: =+C40 -> 12385.76 | I133: 1 | J133: 1 | M133: 1 | N133: 5283.584505 | O133: 5286.869369 | P133: 5283.584505 | Q133: 5286.869369
A134: =+A133+1 -> 2 | B134: 2B | C134: 12378.06829 | D134: 12385.76387 | E134: 12378.06829 | F134: 12385.76387 | G134: 12378.07 | H134: 12385.76 | I134: 1 | J134: 1 | M134: =+M133+1 -> 2 | N134: 5283.584505 | O134: 5286.869369 | P134: 5283.584505 | Q134: 5286.869369
A135: =+A134+1 -> 3 | B135: 3B | C135: 12378.06829 | D135: 12385.76387 | E135: 12378.06829 | F135: 12385.76387 | G135: 12378.07 | H135: 12385.76 | I135: 1 | J135: 1 | M135: 3 | N135: 5283.584505 | O135: 5286.869369 | P135: 5283.584505 | Q135: 5286.869369
A136: 4 | B136: 4B | C136: 12378.06829 | D136: 12385.76387 | E136: 12378.06829 | F136: 12385.76387 | G136: 12378.07 | H136: 12385.76 | I136: 1 | J136: 1 | M136: 4 | N136: 5283.584505 | O136: 5286.869369 | P136: 5283.584505 | Q136: 5286.869369
A137: 5 | B137: 5B | C137: 12378.06829 | D137: 12385.76387 | E137: 12378.06829 | F137: 12385.76387 | G137: 12378.07 | H137: 12385.76 | I137: 1 | J137: 1 | M137: 5 | N137: 5283.584505 | O137: 5286.869369 | P137: 5283.584505 | Q137: 5286.869369
A138: 6 | B138: 6B | C138: 12378.06829 | D138: 12385.76387 | E138: 12378.06829 | F138: 12385.76387 | G138: 12378.07 | H138: 12385.76 | I138: 1 | J138: =IF(ROUND(D138,2)=H138,1,0) -> 1 | M138: 6 | N138: 5283.584505 | O138: 5286.869369 | P138: 5283.584505 | Q138: 5286.869369
A139: 7 | B139: 7B | C139: 12378.06829 | D139: 12385.76387 | E139: 12378.06829 | F139: 12385.76387 | G139: 12378.07 | H139: 12385.76 | I139: 1 | J139: =IF(ROUND(D139,2)=H139,1,0) -> 1 | M139: 7 | N139: 5283.584505 | O139: 5286.869369 | P139: 5283.584505 | Q139: 5286.869369
A140: 8 | B140: 8B | C140: 12378.06829 | D140: 12385.76387 | E140: 12378.06829 | F140: 12385.76387 | G140: 12378.07 | H140: 12385.76 | I140: 1 | J140: =IF(ROUND(D140,2)=H140,1,0) -> 1 | M140: 8 | N140: 5283.584505 | O140: 5286.869369 | P140: 5283.584505 | Q140: 5286.869369
A141: 9 | B141: 9B | C141: 12378.06829 | D141: 12385.76387 | E141: 12378.06829 | F141: 12385.76387 | G141: 12378.07 | H141: 12385.76 | I141: 1 | J141: =IF(ROUND(D141,2)=H141,1,0) -> 1 | M141: 9 | N141: 5283.584505 | O141: 5286.869369 | P141: 5283.584505 | Q141: 5286.869369
A142: 10 | B142: 10B | C142: 12378.06829 | D142: 12385.76387 | E142: 12378.06829 | F142: 12385.76387 | G142: 12378.07 | H142: 12385.76 | I142: 1 | J142: 1 | M142: 10 | N142: 5283.584505 | O142: 5286.869369 | P142: 5283.584505 | Q142: 5286.869369
A143: 11 | B143: 11B | C143: 12306.53066 | D143: 12194.75135 | E143: 12306.53066 | F143: 12194.75135 | G143: 12306.53 | H143: 12194.75 | I143: =IF(ROUND(C143,2)=G143,1,0) -> 1 | J143: 1 | M143: 11 | N143: 5347.147568 | O143: 5298.57982 | P143: 5347.147568 | Q143: 5298.57982
A144: 12 | B144: 12B | C144: 12249.80811 | D144: 12361.45928 | E144: 12249.80811 | F144: 12361.45928 | G144: 12249.81 | H144: 12361.46 | I144: 1 | J144: 1 | M144: 12 | N144: 5322.501802 | O144: 5371.013874 | P144: 5322.501802 | Q144: 5371.013874
A145: 13 | B145: 13B | C145: 12165.23683 | D145: 12280.13417 | E145: 12165.23683 | F145: 12280.13417 | G145: 12165.24 | H145: 12280.13 | I145: 1 | J145: 1 | M145: 13 | N145: 5285.755856 | O145: 5335.678378 | P145: 5285.755856 | Q145: 5335.678378
A146: 14 | B146: 14B | C146: 11849.37591 | D146: 12030.09363 | E146: 11849.37591 | F146: 12030.09363 | G146: 11849.38 | H146: 12030.09 | I146: 1 | J146: 1 | M146: 14 | N146: 5148.515315 | O146: 5227.036577 | P146: 5148.515315 | Q146: 5227.036577
A147: 15 | B147: 15B | C147: 11897.64134 | D147: 11834.85357 | E147: 11897.64134 | F147: 11834.85357 | G147: 11897.64 | H147: 11834.85 | I147: 1 | J147: 1 | M147: 15 | N147: 5169.486486 | O147: 5142.205405 | P147: 5169.486486 | Q147: 5142.205405
A148: 16 | B148: 16B | C148: 11675.15054 | D148: 11386.02781 | E148: 11675.15054 | F148: 11386.02781 | G148: 11675.15 | H148: 11386.03 | I148: 1 | J148: 1 | M148: 16 | N148: 5072.814955 | O148: 4947.192072 | P148: 5072.814955 | Q148: 4947.192072
A149: 17 | B149: 17B | C149: 11739.39054 | D149: 11566.44654 | E149: 11739.39054 | F149: 11566.44654 | G149: 11739.39 | H149: 11566.45 | I149: 1 | J149: 1 | M149: 17 | N149: 5100.727027 | O149: 5025.583423 | P149: 5100.727027 | Q149: 5025.583423
A150: 18 | B150: 18B | C150: 12082.80119 | D150: 10928.3178 | E150: 12082.80119 | F150: 10928.3178 | G150: 12082.8 | H150: 10928.32 | I150: 1 | J150: 1 | M150: 18 | N150: 5249.937838 | O150: 4748.318559 | P150: 5249.937838 | Q150: 4748.318559
A151: 19 | B151: 19B | C151: 12492.97189 | D151: 11090.75445 | E151: 12492.97189 | F151: 11090.75445 | G151: 12492.97 | H151: 11090.75 | I151: 1 | J151: 1 | M151: 19 | N151: 5428.155676 | O151: 4818.896757 | P151: 5428.155676 | Q151: 4818.896757
A152: 20 | B152: 20B | C152: 12872.0477 | D152: 12869.95478 | E152: 12872.0477 | F152: 12869.95478 | G152: 12872.05 | H152: 12869.95 | I152: 1 | J152: 1 | M152: 20 | N152: 5592.862883 | O152: 5591.953514 | P152: 5592.862883 | Q152: 5591.953514
A153: 21 | B153: 21B | C153: 13549.30134 | D153: 16688.64703 | E153: 13549.30134 | F153: 16688.64703 | G153: 13549.3 | H153: 16688.65 | I153: 1 | J153: 1 | M153: 21 | N153: 5887.127387 | O153: 7251.162883 | P153: 5887.127387 | Q153: 7251.162883
A154: 22 | B154: 22B | C154: 14157.0186 | D154: 17495.1495 | E154: 14157.0186 | F154: 17495.1495 | G154: 14157.02 | H154: 17495.15 | I154: =IF(ROUND(C154,2)=G154,1,0) -> 1 | J154: 1 | M154: 22 | N154: 6151.178559 | O154: 7601.585586 | P154: 6151.178559 | Q154: 7601.585586
A155: 23 | B155: 23B | C155: 15091.61666 | D155: 18332.5333 | E155: 15091.61666 | F155: 18332.5333 | G155: 15091.62 | H155: 18332.53 | I155: 1 | J155: 1 | M155: 23 | N155: 6557.258378 | O155: 7965.426126 | P155: 6557.258378 | Q155: 7965.426126
A156: 24 | B156: 24B | C156: 15719.19535 | D156: 19205.79583 | E156: 15719.19535 | F156: 19205.79583 | G156: 15719.2 | H156: 19205.8 | I156: 1 | J156: 1 | M156: 24 | N156: 6829.939279 | O156: 8344.855856 | P156: 6829.939279 | Q156: 8344.855856
A157: 25 | B157: 25B | C157: 16340.06813 | D157: 20106.52267 | E157: 16340.06813 | F157: 20106.52267 | G157: 16340.07 | H157: 20106.52 | I157: 1 | J157: 1 | M157: 25 | N157: 7099.706486 | O157: 8736.218739 | P157: 7099.706486 | Q157: 8736.218739
A158: 26 | B158: 26B | C158: 17449.36141 | D158: 21069.90914 | E158: 17449.36141 | F158: 21069.90914 | G158: 17449.36 | H158: 21069.91 | I158: 1 | J158: 1 | M158: 26 | N158: 7581.690811 | O158: 9154.807027 | P158: 7581.690811 | Q158: 9154.807027
A159: 27 | B159: 27B | C159: 18217.97766 | D159: 22043.33311 | E159: 18217.97766 | F159: 22043.33311 | G159: 18217.98 | H159: 22043.33 | I159: 1 | J159: 1 | M159: 27 | N159: 7915.652072 | O159: 9577.756577 | P159: 7915.652072 | Q159: 9577.756577
A160: 28 | B160: 28B | C160: 19299.33679 | D160: 23090.73559 | E160: 19299.33679 | F160: 23090.73559 | G160: =+B67 -> 19299.34 | H160: 23090.74 | I160: 1 | J160: 1 | M160: 28 | N160: 8385.499099 | O160: 10032.84955 | P160: 8385.499099 | Q160: 10032.84955
A161: 29 | B161: 29B | C161: 20303.51395 | D161: 24156.41913 | E161: 20303.51395 | F161: 24156.41913 | G161: 20303.51 | H161: 24156.42 | I161: 1 | J161: 1 | M161: 29 | N161: 8821.810811 | O161: 10495.88559 | P161: 8821.810811 | Q161: 10495.88559
A162: 30 | B162: 30B | C162: 21245.7576 | D162: 25302.74438 | E162: 21245.7576 | F162: 25302.74438 | G162: 21245.76 | H162: 25302.74 | I162: 1 | J162: 1 | M162: 30 | N162: 9231.212613 | O162: 10993.96018 | P162: 9231.212613 | Q162: 10993.96018
A163: 31 | B163: 31B | C163: 22128.24609 | D163: 26485.80261 | E163: 22128.24609 | F163: 26485.80261 | G163: 22128.25 | H163: 26485.8 | I163: 1 | J163: 1 | M163: 31 | N163: 9614.650991 | O163: 11507.99514 | P163: 9614.650991 | Q163: 11507.99514
A164: 32 | B164: =+CONCATENATE(A164,$H$36) -> 32B | C164: 23485.95682 | D164: 27705.8501 | E164: 23485.95682 | F164: 27705.8501 | G164: 23485.96 | H164: 27705.85 | I164: 1 | J164: 1 | M164: 32 | N164: 10204.57189 | O164: 12038.1018 | P164: 10204.57189 | Q164: 12038.1018
A165: 33 | B165: 33B | C165: 24336.28259 | D165: 28717.5447 | E165: 24336.28259 | F165: 28717.5447 | G165: 24336.28 | H165: 28717.54 | I165: 1 | J165: 1 | M165: 33 | N165: 10574.03568 | O165: 12477.67982 | P165: 10574.03568 | Q165: 12477.67982
A166: 34 | B166: 34B | C166: 25725.85705 | D166: 30046.12533 | E166: 25725.85705 | F166: 30046.12533 | G166: 25725.86 | H166: 30046.13 | I166: 1 | J166: 1 | M166: =+M165+1 -> 34 | N166: 11177.80126 | O166: 13054.94378 | P166: 11177.80126 | Q166: 13054.94378
A167: 35 | B167: 35B | C167: 27171.72694 | D167: 31443.47352 | E167: 27171.72694 | F167: 31443.47352 | G167: 27171.73 | H167: 31443.47 | I167: 1 | J167: 1 | M167: 35 | N167: 11806.02703 | O167: 13662.08703 | P167: 11806.02703 | Q167: 13662.08703
A168: 36 | B168: 36B | C168: 28355.554 | D168: 32887.93388 | E168: 28355.554 | F168: 32887.93388 | G168: 28355.55 | H168: 32887.93 | I168: 1 | J168: 1 | M168: 36 | N168: 12320.39604 | O168: 14289.70036 | P168: 12320.39604 | Q168: 14289.70036
A169: 37 | B169: 37B | C169: 29914.10017 | D169: 34446.35191 | E169: 29914.10017 | F169: 34446.35191 | G169: 29914.1 | H169: 34446.35 | I169: 1 | J169: 1 | M169: 37 | N169: 12997.57928 | O169: 14966.82793 | P169: 12997.57928 | Q169: 14966.82793
A170: 38 | B170: 38B | C170: 31559.65224 | D170: 36011.43313 | E170: 31559.65224 | F170: 36011.43313 | G170: 31559.65 | H170: 36011.43 | I170: 1 | J170: 1 | M170: 38 | N170: 13712.56631 | O170: 15646.85063 | P170: 13712.56631 | Q170: 15646.85063
A171: 39 | B171: 39B | C171: 33319.16198 | D171: 37665.95489 | E171: 33319.16198 | F171: 37665.95489 | G171: 33319.16 | H171: 37665.95 | I171: 1 | J171: 1 | M171: 39 | N171: 14477.06757 | O171: 16365.73495 | P171: 14477.06757 | Q171: 16365.73495
A172: 40 | B172: 40B | C172: 34501.45138 | D172: 39386.2543 | E172: 34501.45138 | F172: 39386.2543 | G172: 34501.45 | H172: 39386.25 | I172: 1 | J172: 1 | M172: 40 | N172: 14990.76847 | O172: 17113.19946 | P172: 14990.76847 | Q172: 17113.19946
A173: 41 | B173: 41B | C173: 35796.97233 | D173: 41191.8084 | E173: 35796.97233 | F173: 41191.8084 | G173: 35796.97 | H173: 41191.81 | I173: 1 | J173: 1 | M173: 41 | N173: 15553.66811 | O173: 17897.70685 | P173: 15553.66811 | Q173: 17897.70685
A174: 42 | B174: 42B | C174: 37210.03881 | D174: 43075.31331 | E174: 37210.03881 | F174: 43075.31331 | G174: 37210.04 | H174: 43075.31 | I174: 1 | J174: 1 | M174: 42 | N174: 16167.6409 | O174: 18716.0836 | P174: 16167.6409 | Q174: 18716.0836
A175: 43 | B175: 43B | C175: 38739.07045 | D175: 45039.4172 | E175: 38739.07045 | F175: 45039.4172 | G175: 38739.07 | H175: 45039.42 | I175: 1 | J175: 1 | M175: 43 | N175: 16832.00018 | O175: 19569.48036 | P175: 16832.00018 | Q175: 19569.48036
A176: 44 | B176: 44B | C176: 40430.19705 | D176: 47306.18376 | E176: 40430.19705 | F176: 47306.18376 | G176: 40430.2 | H176: 47306.18 | I176: 1 | J176: 1 | M176: 44 | N176: 17566.78919 | O176: 20554.38306 | P176: 17566.78919 | Q176: 20554.38306
A177: 45 | B177: 45B | C177: 42269.62238 | D177: 49545.61415 | E177: 42269.62238 | F177: 49545.61415 | G177: 42269.62 | H177: 49545.61 | I177: 1 | J177: 1 | M177: 45 | N177: 18366.01351 | O177: 21527.40829 | P177: 18366.01351 | Q177: 21527.40829
A178: 46 | B178: 46B | C178: 44301.98127 | D178: 51460.00039 | E178: 44301.98127 | F178: 51460.00039 | G178: 44301.98 | H178: 51460 | I178: 1 | J178: 1 | M178: 46 | N178: 19249.06685 | O178: 22359.20288 | P178: 19249.06685 | Q178: 22359.20288
A179: 47 | B179: 47B | C179: 46521.20852 | D179: 54105.54377 | E179: 46521.20852 | F179: 54105.54377 | G179: 46521.21 | H179: 54105.54 | I179: 1 | J179: 1 | M179: 47 | N179: 20213.31387 | O179: 23508.68288 | P179: 20213.31387 | Q179: 23508.68288
A180: 48 | B180: 48B | C180: 48954.2986 | D180: 56319.81634 | E180: 48954.2986 | F180: 56319.81634 | G180: 48954.3 | H180: 56319.82 | I180: 1 | J180: 1 | M180: 48 | N180: 21270.4836 | O180: 24470.77712 | P180: 21270.4836 | Q180: 24470.77712
A181: 49 | B181: 49B | C181: 51617.52507 | D181: 58710.49264 | E181: 51617.52507 | F181: 58710.49264 | G181: 51617.53 | H181: 58710.49 | I181: 1 | J181: 1 | M181: 49 | N181: 22427.64685 | O181: 25509.5182 | P181: 22427.64685 | Q181: 25509.5182
A182: 50 | B182: 50B | C182: 54520.54102 | D182: 61238.74676 | E182: 54520.54102 | F182: 61238.74676 | G182: 54520.54 | H182: 61238.75 | I182: 1 | J182: 1 | M182: 50 | N182: 23688.99784 | O182: 26608.0364 | P182: 23688.99784 | Q182: 26608.0364
A183: 51 | B183: 51B | C183: 57645.66335 | D183: 63965.14542 | E183: 57645.66335 | F183: 63965.14542 | G183: 57645.66 | H183: 63965.15 | I183: 1 | J183: 1 | M183: 51 | N183: 25046.85333 | O183: 27792.64775 | P183: 25046.85333 | Q183: 27792.64775
A184: 52 | B184: 52B | C184: 61053.92862 | D184: 66885.54546 | E184: 61053.92862 | F184: 66885.54546 | G184: 61053.93 | H184: 66885.55 | I184: 1 | J184: 1 | M184: 52 | N184: 26527.73351 | O184: 29061.55207 | P184: 26527.73351 | Q184: 29061.55207
A185: 53 | B185: 53B | C185: 64779.16534 | D185: 70018.18524 | E185: 64779.16534 | F185: 70018.18524 | G185: 64779.17 | H185: 70018.19 | I185: 1 | J185: 1 | M185: 53 | N185: 28146.33676 | O185: 30422.67387 | P185: 28146.33676 | Q185: 30422.67387
A186: 54 | B186: 54B | C186: 68811.336 | D186: 73349.39668 | E186: 68811.336 | F186: 73349.39668 | G186: 68811.34 | H186: 73349.4 | I186: 1 | J186: 1 | M186: 54 | N186: 29898.3018 | O186: 31870.07441 | P186: 29898.3018 | Q186: 31870.07441
A187: 55 | B187: 55B | C187: 73108.24039 | D187: 76820.0653 | E187: 73108.24039 | F187: 76820.0653 | G187: 73108.24 | H187: 76820.07 | I187: 1 | J187: 1 | M187: 55 | N187: 31765.29279 | O187: 33378.06865 | P187: 31765.29279 | Q187: 33378.06865
A188: 56 | B188: 56B | C188: 77791.99432 | D188: 81502.92226 | E188: 77791.99432 | F188: 81502.92226 | G188: 77791.99 | H188: 81502.92 | I188: 1 | J188: 1 | M188: 56 | N188: 33800.36865 | O188: 35412.75477 | P188: 33800.36865 | Q188: 35412.75477
A189: 57 | B189: 57B | C189: 82817.27954 | D189: 84679.68433 | E189: 82817.27954 | F189: 84679.68433 | G189: 82817.28 | H189: 84679.68 | I189: 1 | J189: 1 | M189: 57 | N189: 35983.83874 | O189: 36793.04757 | P189: 35983.83874 | Q189: 36793.04757
A190: 58 | B190: 58B | C190: 86421.08385 | D190: 88106.27338 | E190: 86421.08385 | F190: 88106.27338 | G190: 86421.08 | H190: 88106.27 | I190: 1 | J190: 1 | M190: 58 | N190: 37549.68 | O190: 38281.88937 | P190: 37549.68 | Q190: 38281.88937
A191: 59 | B191: 59B | C191: 92087.57313 | D191: 89627.10417 | E191: 92087.57313 | F191: 89627.10417 | G191: 92087.57 | H191: 89627.1 | I191: 1 | J191: 1 | M191: 59 | N191: 40011.75117 | O191: 38942.68541 | P191: 40011.75117 | Q191: 38942.68541
A192: 60 | B192: 60B | C192: 117366.2628 | D192: 116526.1612 | E192: 147743.4132 | F192: 146685.8735 | G192: 147743.41 | H192: 146685.87 | I192: 0 | J192: 0 | M192: 60 | N192: 42437.2129 | O192: 42133.44953 | P192: 53420.96212 | Q192: 53038.57765
A193: 61 | B193: 61B | C193: 123853.7023 | D193: 121640.3024 | E193: 155909.9547 | F193: 153123.6748 | G193: 155909.95 | H193: 153123.67 | I193: 0 | J193: 0 | M193: 61 | N193: 44782.93682 | O193: 43982.6172 | P193: 56373.81459 | Q193: 55366.35341
A194: 62 | B194: 62B | C194: 130459.4525 | D194: 126902.678 | E194: 164225.4284 | F194: 159748.077 | G194: 164225.43 | H194: 159748.08 | I194: 0 | J194: 0 | M194: 62 | N194: 47171.43944 | O194: 45885.38336 | P194: 59380.51788 | Q194: 57761.60024
A195: 63 | B195: 63B | C195: 137715.2192 | D195: 132437.1362 | E195: 173359.1582 | F195: 166714.9833 | G195: 173359.16 | H195: 166714.98 | I195: 0 | J195: 0 | M195: 63 | N195: 49794.97458 | O195: 47886.52897 | P195: 62683.08565 | Q195: 60280.68941
A196: 64 | B196: =+CONCATENATE(A196,$H$36) -> 64B | C196: 145030.0879 | D196: 138320.0305 | E196: 182567.2871 | F196: 174120.509 | G196: 182567.29 | H196: 174120.51 | I196: 0 | J196: 0 | M196: 64 | N196: 52439.87981 | O196: 50013.66187 | P196: 66012.55459 | Q196: 62958.37435
A197: 65 | B197: 65B | C197: =+VLOOKUP($B197,$B$237:$F$445,2,FALSE) -> 152772.8345 | D197: =+VLOOKUP($B197,$B$237:$F$445,3,FALSE) -> 144395.5125 | E197: =+VLOOKUP($B197,$B$237:$F$445,4,FALSE) -> 192314.0387 | F197: =+VLOOKUP($B197,$B$237:$F$445,5,FALSE) -> 181768.4687 | G197: =+B104 -> 192314.04 | H197: =+C104 -> 181768.47 | I197: =IF(ROUND(C197,2)=G197,1,0) -> 0 | J197: =IF(ROUND(D197,2)=H197,1,0) -> 0 | M197: 65 | N197: 55239.49682 | O197: 52210.43047 | P197: 69536.77835 | Q197: 65723.71835
A198: 66 | B198: 66B | C198: 160877.5947 | D198: 150818.2059 | E198: 202516.5016 | F198: 189853.5063 | G198: 202516.5 | H198: 189853.51 | I198: 0 | J198: 0 | M198: =+M197+1 -> 66 | N198: 58170.01047 | O198: 54532.74355 | P198: 73225.77788 | Q198: 68647.10071
A199: =+A198+1 -> 67 | B199: 67B | C199: 169240.4873 | D199: 157330.6174 | E199: 213043.9076 | F199: 198051.483 | G199: 213043.91 | H199: 198051.48 | I199: 0 | J199: 0 | M199: 67 | N199: 61193.85944 | O199: 56887.49682 | P199: 77032.27012 | Q199: 71611.31953
A200: 68 | B200: 68B | C200: 178075.5577 | D200: 164219.7913 | E200: 224165.702 | F200: 206723.7373 | G200: 224165.7 | H200: 206723.74 | I200: 0 | J200: 0 | M200: 68 | N200: 64388.43813 | O200: 59378.47963 | P200: 81053.68094 | Q200: 74747.02729
A201: 69 | B201: 69B | C201: 186878.0953 | D201: 171505.748 | E201: 235246.5435 | F201: 215895.471 | G201: 235246.54 | H201: 215895.47 | I201: 0 | J201: 0 | M201: 69 | N201: 67571.25364 | O201: 62012.93084 | P201: 85060.284 | Q201: 78063.33647
A202: 70 | B202: 70B | C202: 196254.1894 | D202: 178965.3902 | E202: 247049.3914 | F202: 225285.8442 | G202: 247049.39 | H202: 225285.84 | I202: 0 | J202: 0 | M202: 70 | N202: 70961.45533 | O202: 64710.18318 | P202: 89327.94965 | Q202: 81458.70118
A203: 71 | B203: 71B | C203: 206094.2615 | D203: 186482.484 | E203: 259436.3057 | F203: 234748.5387 | G203: 259436.31 | H203: 234748.54 | I203: 0 | J203: 0 | M203: 71 | N203: 74519.42187 | O203: 67428.20879 | P203: 93806.80165 | Q203: 84880.21576
A204: 72 | B204: 72B | C204: 215964.8964 | D204: 194668.9222 | E204: 271861.6931 | F204: 245053.8198 | G204: 271861.69 | H204: 245053.82 | I204: 0 | J204: 0 | M204: 72 | N204: 78088.43925 | O204: 70388.25551 | P204: 98299.56471 | Q204: 88606.39224
... 236 more rows

Sheet TITULAR (hidden)
B1: GASTOS MÉDICOS MAYORES INDIVIDUAL/FAMILIAR | I1: REGION COBERTURA BASICA
I2: =IF(ISERROR(VLOOKUP(E3,VALORES!$A$6:$B$11,2,FALSE)),"REGION NO VALIDA",VLOOKUP(E3,VALORES!$A$6:$B$11,2,FALSE)) -> BAJA CALIFORNIA, BAJA CALIFORNIA SUR, MORELOS, QUINTANA ROO, QUERETARO, SAN LUIS POTOSI, SINALOA, SONORA | M2: Prima riesgo dental incremental | N2: 68.09 | Q2: Prima riesgo visión opcional | R2: 119.08
B3: REGIÓN: | E3: =+COTIZACION!D14 -> 5 | F3: =IF(E3>7,"NO PROCEDE"," ") ->  | G3: FACTORES | M3: Gastos | N3: 0.7 | Q3: Gastos | R3: 0.7
N4: =ROUND((N2/(1-N3)),2) -> 226.97 | R4: =ROUND(R2/(1-R3),2) -> 396.93
B5: SUMA ASEGURADA: | E5: =+COTIZACION!D10 -> 100000000 | G5: =VLOOKUP(E5,FACTORES!$J$33:$K$124,2) -> 1.53
B6: DEDUCIBLE: | E6: =+COTIZACION!D11 -> 10000 | G6: =VLOOKUP(E6,FACTORES!$A$2:$B$29,2,0) -> 0.88 | M6: Asistencias | N6: 48.6
B7: ELIMINACION DEDUCIBLE | E7: =+COTIZACION!D15 -> NO | G7: =IF(H7="SI",VLOOKUP(E6,FACTORES!$J$1:$K$21,2,0),0) -> 0 | H7: =IF(VALUE(COTIZACION!D11)>50000,"NO",COTIZACION!D15) -> NO | M7: Gastos | N7: 0.7
B8: COASEGURO: | E8: =+COTIZACION!D12 -> 0.1 | G8: =VLOOKUP(E8,FACTORES!$C$2:$D$6,2) -> 1 | N8: =ROUND((N6/(1-N7)),2) -> 162
B9: CATALOGO: | E9: =+COTIZACION!D25 -> 0 | G9: =VLOOKUP($E$9,FACTORES!$C$8:$D$13,2,FALSE) -> 1
B10: SUMA ASEGURADA PARTO O CESAREA | E10: =+COTIZACION!D17 -> 30000 | F10: =+COTIZACION!D16 -> NO | G10: =IF(F10="NO",20000,E10) -> 20000
B11: SEGURO DE ENFERMEDADES GRAVES | E11: =+COTIZACION!D19 -> NO | G11: =IF(E11="NO",0,IF(SUM(COTIZACION!A30:A37)>=1,VLOOKUP(E11,FACTORES!$M$33:$N$55,2,0)*(1-DESC),0)) -> 0
B12: COBERTURA DE VISION | E12: =+COTIZACION!D18 -> NO | G12: =IF(E12="NO",0,G23) -> 0 | M12: PaQ Adicional | N12: 432.67 | O12: 0.7
F13: ZONA | N13: 20 | O13: =1-O12 -> 0.3
B14: EMERGENCIA EXTRANJERO: | E14: =+COTIZACION!D21 -> NO | G14: =IF(E14="SI",FACTORES!$G$2,FACTORES!$G$3) -> 1 | I14: ZONA COBERTURAS ADICIONALES | M14: =ROUND(N12/O13,2) -> 1442.23 | N14: 33 | S14: S
B15: COBER TOTAL EXTRANJERO: | E15: =+COTIZACION!D20 -> NO | F15: =+COTIZACION!D22 -> C | G15: =IF(E15="SI",(IF(F15="A",FACTORES!G6,IF(F15="B",FACTORES!G7,IF(F15="C",FACTORES!G8,"NO PROCEDE")))),1) -> 1 | I15: =IF(F14=F15,VLOOKUP(F14,VALORES!$A$31:$B$33,2,FALSE),"ZONAS DIFERENTES") -> ZONAS DIFERENTES | K15: A | N15: 98
G16: =+COTIZACION!D14 -> 5 | K16: B | N16: 16
B17: FORMA DE PAGO: | E17: =+COTIZACION!#REF! ->  | F17: Costos | G17: 0 | K17: C | N17: 16.3
B18: PARTO | G18: =(IF(COTIZACION!A16="NO",+FACTORES!G16,IF(AND(COTIZACION!A7=1,COTIZACION!A8=1),VLOOKUP(E10,FACTORES!$F$16:$G$19,2,0)*(1-DESC),VLOOKUP(E10,FACTORES!$F$23:$G$26,2,0)*(1-DESC)))) -> 3152.110755 | H18: *BUSCARV(G16,FACTORES!$F$30:$G$35,2,0) | I18: =(SI(COTIZACION!A16="NO",+FACTORES!G16,SI(COTIZACION!D7=FACTORES!F14,BUSCARV(G10,FACTORES!$F$16:$G$19,2,0)*(1-DESC),BUSCARV(G10,FACTORES!$F$23:$G$26,2,0)*(1-DESC)))) | N18: 14
B19: DENTAL | F19: =ROUND(N4,2) -> 226.97 | G19: =281*0+181.98*0+F19*(1-DESC) -> 226.97 | K19: =+F19/DENTAL-1 -> 0 | N19: 3.9
B20: PAQ_ADIC | G20: =611*0+701.81*0+(684*1.135*0)+(M14)*(1-DESC) -> 1442.23 | N20: 10.39
B21: ASIST_IKE | F21: =ROUND(N8,2) -> 162 | G21: =122.5*0+153.74*0+F21*(1-DESC) -> 162 | H21: 153.74 | I21: 125.5 (anterior) | K21: =F21/IKE-1 -> 0 | N21: 13.3
B22: EDUCA | G22: =88*(1-DESC)*0 -> 0 | N22: 13.5
B23: VISION | G23: =206.61*0+R4*(1-DESC) -> 396.93 | N23: 20.5
D24: PRIMA BASE | F24: PRIMA TARIFA | H24: R P FRAC | I24: =G17 -> 0 | J24: PRIMA TOTAL | N24: 56
D25: REGIONALIZADA | F25: REGIONALIZADA | H25: DER POLIZA | I25: 800 | J25: IVA | K25: =+COTIZACION!D26 -> 0.16 | N25: 0.78
B26: EDAD | D26: HOMBRE | E26: MUJER | F26: HOMBRE | G26: MUJER | H26: HOMBRE | I26: MUJER | J26: HOMBRE | K26: MUJER | N26: 117
B27: 0 | D27: =FACTORES!F39 -> 12378.07 | E27: =FACTORES!G39 -> 12385.76 | F27: =ROUND(D27*$G$5*$G$6*$G$8*$G$14*$G$15*$G$9,2)+ADIC+DENTAL+DEDXACC+ENFGVES+IKE+CVISION -> 18497.03 | G27: 18507.39 | H27: =(F27*(1+$I$24))+$I$25 -> 19297.03 | I27: =(G27*(1+$I$24))+$I$25 -> 19307.39 | J27: =H27*(1+$K$25) -> 22384.5548 | K27: =I27*(1+$K$25) -> 22396.5724
B28: =+B27+1 -> 1 | D28: =FACTORES!F40 -> 12378.07 | E28: =FACTORES!G40 -> 12385.76 | F28: 18497.03 | G28: 18507.39 | H28: =(F28*(1+$I$24))+$I$25 -> 19297.03 | I28: =(G28*(1+$I$24))+$I$25 -> 19307.39 | J28: =H28*(1+$K$25) -> 22384.5548 | K28: =I28*(1+$K$25) -> 22396.5724
B29: =+B28+1 -> 2 | D29: =FACTORES!F41 -> 12378.07 | E29: =FACTORES!G41 -> 12385.76 | F29: 18497.03 | G29: 18507.39 | H29: 19297.03 | I29: 19307.39 | J29: 22384.5548 | K29: 22396.5724
B30: 3 | D30: =FACTORES!F42 -> 12378.07 | E30: =FACTORES!G42 -> 12385.76 | F30: 18497.03 | G30: 18507.39 | H30: 19297.03 | I30: 19307.39 | J30: 22384.5548 | K30: 22396.5724
B31: 4 | D31: =FACTORES!F43 -> 12378.07 | E31: =FACTORES!G43 -> 12385.76 | F31: =ROUND(D31*$G$5*$G$6*$G$8*$G$14*$G$15*$G$9,2)+ADIC+DENTAL+DEDXACC+ENFGVES+IKE+CVISION -> 18497.03 | G31: =ROUND(E31*$G$5*$G$6*$G$8*$G$14*$G$15*$G$9,2)+ADIC+DENTAL+DEDXACC+ENFGVES+IKE+CVISION -> 18507.39 | H31: 19297.03 | I31: 19307.39 | J31: 22384.5548 | K31: 22396.5724
B32: 5 | D32: =FACTORES!F44 -> 12378.07 | E32: =FACTORES!G44 -> 12385.76 | F32: =ROUND(D32*$G$5*$G$6*$G$8*$G$14*$G$15*$G$9,2)+ADIC+DENTAL+DEDXACC+ENFGVES+IKE+CVISION -> 18497.03 | G32: =ROUND(E32*$G$5*$G$6*$G$8*$G$14*$G$15*$G$9,2)+ADIC+DENTAL+DEDXACC+ENFGVES+IKE+CVISION -> 18507.39 | H32: 19297.03 | I32: 19307.39 | J32: 22384.5548 | K32: 22396.5724
B33: 6 | D33: =FACTORES!F45 -> 12378.07 | E33: =FACTORES!G45 -> 12385.76 | F33: =ROUND(D33*$G$5*$G$6*$G$8*$G$14*$G$15*$G$9,2)+ADIC+DENTAL+DEDXACC+ENFGVES+IKE+CVISION -> 18497.03 | G33: =ROUND(E33*$G$5*$G$6*$G$8*$G$14*$G$15*$G$9,2)+ADIC+DENTAL+DEDXACC+ENFGVES+IKE+CVISION -> 18507.39 | H33: 19297.03 | I33: 19307.39 | J33: 22384.5548 | K33: 22396.5724
B34: 7 | D34: =FACTORES!F46 -> 12378.07 | E34: =FACTORES!G46 -> 12385.76 | F34: =ROUND(D34*$G$5*$G$6*$G$8*$G$14*$G$15*$G$9,2)+ADIC+DENTAL+DEDXACC+ENFGVES+IKE+CVISION -> 18497.03 | G34: 18507.39 | H34: 19297.03 | I34: 19307.39 | J34: 22384.5548 | K34: 22396.5724
B35: 8 | D35: =FACTORES!F47 -> 12378.07 | E35: =FACTORES!G47 -> 12385.76 | F35: =ROUND(D35*$G$5*$G$6*$G$8*$G$14*$G$15*$G$9,2)+ADIC+DENTAL+DEDXACC+ENFGVES+IKE+CVISION -> 18497.03 | G35: 18507.39 | H35: 19297.03 | I35: 19307.39 | J35: 22384.5548 | K35: 22396.5724
B36: 9 | D36: =FACTORES!F48 -> 12378.07 | E36: =FACTORES!G48 -> 12385.76 | F36: =ROUND(D36*$G$5*$G$6*$G$8*$G$14*$G$15*$G$9,2)+ADIC+DENTAL+DEDXACC+ENFGVES+IKE+CVISION -> 18497.03 | G36: 18507.39 | H36: 19297.03 | I36: 19307.39 | J36: 22384.5548 | K36: 22396.5724
B37: 10 | D37: =FACTORES!F49 -> 12378.07 | E37: =FACTORES!G49 -> 12385.76 | F37: 18497.03 | G37: 18507.39 | H37: 19297.03 | I37: 19307.39 | J37: 22384.5548 | K37: 22396.5724
B38: 11 | D38: =FACTORES!F50 -> 12306.53 | E38: =FACTORES!G50 -> 12194.75 | F38: =ROUND(D38*$G$5*$G$6*$G$8*$G$14*$G$15*$G$9,2)+ADIC+DENTAL+DEDXACC+ENFGVES+IKE+CVISION -> 18400.71 | G38: 18250.21 | H38: 19200.71 | I38: 19050.21 | J38: 22272.8236 | K38: 22098.2436 | L38: =+F38/F37-1 -> -0.005207322473
B39: 12 | D39: =FACTORES!F51 -> 12249.81 | E39: =FACTORES!G51 -> 12361.46 | F39: =ROUND(D39*$G$5*$G$6*$G$8*$G$14*$G$15*$G$9,2)+ADIC+DENTAL+DEDXACC+ENFGVES+IKE+CVISION -> 18324.34 | G39: 18474.67 | H39: 19124.34 | I39: 19274.67 | J39: 22184.2344 | K39: 22358.6172
B40: 13 | D40: =FACTORES!F52 -> 12165.24 | E40: =FACTORES!G52 -> 12280.13 | F40: =ROUND(D40*$G$5*$G$6*$G$8*$G$14*$G$15*$G$9,2)+ADIC+DENTAL+DEDXACC+ENFGVES+IKE+CVISION -> 18210.48 | G40: 18365.17 | H40: 19010.48 | I40: 19165.17 | J40: 22052.1568 | K40: 22231.5972
B41: 14 | D41: =FACTORES!F53 -> 11849.38 | E41: =FACTORES!G53 -> 12030.09 | F41: =ROUND(D41*$G$5*$G$6*$G$8*$G$14*$G$15*$G$9,2)+ADIC+DENTAL+DEDXACC+ENFGVES+IKE+CVISION -> 17785.21 | G41: 18028.51 | H41: 18585.21 | I41: 18828.51 | J41: 21558.8436 | K41: 21841.0716
B42: 15 | D42: =FACTORES!F54 -> 11897.64 | E42: =FACTORES!G54 -> 11834.85 | F42: =ROUND(D42*$G$5*$G$6*$G$8*$G$14*$G$15*$G$9,2)+ADIC+DENTAL+DEDXACC+ENFGVES+IKE+CVISION -> 17850.18 | G42: 17765.64 | H42: 18650.18 | I42: 18565.64 | J42: 21634.2088 | K42: 21536.1424
B43: 16 | D43: =FACTORES!F55 -> 11675.15 | E43: =FACTORES!G55 -> 11386.03 | F43: 17550.62 | G43: 17161.35 | H43: 18350.62 | I43: 17961.35 | J43: 21286.7192 | K43: 20835.166
B44: 17 | D44: =FACTORES!F56 -> 11739.39 | E44: =FACTORES!G56 -> 11566.45 | F44: 17637.11 | G44: =ROUND(E44*$G$5*$G$6*$G$8*$G$14*$G$15*$G$9,2)+ADIC+DENTAL+DEDXACC+ENFGVES+IKE+CVISION -> 17404.27 | H44: 18437.11 | I44: 18204.27 | J44: 21387.0476 | K44: 21116.9532
B45: 18 | D45: =FACTORES!F57 -> 12082.8 | E45: =FACTORES!G57 -> 10928.32 | F45: =ROUND(D45*$G$5*$G$6*$G$8*$G$14*$G$15*$G$9,2)+ADIC+DENTAL+DEDXACC+ENFGVES+IKE+CVISION -> 18099.48 | G45: =ROUND(E45*$G$5*$G$6*$G$8*$G$14*$G$15*$G$9,2)+ADIC+DENTAL+DEDXACC+ENFGVES+IKE+PARTO+CVISION -> 19697.20076 | H45: 18899.48 | I45: 20497.20076 | J45: 21923.3968 | K45: 23776.75288 | L45: 21337.45833 | M45: 39743.88428 | N45: =IF(J45=L45,1,0) -> 0 | O45: =IF(K45=M45,1,0) -> 0
B46: 19 | D46: =FACTORES!F58 -> 12492.97 | E46: =FACTORES!G58 -> 11090.75 | F46: 18651.73 | G46: 19915.90076 | H46: 19451.73 | I46: 20715.90076 | J46: 22564.0068 | K46: 24030.44488
B47: 20 | D47: =FACTORES!F59 -> 12872.05 | E47: =FACTORES!G59 -> 12869.95 | F47: 19162.13 | G47: 22311.41076 | H47: 19962.13 | I47: 23111.41076 | J47: 23156.0708 | K47: 26809.23648
B48: 21 | D48: =FACTORES!F60 -> 13549.3 | E48: =FACTORES!G60 -> 16688.65 | F48: 20073.98 | G48: 27452.91076 | H48: 20873.98 | I48: 28252.91076 | J48: 24213.8168 | K48: 32773.37648
B49: 22 | D49: =FACTORES!F61 -> 14157.02 | E49: =FACTORES!G61 -> 17495.15 | F49: 20892.21 | G49: 28538.78076 | H49: 21692.21 | I49: 29338.78076 | J49: 25162.9636 | K49: 34032.98568
B50: 23 | D50: =FACTORES!F62 -> 15091.62 | E50: =FACTORES!G62 -> 18332.53 | F50: 22150.56 | G50: 29666.23076 | H50: 22950.56 | I50: 30466.23076 | J50: 26622.6496 | K50: 35340.82768
B51: 24 | D51: =FACTORES!F63 -> 15719.2 | E51: =FACTORES!G63 -> 19205.8 | F51: 22995.53 | G51: 30842.00076 | H51: 23795.53 | I51: 31642.00076 | J51: 27602.8148 | K51: 36704.72088
B52: 25 | D52: =FACTORES!F64 -> 16340.07 | E52: =FACTORES!G64 -> 20106.52 | F52: 23831.47 | G52: 32054.73076 | H52: 24631.47 | I52: 32854.73076 | J52: 28572.5052 | K52: 38111.48768
B53: 26 | D53: =FACTORES!F65 -> 17449.36 | E53: =FACTORES!G65 -> 21069.91 | F53: 25325.02 | G53: 33351.84076 | H53: 26125.02 | I53: 34151.84076 | J53: 30305.0232 | K53: 39616.13528
B54: 27 | D54: =FACTORES!F66 -> 18217.98 | E54: =FACTORES!G66 -> 22043.33 | F54: 26359.89 | G54: 34662.45076 | H54: 27159.89 | I54: 35462.45076 | J54: 31505.4724 | K54: 41136.44288
B55: 28 | D55: =FACTORES!F67 -> 19299.34 | E55: =FACTORES!G67 -> 23090.74 | F55: 27815.83 | G55: 36072.68076 | H55: 28615.83 | I55: 36872.68076 | J55: 33194.3628 | K55: 42772.30968
B56: 29 | D56: =FACTORES!F68 -> 20303.51 | E56: =FACTORES!G68 -> 24156.42 | F56: 29167.85 | G56: 37507.51076 | H56: 29967.85 | I56: 38307.51076 | J56: 34762.706 | K56: 44436.71248
B57: 30 | D57: =FACTORES!F69 -> 21245.76 | E57: =FACTORES!G69 -> 25302.74 | F57: 30436.49 | G57: 39050.92076 | H57: 31236.49 | I57: 39850.92076 | J57: 36234.3284 | K57: 46227.06808
B58: 31 | D58: =FACTORES!F70 -> 22128.25 | E58: =FACTORES!G70 -> 26485.8 | F58: 31624.68 | G58: 40643.79076 | H58: 32424.68 | I58: 41443.79076 | J58: 37612.6288 | K58: 48074.79728
B59: 32 | D59: =FACTORES!F71 -> 23485.96 | E59: =FACTORES!G71 -> 27705.85 | F59: 33452.7 | G59: 42286.47076 | H59: 34252.7 | I59: 43086.47076 | J59: 39733.132 | K59: 49980.30608
B60: 33 | D60: =FACTORES!F72 -> 24336.28 | E60: =FACTORES!G72 -> 28717.54 | F60: 34597.57 | G60: 43648.61076 | H60: 35397.57 | I60: 44448.61076 | J60: 41061.1812 | K60: 51560.38848
B61: 34 | D61: =FACTORES!F73 -> 25725.86 | E61: =FACTORES!G73 -> 30046.13 | F61: 36468.5 | G61: 45437.42076 | H61: 37268.5 | I61: 46237.42076 | J61: 43231.46 | K61: 53635.40808
B62: 35 | D62: =FACTORES!F74 -> 27171.73 | E62: =FACTORES!G74 -> 31443.47 | F62: 38415.22 | G62: 47318.80076 | H62: 39215.22 | I62: 48118.80076 | J62: 45489.6552 | K62: 55817.80888
B63: 36 | D63: =FACTORES!F75 -> 28355.55 | E63: =FACTORES!G75 -> 32887.93 | F63: 40009.11 | G63: 49263.62076 | H63: 40809.11 | I63: 50063.62076 | J63: 47338.5676 | K63: 58073.80008
B64: 37 | D64: =FACTORES!F76 -> 29914.1 | E64: =FACTORES!G76 -> 34446.35 | F64: 42107.54 | G64: 51361.88076 | H64: 42907.54 | I64: 52161.88076 | J64: 49772.7464 | K64: 60507.78168
B65: 38 | D65: =FACTORES!F77 -> 31559.65 | E65: =FACTORES!G77 -> 36011.43 | F65: 44323.11 | G65: 53469.10076 | H65: 45123.11 | I65: 54269.10076 | J65: 52342.8076 | K65: 62952.15688
B66: 39 | D66: =FACTORES!F78 -> 33319.16 | E66: =FACTORES!G78 -> 37665.95 | F66: 46692.12 | G66: 55696.75076 | H66: 47492.12 | I66: 56496.75076 | J66: 55090.8592 | K66: 65536.23088
B67: 40 | D67: =FACTORES!F79 -> 34501.45 | E67: =FACTORES!G79 -> 39386.25 | F67: 48283.95 | G67: 58012.96076 | H67: 49083.95 | I67: 58812.96076 | J67: 56937.382 | K67: 68223.03448
B68: 41 | D68: =FACTORES!F80 -> 35796.97 | E68: =FACTORES!G80 -> 41191.81 | F68: 50028.24 | G68: 60443.96076 | H68: 50828.24 | I68: 61243.96076 | J68: 58960.7584 | K68: 71042.99448
B69: 42 | D69: =FACTORES!F81 -> 37210.04 | E69: =FACTORES!G81 -> 43075.31 | F69: 51930.8 | G69: 62979.91076 | H69: 52730.8 | I69: 63779.91076 | J69: 61167.728 | K69: 73984.69648
B70: 43 | D70: =FACTORES!F82 -> 38739.07 | E70: =FACTORES!G82 -> 45039.42 | F70: 53989.48 | G70: 65624.39076 | H70: 54789.48 | I70: 66424.39076 | J70: 63555.7968 | K70: 77052.29328
B71: 44 | D71: =FACTORES!F83 -> 40430.2 | E71: =FACTORES!G83 -> 47306.18 | F71: 56266.42 | G71: 68676.35076 | H71: 57066.42 | I71: 69476.35076 | J71: 66197.0472 | K71: 80592.56688
B72: 45 | D72: =FACTORES!F84 -> 42269.62 | E72: =FACTORES!G84 -> 49545.61 | F72: 58743.02 | G72: 71691.52076 | H72: 59543.02 | I72: 72491.52076 | J72: 69069.9032 | K72: 84090.16408
B73: 46 | D73: =FACTORES!F85 -> 44301.98 | E73: =FACTORES!G85 -> 51460 | F73: 61479.39 | G73: 74269.05076 | H73: 62279.39 | I73: 75069.05076 | J73: 72244.0924 | K73: 87080.09888
B74: 47 | D74: =FACTORES!F86 -> 46521.21 | E74: =FACTORES!G86 -> 54105.54 | F74: 64467.36 | G74: 77831.01076 | H74: 65267.36 | I74: 78631.01076 | J74: 75710.1376 | K74: 91211.97248
B75: 48 | D75: =FACTORES!F87 -> 48954.3 | E75: =FACTORES!G87 -> 56319.82 | F75: 67743.27 | G75: 80812.32076 | H75: 68543.27 | I75: 81612.32076 | J75: 79510.1932 | K75: 94670.29208
B76: 49 | D76: =FACTORES!F88 -> 51617.53 | E76: =FACTORES!G88 -> 58710.49 | F76: 71329.04 | G76: 84031.11076 | H76: 72129.04 | I76: 84831.11076 | J76: 83669.6864 | K76: 98404.08848
B77: 50 | D77: =FACTORES!F89 -> 54520.54 | E77: =FACTORES!G89 -> 61238.75 | F77: =ROUND(D77*$G$5*$G$6*$G$8*$G$14*$G$15*$G$9,2)+ADIC+DENTAL+DEDXACC+ENFGVES+IKE+CVISION -> 75237.66 | G77: 87435.16076 | H77: 76037.66 | I77: 88235.16076 | J77: 88203.6856 | K77: 102352.7865
B78: 51 | D78: =FACTORES!F90 -> 57645.66 | E78: =FACTORES!G90 -> 63965.15 | F78: 79445.32 | G78: 91105.99076 | H78: 80245.32 | I78: 91905.99076 | J78: 93084.5712 | K78: 106610.9493
B79: 52 | D79: =FACTORES!F91 -> 61053.93 | E79: =FACTORES!G91 -> 66885.55 | F79: 84034.21 | G79: 95038.01076 | H79: 84834.21 | I79: 95838.01076 | J79: 98407.6836 | K79: 111172.0925
B80: 53 | D80: =FACTORES!F92 -> 64779.17 | E80: =FACTORES!G92 -> 70018.19 | F80: 89049.87 | G80: 99255.80076 | H80: 89849.87 | I80: 100055.8008 | J80: 104225.8492 | K80: 116064.7289
B81: 54 | D81: =FACTORES!F93 -> 68811.34 | E81: =FACTORES!G93 -> 73349.4 | F81: 94478.79 | G81: 103740.9408 | H81: 95278.79 | I81: 104540.9408 | J81: 110523.3964 | K81: 121267.4913
B82: 55 | D82: =FACTORES!F94 -> 73108.24 | E82: =FACTORES!G94 -> 76820.07 | F82: 100264.13 | G82: =ROUND(E82*$G$5*$G$6*$G$8*$G$14*$G$15*$G$9,2)+ADIC+DENTAL+DEDXACC+ENFGVES+IKE+CVISION -> 105261.74 | H82: 101064.13 | I82: 106061.74 | J82: 117234.3908 | K82: 123031.6184
B83: 56 | D83: =FACTORES!F95 -> 77791.99 | E83: =FACTORES!G95 -> 81502.92 | F83: 106570.34 | G83: 111566.73 | H83: 107370.34 | I83: 112366.73 | J83: 124549.5944 | K83: 130345.4068
B84: 57 | D84: =FACTORES!F96 -> 82817.28 | E84: =FACTORES!G96 -> 84679.68 | F84: 113336.39 | G84: 115843.92 | H84: 114136.39 | I84: 116643.92 | J84: 132398.2124 | K84: 135306.9472
B85: 58 | D85: =FACTORES!F97 -> 86421.08 | E85: =FACTORES!G97 -> 88106.27 | F85: 118188.54 | G85: 120457.48 | H85: 118988.54 | I85: 121257.48 | J85: 138026.7064 | K85: 140658.6768
B86: 59 | D86: =FACTORES!F98 -> 92087.57 | E86: =FACTORES!G98 -> 89627.1 | F86: 125817.9 | G86: 122505.13 | H86: 126617.9 | I86: 123305.13 | J86: 146876.764 | K86: 143033.9508
B87: 60 | D87: =FACTORES!F99 -> 147743.41 | E87: =FACTORES!G99 -> 146685.87 | F87: 200752.93 | G87: 199329.06 | H87: 201552.93 | I87: 200129.06 | J87: 233801.3988 | K87: 232149.7096
B88: 61 | D88: =FACTORES!F100 -> 155909.95 | E88: =FACTORES!G100 -> 153123.67 | F88: 211748.36 | G88: 207996.91 | H88: 212548.36 | I88: 208796.91 | J88: 246556.0976 | K88: 242204.4156 | L88: =+F88 -> 211748.36
B89: 62 | D89: =FACTORES!F101 -> 164225.43 | E89: =FACTORES!G101 -> 159748.08 | F89: 222944.32 | G89: 216916.01 | H89: 223744.32 | I89: 217716.01 | J89: 259543.4112 | K89: 252550.5716
B90: 63 | D90: =FACTORES!F102 -> 173359.16 | E90: =FACTORES!G102 -> 166714.98 | F90: 235241.97 | G90: 226296.25 | H90: 236041.97 | I90: 227096.25 | J90: 273808.6852 | K90: 263431.65
B91: 64 | D91: =FACTORES!F103 -> 182567.29 | E91: =FACTORES!G103 -> 174120.51 | F91: 247639.8 | G91: 236267.05 | H91: 248439.8 | I91: 237067.05 | J91: 288190.168 | K91: 274997.778
B92: 65 | D92: =FACTORES!F104 -> 192314.04 | E92: =FACTORES!G104 -> 181768.47 | F92: 260762.82 | G92: 246564.27 | H92: =(F92*(1+$I$24))+$I$25 -> 261562.82 | I92: =(G92*(1+$I$24))+$I$25 -> 247364.27 | J92: =H92*(1+$K$25) -> 303412.8712 | K92: =I92*(1+$K$25) -> 286942.5532
B93: =+B92+1 -> 66 | D93: =FACTORES!F105 -> 202516.5 | E93: =FACTORES!G105 -> 189853.51 | F93: 274499.42 | G93: 257449.97 | H93: 275299.42 | I93: 258249.97 | J93: 319347.3272 | K93: 299569.9652
B94: 67 | D94: =FACTORES!F106 -> 213043.91 | E94: =FACTORES!G106 -> 198051.48 | F94: 288673.52 | G94: 268487.71 | H94: 289473.52 | I94: 269287.71 | J94: 335789.2832 | K94: 312373.7436
B95: 68 | D95: =FACTORES!F107 -> 224165.7 | E95: =FACTORES!G107 -> 206723.74 | F95: 303647.9 | G95: 280164.04 | H95: 304447.9 | I95: 280964.04 | J95: 353159.564 | K95: 325918.2864
B96: 69 | D96: =FACTORES!F108 -> 235246.54 | E96: =FACTORES!G108 -> 215895.47 | F96: 318567.14 | G96: 292512.86 | H96: 319367.14 | I96: 293312.86 | J96: 370465.8824 | K96: 340242.9176
B97: 70 | D97: =FACTORES!F109 -> 247049.39 | E97: =FACTORES!G109 -> 225285.84 | F97: 334458.5 | G97: 305156.05 | H97: 335258.5 | I97: 305956.05 | J97: 388899.86 | K97: 354909.018
B98: 71 | D98: =FACTORES!F110 -> 259436.31 | E98: =FACTORES!G110 -> 234748.54 | F98: 351136.25 | G98: 317896.63 | H98: 351936.25 | I98: 318696.63 | J98: 408246.05 | K98: 369688.0908
B99: 72 | D99: =FACTORES!F111 -> 271861.69 | E99: =FACTORES!G111 -> 245053.82 | F99: 367865.78 | G99: 331771.66 | H99: 368665.78 | I99: 332571.66 | J99: 427652.3048 | K99: 385783.1256
B100: 73 | D100: =FACTORES!F112 -> 285004.06 | E100: =FACTORES!G112 -> 255450.39 | F100: 385560.67 | G100: 345769.61 | H100: 386360.67 | I100: 346569.61 | J100: 448178.3772 | K100: 402020.7476
B101: 74 | D101: =FACTORES!F113 -> 298233.63 | E101: =FACTORES!G113 -> 266027.66 | F101: 403372.96 | G101: 360010.84 | H101: 404172.96 | I101: 360810.84 | J101: 468840.6336 | K101: 418540.5744
B102: 75 | D102: =FACTORES!F114 -> 311951.62 | E102: =FACTORES!G114 -> 276904.81 | F102: 421842.86 | G102: 374655.84 | H102: 422642.86 | I102: 375455.84 | J102: 490265.7176 | K102: 435528.7744
B103: 76 | D103: =FACTORES!F115 -> 328083.96 | E103: =FACTORES!G115 -> 289201.17 | F103: 443563.44 | G103: 391211.66 | H103: 444363.44 | I103: 392011.66 | J103: 515461.5904 | K103: 454733.5256
B104: 77 | D104: =FACTORES!F116 -> 344704.18 | E104: =FACTORES!G116 -> 302317.2 | F104: 465940.91 | G104: 408871.08 | H104: 466740.91 | I104: 409671.08 | J104: 541419.4556 | K104: 475218.4528
B105: 78 | D105: =FACTORES!F117 -> 362382.41 | E105: =FACTORES!G117 -> 315922.25 | F105: 489742.88 | G105: 427188.92 | H105: 490542.88 | I105: 427988.92 | J105: 569029.7408 | K105: 496467.1472
B106: 79 | D106: =FACTORES!F118 -> 382447.65 | E106: =FACTORES!G118 -> 329524.95 | F106: 516758.72 | G106: 445503.59 | H106: 517558.72 | I106: 446303.59 | J106: 600368.1152 | K106: 517712.1644
B107: 80 | D107: =FACTORES!F119 -> 401609.84 | E107: =FACTORES!G119 -> 343807.84 | F107: 542558.69 | G107: 464734.08 | H107: 543358.69 | I107: 465534.08 | J107: 630296.0804 | K107: 540019.5328
B108: 81 | D108: =FACTORES!F120 -> 423568.5 | E108: =FACTORES!G120 -> 358214.25 | F108: 572123.83 | G108: 484130.87 | H108: 572923.83 | I108: 484930.87 | J108: 664591.6428 | K108: 562519.8092
B109: 82 | D109: =FACTORES!F121 -> 445959.61 | E109: =FACTORES!G121 -> 372775.03 | F109: 602271.22 | G109: 503735.5 | H109: 603071.22 | I109: 504535.5 | J109: 699562.6152 | K109: 585261.18
B110: 83 | D110: =FACTORES!F122 -> 469514.03 | E110: =FACTORES!G122 -> 389266.63 | F110: 633984.89 | G110: 525939.79 | H110: 634784.89 | I110: 526739.79 | J110: 736350.4724 | K110: 611018.1564
B111: 84 | D111: =FACTORES!F123 -> 495183.54 | E111: =FACTORES!G123 -> 405351.58 | F111: 668546.32 | G111: 547596.57 | H111: =(F111*(1+$I$24))+$I$25 -> 669346.32 | I111: 548396.57 | J111: =H111*(1+$K$25) -> 776441.7312 | K111: 636140.0212
B112: 85 | D112: =FACTORES!$F$124 -> 520599.27 | E112: =FACTORES!$G$124 -> 420904.48 | F112: 702766.06 | G112: 568536.99 | H112: 703566.06 | I112: 569336.99 | J112: 816136.6296 | K112: 660430.9084
B113: 86 | D113: =FACTORES!$F$124 -> 520599.27 | E113: =FACTORES!$G$124 -> 420904.48 | F113: =ROUND(D113*$G$5*$G$6*$G$8*$G$14*$G$15*$G$9,2)+ADIC+DENTAL+DEDXACC+ENFGVES+IKE+CVISION -> 702766.06 | G113: =ROUND(E113*$G$5*$G$6*$G$8*$G$14*$G$15*$G$9,2)+ADIC+DENTAL+DEDXACC+ENFGVES+IKE+CVISION -> 568536.99 | H113: 703566.06 | I113: 569336.99 | J113: 816136.6296 | K113: 660430.9084
B114: 87 | D114: =FACTORES!$F$124 -> 520599.27 | E114: =FACTORES!$G$124 -> 420904.48 | F114: =ROUND(D114*$G$5*$G$6*$G$8*$G$14*$G$15*$G$9,2)+ADIC+DENTAL+DEDXACC+ENFGVES+IKE+CVISION -> 702766.06 | G114: =ROUND(E114*$G$5*$G$6*$G$8*$G$14*$G$15*$G$9,2)+ADIC+DENTAL+DEDXACC+ENFGVES+IKE+CVISION -> 568536.99 | H114: =(F114*(1+$I$24))+$I$25 -> 703566.06 | I114: =(G114*(1+$I$24))+$I$25 -> 569336.99 | J114: =H114*(1+$K$25) -> 816136.6296 | K114: =I114*(1+$K$25) -> 660430.9084
B115: 88 | D115: =FACTORES!$F$124 -> 520599.27 | E115: =FACTORES!$G$124 -> 420904.48 | F115: 702766.06 | G115: 568536.99 | H115: 703566.06 | I115: 569336.99 | J115: 816136.6296 | K115: 660430.9084
B116: 89 | D116: =FACTORES!$F$124 -> 520599.27 | E116: =FACTORES!$G$124 -> 420904.48 | F116: 702766.06 | G116: 568536.99 | H116: 703566.06 | I116: 569336.99 | J116: 816136.6296 | K116: 660430.9084
B117: 90 | D117: =FACTORES!$F$124 -> 520599.27 | E117: =FACTORES!$G$124 -> 420904.48 | F117: 702766.06 | G117: 568536.99 | H117: 703566.06 | I117: 569336.99 | J117: 816136.6296 | K117: 660430.9084
B118: 91 | D118: =FACTORES!$F$124 -> 520599.27 | E118: =FACTORES!$G$124 -> 420904.48 | F118: 702766.06 | G118: 568536.99 | H118: 703566.06 | I118: 569336.99 | J118: 816136.6296 | K118: 660430.9084
B119: 92 | D119: =FACTORES!$F$124 -> 520599.27 | E119: =FACTORES!$G$124 -> 420904.48 | F119: 702766.06 | G119: 568536.99 | H119: 703566.06 | I119: 569336.99 | J119: 816136.6296 | K119: 660430.9084
B120: 93 | D120: =FACTORES!$F$124 -> 520599.27 | E120: =FACTORES!$G$124 -> 420904.48 | F120: 702766.06 | G120: 568536.99 | H120: 703566.06 | I120: 569336.99 | J120: 816136.6296 | K120: 660430.9084
B121: 94 | D121: =FACTORES!$F$124 -> 520599.27 | E121: =FACTORES!$G$124 -> 420904.48 | F121: 702766.06 | G121: 568536.99 | H121: 703566.06 | I121: 569336.99 | J121: 816136.6296 | K121: 660430.9084
B122: 95 | D122: =FACTORES!$F$124 -> 520599.27 | E122: =FACTORES!$G$124 -> 420904.48 | F122: 702766.06 | G122: 568536.99 | H122: 703566.06 | I122: 569336.99 | J122: 816136.6296 | K122: 660430.9084
B123: 96 | D123: =FACTORES!$F$124 -> 520599.27 | E123: =FACTORES!$G$124 -> 420904.48 | F123: 702766.06 | G123: 568536.99 | H123: 703566.06 | I123: 569336.99 | J123: 816136.6296 | K123: 660430.9084
B124: 97 | D124: =FACTORES!$F$124 -> 520599.27 | E124: =FACTORES!$G$124 -> 420904.48 | F124: 702766.06 | G124: 568536.99 | H124: 703566.06 | I124: 569336.99 | J124: 816136.6296 | K124: 660430.9084
B125: 98 | D125: =FACTORES!$F$124 -> 520599.27 | E125: =FACTORES!$G$124 -> 420904.48 | F125: 702766.06 | G125: 568536.99 | H125: 703566.06 | I125: 569336.99 | J125: 816136.6296 | K125: 660430.9084
B126: 99 | D126: =FACTORES!$F$124 -> 520599.27 | E126: =FACTORES!$G$124 -> 420904.48 | F126: 702766.06 | G126: 568536.99 | H126: 703566.06 | I126: 569336.99 | J126: 816136.6296 | K126: 660430.9084
B127: 100 | D127: =FACTORES!$F$124 -> 520599.27 | E127: =FACTORES!$G$124 -> 420904.48 | F127: 702766.06 | G127: 568536.99 | H127: 703566.06 | I127: 569336.99 | J127: 816136.6296 | K127: 660430.9084

Sheet CONYUGE (hidden)
C1: GASTOS MÉDICOS MAYORES INDIVIDUAL/FAMILIAR | I1: REGION COBERTURA BASICA
I2: =IF(ISERROR(VLOOKUP(E3,VALORES!$A$6:$B$11,2,FALSE)),"REGION NO VALIDA",VLOOKUP(E3,VALORES!$A$6:$B$11,2,FALSE)) -> BAJA CALIFORNIA, BAJA CALIFORNIA SUR, MORELOS, QUINTANA ROO, QUERETARO, SAN LUIS POTOSI, SINALOA, SONORA
B3: REGIÓN: | E3: =+COTIZACION!D14 -> 5 | F3: =IF(E3>7,"NO PROCEDE"," ") ->  | G3: FACTORES
B5: SUMA ASEGURADA: | E5: =+COTIZACION!D10 -> 100000000 | G5: =+TITULAR!G5 -> 1.53
B6: DEDUCIBLE: | E6: =+COTIZACION!D11 -> 10000 | G6: =+TITULAR!G6 -> 0.88
B7: COASEGURO: | E7: =+COTIZACION!D12 -> 0.1 | G7: =+TITULAR!G8 -> 1
B8: CATALOGO: | E8: =+COTIZACION!$D$25 -> 0 | G8: =+TITULAR!G9 -> 1
B9: SUMA ASEGURADA PARTO O CESAREA | E9: =+COTIZACION!D17 -> 30000
F10: ZONA | O10: A
B11: EMERGENCIA EXTRANJERO: | E11: =+COTIZACION!D21 -> NO | G11: =+TITULAR!G14 -> 1 | I11: ZONA COBERTURAS ADICIONALES | O11: S
B12: COBER TOTAL EXTRANJERO: | E12: =+COTIZACION!D20 -> NO | F12: =+COTIZACION!D22 -> C | G12: =+TITULAR!G15 -> 1 | H12: =G12*G11*G8*G7*G6*G5 -> 1.3464 | I12: =IF(F11=F12,VLOOKUP(F11,VALORES!$A$31:$B$33,2,FALSE),"ZONAS DIFERENTES") -> ZONAS DIFERENTES | K12: A
K13: B
B14: FORMA DE PAGO: | E14: =+COTIZACION!#REF! ->  | G14: =+TITULAR!G17 -> 0 | K14: C
D18: PRIMA BASE | F18: PRIMA TARIFA | H18: R P FRAC | I18: =G14 -> 0 | J18: PRIMA TOTAL | M18: TARIFA CONYUGUE
D19: REGIONALIZADA | F19: REGIONALIZADA | H19: DER POLIZA | I19: 0 | J19: IVA | K19: =+COTIZACION!D26 -> 0.16 | M19: IVA | N19: =+COTIZACION!D26 -> 0.16
B20: EDAD | D20: HOMBRE | E20: MUJER | F20: HOMBRE | G20: MUJER | H20: HOMBRE | I20: MUJER | J20: HOMBRE | K20: MUJER | M20: HOMBRE | N20: MUJER
B21: 0 | D21: =FACTORES!F39 -> 12378.07 | E21: =FACTORES!G39 -> 12385.76 | F21: =ROUND(D21*$G$5*$G$6*$G$7*$G$11*$G$12*$G$8,2)+ADIC+DENTAL+IKE+CVISION -> 18497.03 | G21: =ROUND(E21*$G$5*$G$6*$G$7*$G$11*$G$12*$G$8,2)+ADIC+DENTAL+IKE+CVISION -> 18507.39 | H21: =(F21*(1+$I$18))+$I$19 -> 18497.03 | I21: =(G21*(1+$I$18))+$I$19 -> 18507.39 | J21: =H21*(1+$K$19) -> 21456.5548 | K21: =I21*(1+$K$19) -> 21468.5724 | M21: =(D21*$G$5*$G$6*$G$7*$G$11*$G$12*$G$8+(ADIC+DENTAL+CVISION+IKE)*(1-DESC))*(1+IVA) -> 21456.5588 | N21: =(E21*$G$5*$G$6*$G$7*$G$11*$G$12*$G$8+(ADIC+DENTAL+CVISION+IKE)*(1-DESC))*(1+IVA) -> 21468.56923
B22: =+B21+1 -> 1 | D22: =FACTORES!F40 -> 12378.07 | E22: =FACTORES!G40 -> 12385.76 | F22: 18497.03 | G22: 18507.39 | H22: =(F22*(1+$I$18))+$I$19 -> 18497.03 | I22: =(G22*(1+$I$18))+$I$19 -> 18507.39 | J22: =H22*(1+$K$19) -> 21456.5548 | K22: =I22*(1+$K$19) -> 21468.5724 | M22: =(D22*$G$5*$G$6*$G$7*$G$11*$G$12*$G$8+(ADIC+DENTAL+CVISION+IKE)*(1-DESC))*(1+IVA) -> 21456.5588 | N22: 21468.56923
B23: =+B22+1 -> 2 | D23: =FACTORES!F41 -> 12378.07 | E23: =FACTORES!G41 -> 12385.76 | F23: 18497.03 | G23: 18507.39 | H23: 18497.03 | I23: 18507.39 | J23: 21456.5548 | K23: 21468.5724 | M23: 21456.5588 | N23: 21468.56923
B24: 3 | D24: =FACTORES!F42 -> 12378.07 | E24: =FACTORES!G42 -> 12385.76 | F24: 18497.03 | G24: 18507.39 | H24: 18497.03 | I24: 18507.39 | J24: 21456.5548 | K24: 21468.5724 | M24: 21456.5588 | N24: 21468.56923
B25: 4 | D25: =FACTORES!F43 -> 12378.07 | E25: =FACTORES!G43 -> 12385.76 | F25: 18497.03 | G25: 18507.39 | H25: 18497.03 | I25: 18507.39 | J25: 21456.5548 | K25: 21468.5724 | M25: 21456.5588 | N25: 21468.56923
B26: 5 | D26: =FACTORES!F44 -> 12378.07 | E26: =FACTORES!G44 -> 12385.76 | F26: 18497.03 | G26: 18507.39 | H26: 18497.03 | I26: 18507.39 | J26: 21456.5548 | K26: 21468.5724 | M26: 21456.5588 | N26: 21468.56923
B27: 6 | D27: =FACTORES!F45 -> 12378.07 | E27: =FACTORES!G45 -> 12385.76 | F27: 18497.03 | G27: 18507.39 | H27: 18497.03 | I27: 18507.39 | J27: 21456.5548 | K27: 21468.5724 | M27: 21456.5588 | N27: 21468.56923
B28: 7 | D28: =FACTORES!F46 -> 12378.07 | E28: =FACTORES!G46 -> 12385.76 | F28: 18497.03 | G28: 18507.39 | H28: 18497.03 | I28: 18507.39 | J28: 21456.5548 | K28: 21468.5724 | M28: 21456.5588 | N28: 21468.56923
B29: 8 | D29: =FACTORES!F47 -> 12378.07 | E29: =FACTORES!G47 -> 12385.76 | F29: 18497.03 | G29: 18507.39 | H29: 18497.03 | I29: 18507.39 | J29: 21456.5548 | K29: 21468.5724 | M29: 21456.5588 | N29: 21468.56923
B30: 9 | D30: =FACTORES!F48 -> 12378.07 | E30: =FACTORES!G48 -> 12385.76 | F30: 18497.03 | G30: 18507.39 | H30: 18497.03 | I30: 18507.39 | J30: 21456.5548 | K30: 21468.5724 | M30: 21456.5588 | N30: 21468.56923
B31: 10 | D31: =FACTORES!F49 -> 12378.07 | E31: =FACTORES!G49 -> 12385.76 | F31: 18497.03 | G31: 18507.39 | H31: 18497.03 | I31: 18507.39 | J31: 21456.5548 | K31: 21468.5724 | M31: 21456.5588 | N31: 21468.56923
B32: 11 | D32: =FACTORES!F50 -> 12306.53 | E32: =FACTORES!G50 -> 12194.75 | F32: 18400.71 | G32: 18250.21 | H32: 18400.71 | I32: 18250.21 | J32: 21344.8236 | K32: 21170.2436 | M32: 21344.82591 | N32: 21170.24522
B33: 12 | D33: =FACTORES!F51 -> 12249.81 | E33: =FACTORES!G51 -> 12361.46 | F33: 18324.34 | G33: 18474.67 | H33: 18324.34 | I33: 18474.67 | J33: 21256.2344 | K33: 21430.6172 | M33: 21256.23925 | N33: 21430.6169
B34: 13 | D34: =FACTORES!F52 -> 12165.24 | E34: =FACTORES!G52 -> 12280.13 | F34: 18210.48 | G34: 18365.17 | H34: 18210.48 | I34: 18365.17 | J34: 21124.1568 | K34: 21303.5972 | M34: 21124.1558 | N34: 21303.59376
B35: 14 | D35: =FACTORES!F53 -> 11849.38 | E35: =FACTORES!G53 -> 12030.09 | F35: 17785.21 | G35: 18028.51 | H35: 17785.21 | I35: 18028.51 | J35: 20630.8436 | K35: 20913.0716 | M35: 20630.83807 | N35: 20913.07528
B36: 15 | D36: =FACTORES!F54 -> 11897.64 | E36: =FACTORES!G54 -> 11834.85 | F36: 17850.18 | G36: 17765.64 | H36: 17850.18 | I36: 17765.64 | J36: 20706.2088 | K36: 20608.1424 | M36: 20706.2117 | N36: 20608.14477
B37: 16 | D37: =FACTORES!F55 -> 11675.15 | E37: =FACTORES!G55 -> 11386.03 | F37: 17550.62 | G37: 17161.35 | H37: 17550.62 | I37: 17161.35 | J37: 20358.7192 | K37: 19907.166 | M37: 20358.72147 | N37: 19907.16692
B38: 17 | D38: =FACTORES!F56 -> 11739.39 | E38: =FACTORES!G56 -> 11566.45 | F38: 17637.11 | G38: 17404.27 | H38: 17637.11 | I38: 17404.27 | J38: 20459.0476 | K38: 20188.9532 | M38: 20459.05305 | N38: 20188.9512
B39: 18 | D39: =FACTORES!F57 -> 12082.8 | E39: =FACTORES!G57 -> 10928.32 | F39: =ROUND(D39*$G$5*$G$6*$G$7*$G$11*$G$12*$G$8,2)+ADIC+DENTAL+IKE+CVISION -> 18099.48 | G39: =ROUND(E39*$G$5*$G$6*$G$7*$G$11*$G$12*$G$8,2)+ADIC+DENTAL+IKE+PARTO+CVISION -> 19697.20076 | H39: 18099.48 | I39: 19697.20076 | J39: 20995.3968 | K39: 22848.75288 | M39: 20995.39903 | N39: 19192.30446
B40: 19 | D40: =FACTORES!F58 -> 12492.97 | E40: =FACTORES!G58 -> 11090.75 | F40: 18651.73 | G40: 19915.90076 | H40: 18651.73 | I40: 19915.90076 | J40: 21636.0068 | K40: 23102.44488 | M40: 21636.01238 | N40: 19445.99153
B41: 20 | D41: =FACTORES!F59 -> 12872.05 | E41: =FACTORES!G59 -> 12869.95 | F41: 19162.13 | G41: 22311.41076 | H41: 19162.13 | I41: 22311.41076 | J41: 22228.0708 | K41: 25881.23648 | M41: 22228.06862 | N41: 22224.78879
B42: 21 | D42: =FACTORES!F60 -> 13549.3 | E42: =FACTORES!G60 -> 16688.65 | F42: 20073.98 | G42: 27452.91076 | H42: 20073.98 | I42: 27452.91076 | J42: 23285.8168 | K42: 31845.37648 | M42: 23285.81392 | N42: 28188.9261
B43: 22 | D43: =FACTORES!F61 -> 14157.02 | E43: =FACTORES!G61 -> 17495.15 | F43: 20892.21 | G43: 28538.78076 | H43: 20892.21 | I43: 28538.78076 | J43: 24234.9636 | K43: 33104.98568 | M43: 24234.9656 | N43: 29448.53715
B44: 23 | D44: =FACTORES!F62 -> 15091.62 | E44: =FACTORES!G62 -> 18332.53 | F44: 22150.56 | G44: 29666.23076 | H44: 22150.56 | I44: 29666.23076 | J44: 25694.6496 | K44: 34412.82768 | M44: 25694.64631 | N44: 30756.37733
B45: 24 | D45: =FACTORES!F63 -> 15719.2 | E45: =FACTORES!G63 -> 19205.8 | F45: 22995.53 | G45: 30842.00076 | H45: 22995.53 | I45: 30842.00076 | J45: 26674.8148 | K45: 35776.72088 | M45: 26674.81582 | N45: 32120.27138
B46: 25 | D46: =FACTORES!F64 -> 16340.07 | E46: =FACTORES!G64 -> 20106.52 | F46: 23831.47 | G46: 32054.73076 | H46: 23831.47 | I46: 32054.73076 | J46: 27644.5052 | K46: 37183.48768 | M46: 27644.50549 | N46: 33527.03749
B47: 26 | D47: =FACTORES!F65 -> 17449.36 | E47: =FACTORES!G65 -> 21069.91 | F47: 25325.02 | G47: 33351.84076 | H47: 25325.02 | I47: 33351.84076 | J47: 29377.0232 | K47: 38688.13528 | M47: 29377.02123 | N47: 35031.68312
B48: 27 | D48: =FACTORES!F66 -> 18217.98 | E48: =FACTORES!G66 -> 22043.33 | F48: 26359.89 | G48: 34662.45076 | H48: 26359.89 | I48: 34662.45076 | J48: 30577.4724 | K48: 40208.44288 | M48: 30577.4704 | N48: 36551.99383
B49: 28 | D49: =FACTORES!F67 -> 19299.34 | E49: =FACTORES!G67 -> 23090.74 | F49: 27815.83 | G49: 36072.68076 | H49: 27815.83 | I49: 36072.68076 | J49: 32266.3628 | K49: 41844.30968 | M49: 32266.3644 | N49: 38187.86391
B50: 29 | D50: =FACTORES!F68 -> 20303.51 | E50: =FACTORES!G68 -> 24156.42 | F50: 29167.85 | G50: 37507.51076 | H50: 29167.85 | I50: 37507.51076 | J50: 33834.706 | K50: 43508.71248 | M50: 33834.7012 | N50: 39852.26851
B51: 30 | D51: =FACTORES!F69 -> 21245.76 | E51: =FACTORES!G69 -> 25302.74 | F51: 30436.49 | G51: 39050.92076 | H51: 30436.49 | I51: 39050.92076 | J51: 35306.3284 | K51: 45299.06808 | M51: 35306.32987 | N51: 41642.6186
B52: 31 | D52: =FACTORES!F70 -> 22128.25 | E52: =FACTORES!G70 -> 26485.8 | F52: 31624.68 | G52: 40643.79076 | H52: 31624.68 | I52: 40643.79076 | J52: 36684.6288 | K52: 47146.79728 | M52: 36684.62393 | N52: 43490.3501
B53: 32 | D53: =FACTORES!F71 -> 23485.96 | E53: =FACTORES!G71 -> 27705.85 | F53: 33452.7 | G53: 42286.47076 | H53: 33452.7 | I53: 42286.47076 | J53: 38805.132 | K53: 49052.30608 | M53: =(D53*$G$5*$G$6*$G$7*$G$11*$G$12*$G$8+(ADIC+DENTAL+CVISION+IKE)*(1-DESC))*(1+IVA) -> 38805.12799 | N53: =(E53*$G$5*$G$6*$G$7*$G$11*$G$12*$G$8+(ADIC+DENTAL+CVISION+IKE)*(1-DESC))*(1+IVA) -> 45395.85347
B54: 33 | D54: =FACTORES!F72 -> 24336.28 | E54: =FACTORES!G72 -> 28717.54 | F54: 34597.57 | G54: 43648.61076 | H54: 34597.57 | I54: 43648.61076 | J54: 40133.1812 | K54: 50632.38848 | M54: 40133.17817 | N54: 46975.93519
B55: 34 | D55: =FACTORES!F73 -> 25725.86 | E55: =FACTORES!G73 -> 30046.13 | F55: 36468.5 | G55: 45437.42076 | H55: 36468.5 | I55: 45437.42076 | J55: 42303.46 | K55: 52707.40808 | M55: 42303.45757 | N55: 49050.95894
B56: 35 | D56: =FACTORES!F74 -> 27171.73 | E56: =FACTORES!G74 -> 31443.47 | F56: 38415.22 | G56: 47318.80076 | H56: 38415.22 | I56: 47318.80076 | J56: 44561.6552 | K56: 54889.80888 | M56: 44561.65204 | N56: 51233.35809
B57: 36 | D57: =FACTORES!F75 -> 28355.55 | E57: =FACTORES!G75 -> 32887.93 | F57: 40009.11 | G57: 49263.62076 | H57: 40009.11 | I57: 49263.62076 | J57: 46410.5676 | K57: 57145.80008 | M57: 46410.57052 | N57: 53489.35038
B58: 37 | D58: =FACTORES!F76 -> 29914.1 | E58: =FACTORES!G76 -> 34446.35 | F58: 42107.54 | G58: 51361.88076 | H58: 42107.54 | I58: 51361.88076 | J58: 48844.7464 | K58: 59579.78168 | M58: 48844.75132 | N58: 55923.32814
B59: 38 | D59: =FACTORES!F77 -> 31559.65 | E59: =FACTORES!G77 -> 36011.43 | F59: 44323.11 | G59: 53469.10076 | H59: 44323.11 | I59: 53469.10076 | J59: 51414.8076 | K59: 62024.15688 | M59: 51414.8108 | N59: 58367.70765
B60: 39 | D60: =FACTORES!F78 -> 33319.16 | E60: =FACTORES!G78 -> 37665.95 | F60: 46692.12 | G60: 55696.75076 | H60: 46692.12 | I60: 55696.75076 | J60: 54162.8592 | K60: 64608.23088 | M60: 54162.85575 | N60: 60951.77669
B61: 40 | D61: =FACTORES!F79 -> 34501.45 | E61: =FACTORES!G79 -> 39386.25 | F61: 48283.95 | G61: 58012.96076 | H61: 48283.95 | I61: 58012.96076 | J61: 56009.382 | K61: 67295.03448 | M61: 56009.38464 | N61: 63638.58252
B62: 41 | D62: =FACTORES!F80 -> 35796.97 | E62: =FACTORES!G80 -> 41191.81 | F62: 50028.24 | G62: 60443.96076 | H62: 50028.24 | I62: 60443.96076 | J62: 58032.7584 | K62: 70114.99448 | M62: 58032.75887 | N62: 66458.54946
B63: 42 | D63: =FACTORES!F81 -> 37210.04 | E63: =FACTORES!G81 -> 43075.31 | F63: 51930.8 | G63: 62979.91076 | H63: 51930.8 | I63: 62979.91076 | J63: 60239.728 | K63: 73056.69648 | M63: 60239.72551 | N63: 69400.24497
B64: 43 | D64: =FACTORES!F82 -> 38739.07 | E64: =FACTORES!G82 -> 45039.42 | F64: 53989.48 | G64: 65624.39076 | H64: 53989.48 | I64: 65624.39076 | J64: 62627.7968 | K64: 76124.29328 | M64: 62627.80126 | N64: 72467.8391
B65: 44 | D65: =FACTORES!F83 -> 40430.2 | E65: =FACTORES!G83 -> 47306.18 | F65: 56266.42 | G65: 68676.35076 | H65: 56266.42 | I65: 68676.35076 | J65: 65269.0472 | K65: 79664.56688 | M65: 65269.04868 | N65: 76008.11927
B66: 45 | D66: =FACTORES!F84 -> 42269.62 | E66: =FACTORES!G84 -> 49545.61 | F66: 58743.02 | G66: 71691.52076 | H66: 58743.02 | I66: 71691.52076 | J66: 68141.9032 | K66: 83162.16408 | M66: 68141.89899 | N66: 79505.71479
B67: 46 | D67: =FACTORES!F85 -> 44301.98 | E67: =FACTORES!G85 -> 51460 | F67: 61479.39 | G67: 74269.05076 | H67: 61479.39 | I67: 74269.05076 | J67: 71316.0924 | K67: 86152.09888 | M67: 71316.08761 | N67: 82495.65504
B68: 47 | D68: =FACTORES!F86 -> 46521.21 | E68: =FACTORES!G86 -> 54105.54 | F68: 64467.36 | G68: 77831.01076 | H68: 64467.36 | I68: 77831.01076 | J68: 74782.1376 | K68: 90283.97248 | M68: 74782.13429 | N68: 86627.5229
B69: 48 | D69: =FACTORES!F87 -> 48954.3 | E69: =FACTORES!G87 -> 56319.82 | F69: 67743.27 | G69: 80812.32076 | H69: 67743.27 | I69: 80812.32076 | J69: 78582.1932 | K69: 93742.29208 | M69: 78582.19264 | N69: 90085.83855
B70: 49 | D70: =FACTORES!F88 -> 51617.53 | E70: =FACTORES!G88 -> 58710.49 | F70: 71329.04 | G70: 84031.11076 | H70: 71329.04 | I70: 84031.11076 | J70: 82741.6864 | K70: 97476.08848 | M70: 82741.68917 | N70: 93819.64433
B71: 50 | D71: =FACTORES!F89 -> 54520.54 | E71: =FACTORES!G89 -> 61238.75 | F71: =ROUND(D71*$G$5*$G$6*$G$7*$G$11*$G$12*$G$8,2)+ADIC+DENTAL+IKE+CVISION -> 75237.66 | G71: 87435.16076 | H71: 75237.66 | I71: 87435.16076 | J71: 87275.6856 | K71: 101424.7865 | M71: 87275.67986 | N71: 97768.34148
B72: 51 | D72: =FACTORES!F90 -> 57645.66 | E72: =FACTORES!G90 -> 63965.15 | F72: 79445.32 | G72: 91105.99076 | H72: 79445.32 | I72: 91105.99076 | J72: 92156.5712 | K72: 105682.9493 | M72: 92156.56728 | N72: 102026.4984
B73: 52 | D73: =FACTORES!F91 -> 61053.93 | E73: =FACTORES!G91 -> 66885.55 | F73: 84034.21 | G73: 95038.01076 | H73: 84034.21 | I73: 95038.01076 | J73: 97479.6836 | K73: 110244.0925 | M73: 97479.68517 | N73: 106587.6492
B74: 53 | D74: =FACTORES!F92 -> 64779.17 | E74: =FACTORES!G92 -> 70018.19 | F74: 89049.87 | G74: 99255.80076 | H74: 89049.87 | I74: 99255.80076 | J74: 103297.8492 | K74: 115136.7289 | M74: 103297.8544 | N74: 111480.2816
B75: 54 | D75: =FACTORES!F93 -> 68811.34 | E75: =FACTORES!G93 -> 73349.4 | F75: 94478.79 | G75: 103740.9408 | H75: 94478.79 | I75: 103740.9408 | J75: 109595.3964 | K75: 120339.4913 | M75: 109595.3943 | N75: 116683.0453
B76: 55 | D76: =FACTORES!F94 -> 73108.24 | E76: =FACTORES!G94 -> 76820.07 | F76: 100264.13 | G76: =ROUND(E76*$G$5*$G$6*$G$7*$G$11*$G$12*$G$8,2)+ADIC+DENTAL+IKE+CVISION -> 105261.74 | H76: 100264.13 | I76: 105261.74 | J76: 116306.3908 | K76: 122103.6184 | M76: 116306.3958 | N76: 122103.621
B77: 56 | D77: =FACTORES!F95 -> 77791.99 | E77: =FACTORES!G95 -> 81502.92 | F77: 106570.34 | G77: 111566.73 | H77: 106570.34 | I77: 111566.73 | J77: 123621.5944 | K77: 129417.4068 | M77: 123621.589 | N77: 129417.4085
B78: 57 | D78: =FACTORES!F96 -> 82817.28 | E78: =FACTORES!G96 -> 84679.68 | F78: 113336.39 | G78: 115843.92 | H78: 113336.39 | I78: 115843.92 | J78: 131470.2124 | K78: 134378.9472 | M78: 131470.2075 | N78: 134378.9485
B79: 58 | D79: =FACTORES!F97 -> 86421.08 | E79: =FACTORES!G97 -> 88106.27 | F79: 118188.54 | G79: 120457.48 | H79: 118188.54 | I79: 120457.48 | J79: 137098.7064 | K79: 139730.6768 | M79: 137098.7088 | N79: 139730.679
B80: 59 | D80: =FACTORES!F98 -> 92087.57 | E80: =FACTORES!G98 -> 89627.1 | F80: 125817.9 | G80: 122505.13 | H80: 125817.9 | I80: 122505.13 | J80: 145948.764 | K80: 142105.9508 | M80: 145948.7689 | N80: 142105.9478
B81: 60 | D81: =FACTORES!F99 -> 147743.41 | E81: =FACTORES!G99 -> 146685.87 | F81: 200752.93 | G81: 199329.06 | H81: 200752.93 | I81: 199329.06 | J81: 232873.3988 | K81: 231221.7096 | M81: 232873.3956 | N81: 231221.7042
B82: 61 | D82: =FACTORES!F100 -> 155909.95 | E82: =FACTORES!G100 -> 153123.67 | F82: 211748.36 | G82: 207996.91 | H82: 211748.36 | I82: 207996.91 | J82: 245628.0976 | K82: 241276.4156 | M82: 245628.0937 | N82: 241276.4148
B83: 62 | D83: =FACTORES!F101 -> 164225.43 | E83: =FACTORES!G101 -> 159748.08 | F83: 222944.32 | G83: 216916.01 | H83: 222944.32 | I83: 216916.01 | J83: 258615.4112 | K83: 251622.5716 | M83: 258615.41 | N83: 251622.5773
B84: 63 | D84: =FACTORES!F102 -> 173359.16 | E84: =FACTORES!G102 -> 166714.98 | F84: 235241.97 | G84: 226296.25 | H84: 235241.97 | I84: 226296.25 | J84: 272880.6852 | K84: 262503.65 | M84: 272880.6887 | N84: 262503.6489
B85: 64 | D85: =FACTORES!F103 -> 182567.29 | E85: =FACTORES!G103 -> 174120.51 | F85: 247639.8 | G85: 236267.05 | H85: 247639.8 | I85: 236267.05 | J85: 287262.168 | K85: 274069.778 | M85: =(D85*$G$5*$G$6*$G$7*$G$11*$G$12*$G$8+(ADIC+DENTAL+CVISION+IKE)*(1-DESC))*(1+IVA) -> 287262.1671 | N85: =(E85*$G$5*$G$6*$G$7*$G$11*$G$12*$G$8+(ADIC+DENTAL+CVISION+IKE)*(1-DESC))*(1+IVA) -> 274069.7834
B86: 65 | D86: =FACTORES!F104 -> 192314.04 | E86: =FACTORES!G104 -> 181768.47 | F86: 260762.82 | G86: 246564.27 | H86: =(F86*(1+$I$18))+$I$19 -> 260762.82 | I86: =(G86*(1+$I$18))+$I$19 -> 246564.27 | J86: =H86*(1+$K$19) -> 302484.8712 | K86: =I86*(1+$K$19) -> 286014.5532 | M86: 302484.8752 | N86: 286014.5509
B87: =+B86+1 -> 66 | D87: =FACTORES!F105 -> 202516.5 | E87: =FACTORES!G105 -> 189853.51 | F87: 274499.42 | G87: 257449.97 | H87: 274499.42 | I87: 257449.97 | J87: 318419.3272 | K87: 298641.9652 | M87: 318419.3221 | N87: 298641.9604
B88: 67 | D88: =FACTORES!F106 -> 213043.91 | E88: =FACTORES!G106 -> 198051.48 | F88: 288673.52 | G88: 268487.71 | H88: 288673.52 | I88: 268487.71 | J88: 334861.2832 | K88: 311445.7436 | M88: 334861.2837 | N88: 311445.7467
B89: 68 | D89: =FACTORES!F107 -> 224165.7 | E89: =FACTORES!G107 -> 206723.74 | F89: 303647.9 | G89: 280164.04 | H89: 303647.9 | I89: 280164.04 | J89: 352231.564 | K89: 324990.2864 | M89: 352231.5622 | N89: 324990.2905
B90: 69 | D90: =FACTORES!F108 -> 235246.54 | E90: =FACTORES!G108 -> 215895.47 | F90: 318567.14 | G90: 292512.86 | H90: 318567.14 | I90: 292512.86 | J90: 369537.8824 | K90: 339314.9176 | M90: 369537.8841 | N90: 339314.9185
B91: 70 | D91: =FACTORES!F109 -> 247049.39 | E91: =FACTORES!G109 -> 225285.84 | F91: 334458.5 | G91: 305156.05 | H91: 334458.5 | I91: 305156.05 | J91: 387971.86 | K91: 353981.018 | M91: 387971.8585 | N91: 353981.0238
B92: 71 | D92: =FACTORES!F110 -> 259436.31 | E92: =FACTORES!G110 -> 234748.54 | F92: 351136.25 | G92: 317896.63 | H92: 351136.25 | I92: 317896.63 | J92: 407318.05 | K92: 368760.0908 | M92: 407318.0474 | N92: 368760.0957
B93: 72 | D93: =FACTORES!F111 -> 271861.69 | E93: =FACTORES!G111 -> 245053.82 | F93: 367865.78 | G93: 331771.66 | H93: 367865.78 | I93: 331771.66 | J93: 426724.3048 | K93: 384855.1256 | M93: 426724.3041 | N93: 384855.1294
B94: 73 | D94: =FACTORES!F112 -> 285004.06 | E94: =FACTORES!G112 -> 255450.39 | F94: 385560.67 | G94: 345769.61 | H94: 385560.67 | I94: 345769.61 | J94: 447250.3772 | K94: 401092.7476 | M94: 447250.373 | N94: 401092.7419
B95: 74 | D95: =FACTORES!F113 -> 298233.63 | E95: =FACTORES!G113 -> 266027.66 | F95: 403372.96 | G95: 360010.84 | H95: 403372.96 | I95: 360010.84 | J95: 467912.6336 | K95: 417612.5744 | M95: 467912.6329 | N95: 417612.5761
B96: 75 | D96: =FACTORES!F114 -> 311951.62 | E96: =FACTORES!G114 -> 276904.81 | F96: 421842.86 | G96: 374655.84 | H96: 421842.86 | I96: 374655.84 | J96: 489337.7176 | K96: 434600.7744 | M96: 489337.719 | N96: 434600.77
B97: 76 | D97: =FACTORES!F115 -> 328083.96 | E97: =FACTORES!G115 -> 289201.17 | F97: 443563.44 | G97: 391211.66 | H97: 443563.44 | I97: 391211.66 | J97: 514533.5904 | K97: 453805.5256 | M97: 514533.5947 | N97: 453805.5201
B98: 77 | D98: =FACTORES!F116 -> 344704.18 | E98: =FACTORES!G116 -> 302317.2 | F98: 465940.91 | G98: 408871.08 | H98: 465940.91 | I98: 408871.08 | J98: 540491.4556 | K98: 474290.4528 | M98: 540491.4532 | N98: 474290.4506
B99: 78 | D99: =FACTORES!F117 -> 362382.41 | E99: =FACTORES!G117 -> 315922.25 | F99: 489742.88 | G99: 427188.92 | H99: 489742.88 | I99: 427188.92 | J99: 568101.7408 | K99: 495539.1472 | M99: 568101.7371 | N99: 495539.1442
B100: 79 | D100: =FACTORES!F118 -> 382447.65 | E100: =FACTORES!G118 -> 329524.95 | F100: 516758.72 | G100: 445503.59 | H100: 516758.72 | I100: 445503.59 | J100: 599440.1152 | K100: 516784.1644 | M100: 599440.1105 | N100: 516784.1675
B101: 80 | D101: =FACTORES!F119 -> 401609.84 | E101: =FACTORES!G119 -> 343807.84 | F101: 542558.69 | G101: 464734.08 | H101: 542558.69 | I101: 464734.08 | J101: 629368.0804 | K101: 539091.5328 | M101: 629368.0787 | N101: 539091.5279
B102: 81 | D102: =FACTORES!F120 -> 423568.5 | E102: =FACTORES!G120 -> 358214.25 | F102: 572123.83 | G102: 484130.87 | H102: 572123.83 | I102: 484130.87 | J102: 663663.6428 | K102: 561591.8092 | M102: 663663.6409 | N102: 561591.8048
B103: 82 | D103: =FACTORES!F121 -> 445959.61 | E103: =FACTORES!G121 -> 372775.03 | F103: 602271.22 | G103: 503735.5 | H103: 602271.22 | I103: 503735.5 | J103: 698634.6152 | K103: 584333.18 | M103: 698634.6139 | N103: 584333.1805
B104: 83 | D104: =FACTORES!F122 -> 469514.03 | E104: =FACTORES!G122 -> 389266.63 | F104: 633984.89 | G104: 525939.79 | H104: 633984.89 | I104: 525939.79 | J104: 735422.4724 | K104: 610090.1564 | M104: 735422.4724 | N104: 610090.1571
B105: 84 | D105: =FACTORES!F123 -> 495183.54 | E105: =FACTORES!G123 -> 405351.58 | F105: 668546.32 | G105: 547596.57 | H105: =(F105*(1+$I$18))+$I$19 -> 668546.32 | I105: 547596.57 | J105: =H105*(1+$K$19) -> 775513.7312 | K105: 635212.0212 | M105: =(D105*$G$5*$G$6*$G$7*$G$11*$G$12*$G$8+(ADIC+DENTAL+CVISION+IKE)*(1-DESC))*(1+IVA) -> 775513.7292 | N105: =(E105*$G$5*$G$6*$G$7*$G$11*$G$12*$G$8+(ADIC+DENTAL+CVISION+IKE)*(1-DESC))*(1+IVA) -> 635212.0181
B106: 85 | D106: =FACTORES!$F$124 -> 520599.27 | E106: =FACTORES!$G$124 -> 420904.48 | F106: 702766.06 | G106: 568536.99 | H106: 702766.06 | I106: 568536.99 | J106: 815208.6296 | K106: 659502.9084 | M106: =(D106*$G$5*$G$6*$G$7*$G$11*$G$12*$G$8+(ADIC+DENTAL+CVISION+IKE)*(1-DESC))*(1+IVA) -> 815208.6263 | N106: =(E106*$G$5*$G$6*$G$7*$G$11*$G$12*$G$8+(ADIC+DENTAL+CVISION+IKE)*(1-DESC))*(1+IVA) -> 659502.9106
B107: 86 | D107: =FACTORES!$F$124 -> 520599.27 | E107: =FACTORES!$G$124 -> 420904.48 | F107: =ROUND(D107*$G$5*$G$6*$G$7*$G$11*$G$12*$G$8,2)+ADIC+DENTAL+IKE+CVISION -> 702766.06 | G107: =ROUND(E107*$G$5*$G$6*$G$7*$G$11*$G$12*$G$8,2)+ADIC+DENTAL+IKE+CVISION -> 568536.99 | H107: 702766.06 | I107: 568536.99 | J107: 815208.6296 | K107: 659502.9084
B108: 87 | D108: =FACTORES!$F$124 -> 520599.27 | E108: =FACTORES!$G$124 -> 420904.48 | F108: =ROUND(D108*$G$5*$G$6*$G$7*$G$11*$G$12*$G$8,2)+ADIC+DENTAL+IKE+CVISION -> 702766.06 | G108: =ROUND(E108*$G$5*$G$6*$G$7*$G$11*$G$12*$G$8,2)+ADIC+DENTAL+IKE+CVISION -> 568536.99 | H108: =(F108*(1+$I$18))+$I$19 -> 702766.06 | I108: =(G108*(1+$I$18))+$I$19 -> 568536.99 | J108: =H108*(1+$K$19) -> 815208.6296 | K108: =I108*(1+$K$19) -> 659502.9084
B109: 88 | D109: =FACTORES!$F$124 -> 520599.27 | E109: =FACTORES!$G$124 -> 420904.48 | F109: 702766.06 | G109: 568536.99 | H109: 702766.06 | I109: 568536.99 | J109: 815208.6296 | K109: 659502.9084
B110: 89 | D110: =FACTORES!$F$124 -> 520599.27 | E110: =FACTORES!$G$124 -> 420904.48 | F110: 702766.06 | G110: 568536.99 | H110: 702766.06 | I110: 568536.99 | J110: 815208.6296 | K110: 659502.9084
B111: 90 | D111: =FACTORES!$F$124 -> 520599.27 | E111: =FACTORES!$G$124 -> 420904.48 | F111: 702766.06 | G111: 568536.99 | H111: 702766.06 | I111: 568536.99 | J111: 815208.6296 | K111: 659502.9084
B112: 91 | D112: =FACTORES!$F$124 -> 520599.27 | E112: =FACTORES!$G$124 -> 420904.48 | F112: 702766.06 | G112: 568536.99 | H112: 702766.06 | I112: 568536.99 | J112: 815208.6296 | K112: 659502.9084
B113: 92 | D113: =FACTORES!$F$124 -> 520599.27 | E113: =FACTORES!$G$124 -> 420904.48 | F113: 702766.06 | G113: 568536.99 | H113: 702766.06 | I113: 568536.99 | J113: 815208.6296 | K113: 659502.9084
B114: 93 | D114: =FACTORES!$F$124 -> 520599.27 | E114: =FACTORES!$G$124 -> 420904.48 | F114: 702766.06 | G114: 568536.99 | H114: 702766.06 | I114: 568536.99 | J114: 815208.6296 | K114: 659502.9084
B115: 94 | D115: =FACTORES!$F$124 -> 520599.27 | E115: =FACTORES!$G$124 -> 420904.48 | F115: 702766.06 | G115: 568536.99 | H115: 702766.06 | I115: 568536.99 | J115: 815208.6296 | K115: 659502.9084
B116: 95 | D116: =FACTORES!$F$124 -> 520599.27 | E116: =FACTORES!$G$124 -> 420904.48 | F116: 702766.06 | G116: 568536.99 | H116: 702766.06 | I116: 568536.99 | J116: 815208.6296 | K116: 659502.9084
B117: 96 | D117: =FACTORES!$F$124 -> 520599.27 | E117: =FACTORES!$G$124 -> 420904.48 | F117: 702766.06 | G117: 568536.99 | H117: 702766.06 | I117: 568536.99 | J117: 815208.6296 | K117: 659502.9084
B118: 97 | D118: =FACTORES!$F$124 -> 520599.27 | E118: =FACTORES!$G$124 -> 420904.48 | F118: 702766.06 | G118: 568536.99 | H118: 702766.06 | I118: 568536.99 | J118: 815208.6296 | K118: 659502.9084
B119: 98 | D119: =FACTORES!$F$124 -> 520599.27 | E119: =FACTORES!$G$124 -> 420904.48 | F119: 702766.06 | G119: 568536.99 | H119: 702766.06 | I119: 568536.99 | J119: 815208.6296 | K119: 659502.9084
B120: 99 | D120: =FACTORES!$F$124 -> 520599.27 | E120: =FACTORES!$G$124 -> 420904.48 | F120: 702766.06 | G120: 568536.99 | H120: 702766.06 | I120: 568536.99 | J120: 815208.6296 | K120: 659502.9084
B121: 100 | D121: =FACTORES!$F$124 -> 520599.27 | E121: =FACTORES!$G$124 -> 420904.48 | F121: 702766.06 | G121: 568536.99 | H121: 702766.06 | I121: 568536.99 | J121: 815208.6296 | K121: 659502.9084

Sheet DEPENDIENTE (hidden)
C1: GASTOS MÉDICOS MAYORES INDIVIDUAL/FAMILIAR | I1: REGION COBERTURA BASICA
I2: =IF(ISERROR(VLOOKUP(E3,VALORES!$A$6:$B$11,2,FALSE)),"REGION NO VALIDA",VLOOKUP(E3,VALORES!$A$6:$B$11,2,FALSE)) -> BAJA CALIFORNIA, BAJA CALIFORNIA SUR, MORELOS, QUINTANA ROO, QUERETARO, SAN LUIS POTOSI, SINALOA, SONORA
B3: REGIÓN: | E3: =+COTIZACION!D14 -> 5 | F3: =IF(E3>7,"NO PROCEDE"," ") ->  | G3: FACTORES
B5: SUMA ASEGURADA: | E5: =+COTIZACION!D10 -> 100000000 | G5: =+TITULAR!G5 -> 1.53
B6: DEDUCIBLE: | E6: =+COTIZACION!D11 -> 10000 | G6: =+TITULAR!G6 -> 0.88
B7: COASEGURO: | E7: =+COTIZACION!D12 -> 0.1 | G7: =+TITULAR!G8 -> 1
B8: CATALOGO: | E8: =COTIZACION!$D$25 -> 0 | G8: =+TITULAR!G9 -> 1
F9: ZONA | S9: A
B10: EMERGENCIA EXTRANJERO: | E10: =+COTIZACION!D21 -> NO | G10: =+TITULAR!G14 -> 1 | I10: ZONA COBERTURAS ADICIONALES | S10: S
B11: COBER TOTAL EXTRANJERO: | E11: =+COTIZACION!D20 -> NO | F11: =+COTIZACION!D22 -> C | G11: =+TITULAR!G15 -> 1 | I11: =IF(F10=F11,VLOOKUP(F10,VALORES!$A$31:$B$33,2,FALSE),"ZONAS DIFERENTES") -> ZONAS DIFERENTES | K11: A
K12: B
B13: FORMA DE PAGO: | E13: =+COTIZACION!#REF! ->  | G13: =+TITULAR!G17 -> 0 | K13: C
D18: PRIMA BASE | F18: PRIMA TARIFA | H18: R P FRAC | I18: =G13 -> 0 | J18: PRIMA TOTAL
D19: REGIONALIZADA | F19: REGIONALIZADA | H19: DER POLIZA | I19: 0 | J19: IVA | K19: =+COTIZACION!D26 -> 0.16
B20: EDAD | D20: HOMBRE | E20: MUJER | F20: HOMBRE | G20: MUJER | H20: HOMBRE | I20: MUJER | J20: HOMBRE | K20: MUJER
B21: 0 | D21: =FACTORES!F39 -> 12378.07 | E21: =FACTORES!G39 -> 12385.76 | F21: =ROUND(D21*$G$5*$G$6*$G$7*$G$10*$G$11*$G$8,2)+ADIC+DENTAL+IKE+CVISION -> 18497.03 | G21: =ROUND(E21*$G$5*$G$6*$G$7*$G$10*$G$11*$G$8,2)+ADIC+DENTAL+IKE+CVISION -> 18507.39 | H21: =(F21*(1+$I$18))+$I$19 -> 18497.03 | I21: =(G21*(1+$I$18))+$I$19 -> 18507.39 | J21: =H21*(1+$K$19) -> 21456.5548 | K21: =I21*(1+$K$19) -> 21468.5724
B22: =+B21+1 -> 1 | D22: =FACTORES!F40 -> 12378.07 | E22: =FACTORES!G40 -> 12385.76 | F22: 18497.03 | G22: 18507.39 | H22: =(F22*(1+$I$18))+$I$19 -> 18497.03 | I22: =(G22*(1+$I$18))+$I$19 -> 18507.39 | J22: =H22*(1+$K$19) -> 21456.5548 | K22: =I22*(1+$K$19) -> 21468.5724
B23: =+B22+1 -> 2 | D23: =FACTORES!F41 -> 12378.07 | E23: =FACTORES!G41 -> 12385.76 | F23: 18497.03 | G23: 18507.39 | H23: 18497.03 | I23: 18507.39 | J23: 21456.5548 | K23: 21468.5724
B24: 3 | D24: =FACTORES!F42 -> 12378.07 | E24: =FACTORES!G42 -> 12385.76 | F24: 18497.03 | G24: 18507.39 | H24: 18497.03 | I24: 18507.39 | J24: 21456.5548 | K24: 21468.5724
B25: 4 | D25: =FACTORES!F43 -> 12378.07 | E25: =FACTORES!G43 -> 12385.76 | F25: 18497.03 | G25: 18507.39 | H25: 18497.03 | I25: 18507.39 | J25: 21456.5548 | K25: 21468.5724
B26: 5 | D26: =FACTORES!F44 -> 12378.07 | E26: =FACTORES!G44 -> 12385.76 | F26: 18497.03 | G26: 18507.39 | H26: 18497.03 | I26: 18507.39 | J26: 21456.5548 | K26: 21468.5724
B27: 6 | D27: =FACTORES!F45 -> 12378.07 | E27: =FACTORES!G45 -> 12385.76 | F27: 18497.03 | G27: 18507.39 | H27: 18497.03 | I27: 18507.39 | J27: 21456.5548 | K27: 21468.5724
B28: 7 | D28: =FACTORES!F46 -> 12378.07 | E28: =FACTORES!G46 -> 12385.76 | F28: 18497.03 | G28: 18507.39 | H28: 18497.03 | I28: 18507.39 | J28: 21456.5548 | K28: 21468.5724
B29: 8 | D29: =FACTORES!F47 -> 12378.07 | E29: =FACTORES!G47 -> 12385.76 | F29: 18497.03 | G29: 18507.39 | H29: 18497.03 | I29: 18507.39 | J29: 21456.5548 | K29: 21468.5724
B30: 9 | D30: =FACTORES!F48 -> 12378.07 | E30: =FACTORES!G48 -> 12385.76 | F30: 18497.03 | G30: 18507.39 | H30: 18497.03 | I30: 18507.39 | J30: 21456.5548 | K30: 21468.5724
B31: 10 | D31: =FACTORES!F49 -> 12378.07 | E31: =FACTORES!G49 -> 12385.76 | F31: 18497.03 | G31: 18507.39 | H31: 18497.03 | I31: 18507.39 | J31: 21456.5548 | K31: 21468.5724
B32: 11 | D32: =FACTORES!F50 -> 12306.53 | E32: =FACTORES!G50 -> 12194.75 | F32: 18400.71 | G32: 18250.21 | H32: 18400.71 | I32: 18250.21 | J32: 21344.8236 | K32: 21170.2436
B33: 12 | D33: =FACTORES!F51 -> 12249.81 | E33: =FACTORES!G51 -> 12361.46 | F33: 18324.34 | G33: 18474.67 | H33: 18324.34 | I33: 18474.67 | J33: 21256.2344 | K33: 21430.6172
B34: 13 | D34: =FACTORES!F52 -> 12165.24 | E34: =FACTORES!G52 -> 12280.13 | F34: 18210.48 | G34: 18365.17 | H34: 18210.48 | I34: 18365.17 | J34: 21124.1568 | K34: 21303.5972
B35: 14 | D35: =FACTORES!F53 -> 11849.38 | E35: =FACTORES!G53 -> 12030.09 | F35: 17785.21 | G35: 18028.51 | H35: 17785.21 | I35: 18028.51 | J35: 20630.8436 | K35: 20913.0716
B36: 15 | D36: =FACTORES!F54 -> 11897.64 | E36: =FACTORES!G54 -> 11834.85 | F36: 17850.18 | G36: 17765.64 | H36: 17850.18 | I36: 17765.64 | J36: 20706.2088 | K36: 20608.1424
B37: 16 | D37: =FACTORES!F55 -> 11675.15 | E37: =FACTORES!G55 -> 11386.03 | F37: 17550.62 | G37: 17161.35 | H37: 17550.62 | I37: 17161.35 | J37: 20358.7192 | K37: 19907.166
B38: 17 | D38: =FACTORES!F56 -> 11739.39 | E38: =FACTORES!G56 -> 11566.45 | F38: 17637.11 | G38: 17404.27 | H38: 17637.11 | I38: 17404.27 | J38: 20459.0476 | K38: 20188.9532
B39: 18 | D39: =FACTORES!F57 -> 12082.8 | E39: =FACTORES!G57 -> 10928.32 | F39: =ROUND(D39*$G$5*$G$6*$G$7*$G$10*$G$11*$G$8,2)+ADIC+DENTAL+IKE+CVISION -> 18099.48 | G39: =ROUND(E39*$G$5*$G$6*$G$7*$G$10*$G$11*$G$8,2)+ADIC+DENTAL+IKE+PARTO+CVISION -> 19697.20076 | H39: 18099.48 | I39: 19697.20076 | J39: 20995.3968 | K39: 22848.75288
B40: 19 | D40: =FACTORES!F58 -> 12492.97 | E40: =FACTORES!G58 -> 11090.75 | F40: 18651.73 | G40: 19915.90076 | H40: 18651.73 | I40: 19915.90076 | J40: 21636.0068 | K40: 23102.44488
B41: 20 | D41: =FACTORES!F59 -> 12872.05 | E41: =FACTORES!G59 -> 12869.95 | F41: 19162.13 | G41: 22311.41076 | H41: 19162.13 | I41: 22311.41076 | J41: 22228.0708 | K41: 25881.23648
B42: 21 | D42: =FACTORES!F60 -> 13549.3 | E42: =FACTORES!G60 -> 16688.65 | F42: 20073.98 | G42: 27452.91076 | H42: 20073.98 | I42: 27452.91076 | J42: 23285.8168 | K42: 31845.37648
B43: 22 | D43: =FACTORES!F61 -> 14157.02 | E43: =FACTORES!G61 -> 17495.15 | F43: 20892.21 | G43: 28538.78076 | H43: 20892.21 | I43: 28538.78076 | J43: 24234.9636 | K43: 33104.98568
B44: 23 | D44: =FACTORES!F62 -> 15091.62 | E44: =FACTORES!G62 -> 18332.53 | F44: 22150.56 | G44: 29666.23076 | H44: 22150.56 | I44: 29666.23076 | J44: 25694.6496 | K44: 34412.82768
B45: 24 | D45: =FACTORES!F63 -> 15719.2 | E45: =FACTORES!G63 -> 19205.8 | F45: 22995.53 | G45: 30842.00076 | H45: 22995.53 | I45: 30842.00076 | J45: 26674.8148 | K45: 35776.72088

Sheet VALORES (hidden)
A1: COTIZACIÓN
A2: R = RENOVACIÓN
A3: N = NUEVA
A5: NO. | B5: REGIÓN
A6: 1 | B6: CAMPECHE, CHIAPAS, GUERRERO, OAXACA, TABASCO, TLAXCALA, VERACRUZ, YUCATAN
A7: 2 | B7: HIDALGO, NAYARIT, PUEBLA
A8: 3 | B8: AGUASCALIENTES, COAHUILA, COLIMA, DURANGO, GUANAJUATO, JALISCO, MICHOACAN, ZACATECAS
A9: 4 | B9: CHIHUAHUA, NUEVO LEON, TAMAULIPAS
A10: 5 | B10: BAJA CALIFORNIA, BAJA CALIFORNIA SUR, MORELOS, QUINTANA ROO, QUERETARO, SAN LUIS POTOSI, SINALOA, SONORA
A11: 6 | B11: DISTRITO FEDERAL, EDO. DE MEXICO
A13: SUMA ASEGURADA | C13: DEDUCIBLE | E13: COASEGURO | G13: FORMA DE PAGO | H13: FORMA DE PAGO
A14: 500000 | C14: 4000 | E14: 0 | G14: A | H14: ANUAL
A15: 750000 | C15: 4500 | E15: 0.05 | G15: S | H15: SEMESTRAL
A16: 1000000 | C16: 5000 | E16: 0.1
A17: =+A16+1000000 -> 2000000 | C17: 6000 | E17: 0.15
A18: =+A17+1000000 -> 3000000 | C18: 7000 | E18: 0.2
A19: 4000000 | C19: 8000 | E19: 0.25
A20: 5000000 | C20: 9000 | E20: 0.3
A21: 6000000 | C21: 10000 | E21: 0.35
A22: 7000000 | C22: 20000 | E22: 0.4
A23: 8000000 | C23: 50000
A24: 9000000
A30: ZONA | B30: EMERGENCIA EN EL EXTRANJERO
A31: A | B31: CIUDADES A 20 KM. DE LA FRANJA FRONTERIZA CON LOS E.U.A.
A32: B | B32: BAJA CALIFORNIA, BAJA CALIFORNIA SUR, SONORA, CHIHUAHUA, COAHUILA, NUEVO LEÓN, CAMPECHE, YUCATÁN Y QUINTANA ROO
A33: C | B33: EL RESTO DEL PAÍS (EXCEPTO ZONA A Y ZONA B)
A35: COBERTURA EN EL EXTRANJERO
A36: ZONA A = CIUDADES A 20 KM. DE LA FRANJA FRONTERIZA CON LOS E.U.A.
A37: ZONA B = BAJA CALIFORNIA, BAJA CALIFORNIA SUR, SONORA, CHIHUAHUA, COAHUILA, NUEVO LEÓN, CAMPECHE, YUCATÁN Y QUINTANA ROO
A38: ZONA C = EL RESTO DEL PAÍS

Sheet CuadroEspecificacionesTARIFARIO (hidden)
J10: =TODAY() -> 2022-02-03
I12: REGIÓN | J12: =TITULAR!E3 -> 5
B14: CUADRO DE COBERTURAS
B15: - | C15: Tipo de Hospital | H15: Todos los hospitales
B17: - | C17: Suma Asegurada | H17: =+TITULAR!E5 -> 100000000 | I17: =IF(H17<>"SIN LÍMITE","M.N.","") -> M.N.
B19: - | C19: Deducible | F19: Enfermedad | H19: =+TITULAR!E6 -> 10000 | I19: M.N.
F20: Accidente | H20: 0 | I20: M.N.
B22: - | C22: Coaseguro | F22: Enfermedad | H22: =+TITULAR!E8 -> 0.1 | I22: =+COTIZACION!S29 -> 0
F23: Accidente | H23: 0
B25: =+COTIZACION!L32 -> 0 | C25: =+COTIZACION!M32 -> 0 | H25: =+TITULAR!E9 -> 0
B26: =+COTIZACION!L33 -> 0 | C26: =+COTIZACION!M33 -> 0 | H26: =+COTIZACION!R33 -> 0 | I26: =+COTIZACION!S33 -> 0
B29: =+COTIZACION!L36 -> 0 | C29: =+COTIZACION!M36 -> 0 | H29: =+COTIZACION!R36 -> 0
B30: =+COTIZACION!L37 -> 0 | C30: =+COTIZACION!M37 -> 0 | H30: =+COTIZACION!R37 -> 0
B31: =+COTIZACION!L38 -> 0 | C31: =+COTIZACION!M38 -> 0 | H31: =+COTIZACION!R38 -> 0
B32: =+COTIZACION!L39 -> 0 | C32: =+COTIZACION!M39 -> 0 | H32: =+COTIZACION!R39 -> 0
B33: =+COTIZACION!L40 -> 0 | C33: =+COTIZACION!M40 -> 0
C34: =+COTIZACION!M41 -> 0 | H34: =+COTIZACION!R41 -> 0
B35: =+COTIZACION!L42 -> 0 | C35: =+COTIZACION!M42 -> 0 | H35: =+COTIZACION!R42 -> 0
B36: =+COTIZACION!L43 -> 0 | C36: =+COTIZACION!M43 -> 0 | H36: =+COTIZACION!R43 -> 0
B37: =+COTIZACION!L44 -> 0 | C37: =+COTIZACION!M44 -> 0 | H37: =+COTIZACION!R44 -> 0
B38: =+COTIZACION!L45 -> 0 | C38: =+COTIZACION!M45 -> 0 | H38: =+COTIZACION!R45 -> 0
B39: =+COTIZACION!L46 -> 0 | C39: =+COTIZACION!M46 -> 0 | H39: =+COTIZACION!R46 -> 0
B40: =+COTIZACION!L47 -> 0 | C40: =+COTIZACION!M47 -> 0 | H40: =+COTIZACION!R47 -> 0
B41: =+COTIZACION!L48 -> 0 | C41: =+COTIZACION!M48 -> 0
C42: =+COTIZACION!M49 -> 0 | H42: =FACTORES!D37 -> 0
B43: =+COTIZACION!L50 -> 0 | C43: =+COTIZACION!M50 -> 0
C44: =+COTIZACION!M51 -> 0 | H44: =+COTIZACION!R51 -> 0
B45: =+COTIZACION!L52 -> 0 | C45: =+COTIZACION!M52 -> 0
C46: =+COTIZACION!M53 -> 0 | H46: =+COTIZACION!R53 -> 0
B47: =+COTIZACION!L54 -> 0 | C47: =+COTIZACION!M54 -> 0 | H47: =+COTIZACION!R54 -> 0
C48: =+COTIZACION!M55 -> 0
B49: =+COTIZACION!L56 -> 0 | C49: =+COTIZACION!M56 -> 0 | H49: =+COTIZACION!R56 -> 0
B50: =+COTIZACION!L57 -> 0 | C50: =+COTIZACION!M57 -> 0
C51: =+COTIZACION!M58 -> 0
C52: =+COTIZACION!M59 -> 0
C53: =+COTIZACION!M60 -> 0
C54: =+COTIZACION!M61 -> 0 | H54: =+COTIZACION!R61 -> 0
B55: =+COTIZACION!L62 -> 0 | C55: =+COTIZACION!M62 -> 0 | H55: =+COTIZACION!R62 -> 0
B56: =+COTIZACION!L63 -> 0 | C56: =+COTIZACION!M63 -> 0
C57: =+COTIZACION!M64 -> 0 | H57: =+COTIZACION!R64 -> 0
B58: =+COTIZACION!L65 -> 0 | C58: =+COTIZACION!M65 -> 0 | H58: =+COTIZACION!R65 -> 0
B59: =+COTIZACION!L66 -> 0 | C59: =+COTIZACION!M66 -> 0
C60: =+COTIZACION!M67 -> 0 | H60: =+COTIZACION!R67 -> 0
B61: =+COTIZACION!L68 -> 0 | C61: =+COTIZACION!M68 -> 0 | H61: =+COTIZACION!R68 -> 0
B62: =+COTIZACION!L69 -> 0 | C62: =+COTIZACION!M69 -> 0 | H62: =+COTIZACION!R69 -> 0
B63: =+COTIZACION!L70 -> 0 | C63: =+COTIZACION!M70 -> 0 | H63: =+COTIZACION!R70 -> 0
B64: =+COTIZACION!L71 -> 0 | C64: =+COTIZACION!M71 -> 0 | H64: =+COTIZACION!R71 -> 0
B65: =+COTIZACION!L72 -> 0 | C65: =+COTIZACION!M72 -> 0 | H65: =+COTIZACION!R72 -> 0
B66: =+COTIZACION!L73 -> 0 | C66: =+COTIZACION!M73 -> 0 | H66: =+COTIZACION!R73 -> 0
B67: =+COTIZACION!L74 -> 0 | C67: =+COTIZACION!M74 -> 0 | H67: =+COTIZACION!R74 -> 0
B68: =+COTIZACION!L75 -> 0 | C68: =+COTIZACION!M75 -> 0 | H68: =+COTIZACION!R75 -> 0
B69: =+COTIZACION!L76 -> 0 | C69: =+COTIZACION!M76 -> 0 | H69: =+COTIZACION!R76 -> 0
B70: =+COTIZACION!L77 -> 0 | C70: =+COTIZACION!M77 -> 0 | H70: =+COTIZACION!R77 -> 0
B71: - | C71: En atención en Hospiten aplica deducible y coaseguro

Sheet COTIZACION (hidden)
B6: DATOS DE LA PÓLIZA
A7: =+VLOOKUP(D7,G241:H242,2,FALSE) -> 0 | B7: Tipo de Póliza | D7: NUEVA | E7: =+IF(AND(D7="NUEVA",D8="ANTES DEL 01/10/2016"),"NO ES VÁLIDA, RECONSIDERAR SU PRIMERA EMISIÓN",CONCATENATE("APLICA PARA AQUELLA PÓLIZA ",D7," CON PRIMER VIGENCIA EMITIDA ",D8)) -> APLICA PARA AQUELLA PÓLIZA NUEVA CON PRIMER VIGENCIA EMITIDA A PARTIR DEL 01/10/2016
A8: =+VLOOKUP(D8,G243:H244,2,FALSE) -> 0 | B8: Primera vigencia emitida en Seguros Banorte | D8: A PARTIR DEL 01/10/2016
B9: TIPO DE COTIZACIÓN | D9: INDIVIDUAL
B10: Suma Asegurada | D10: 100000000
B11: Deducible | D11: 10000 | E11: =+IF(D7="NUEVA",IF(D11<10000,"Deducible no permitido para pólizas nuevas",""),"") -> 
B12: =+"Coaseguro "&CONCATENATE("con tope de ",VLOOKUP(IMPRESION!I19,FACTORES!C3:E6,3,FALSE)) -> Coaseguro con tope de $35,000 | D12: 0.1
B13: Estado | D13: CIUDAD DE MÉXICO
B14: Región | D14: =+VLOOKUP(D13,$C$316:$D$347,2,0) -> 5
A15: =IF(AND(D15="SI",D11>50000),"EL LIMITE ES $50,000"," ") ->  | B15: Eliminación de Deducible por Accidente | D15: NO | E15: =+IF(AND(D15="si",D11>50000),"El deducible límite es $50,000","") -> 
A16: =IF(D11>50000,"NO",D16) -> NO | B16: Incremento en Parto o Cesárea | D16: NO
B17: Suma Asegurada Parto o Cesárea | D17: 30000 | E17: =IF(D7="NUEVA",IF(D17=50000,"SUMA ASEGURADA NO PERMITIDA PARA PÓLIZAS NUEVAS",IF(D16="SI",IF(D11<60000,"DEFINA LA SUMA ASEGURADA","ESTA COBERTURA NO APLICA CON DEDUCIBLE MAYOR A $50,000"),"")),IF(D16="SI",IF(D11<60000,"DEFINA LA SUMA ASEGURADA","ESTA COBERTURA NO APLICA CON DEDUCIBLE MAYOR A $50,000"),"")) -> 
B18: Cobertura de Visión Incremental | D18: NO
B19: Cobertura de Indemnización por Enfermedad Grave | D19: NO | E19: =IF(AND(D19<>"NO",SUM(A30:A37)<1),"NO CUMPLE CON LOS LIMITES DE EDAD","") -> 
B20: Cobertura Total en el Extranjero | D20: NO | E20: =IF(D20="SI","DEFINA LA ZONA COBERTURA TOTAL EN EL EXTRANJERO","") -> 
B21: Emergencia en el Extranjero | D21: NO
B22: Zona CoberturaTotal en el Extranjero | D22: C | F22: ="ZONA "&D22&" incluye:" -> ZONA C incluye:
F23: =IF(D20="SI",VLOOKUP(D22,VALORES!$A$31:$B$33,2,FALSE)," ") -> 
B25: Inc THQ | D25: 0
B26: IVA | D26: 0.16
I27: DESCUENTO | J27: 0
C29: NOMBRE | D29: NOMBRE
A30: =IF($D$7="NUEVA",IF(AND(E30>=18,E30<60),1,0),IF(AND(E30>=18,E30<65),1,0)) -> 0 | B30: Titular | F30: =IF(AND(D7="NUEVA",D11<10000),"DEDUCIBLE INVÁLIDO",IF(D7="NUEVA",IF(E30>64,"EDAD NO PERMITIDA",IF(D9="FAMILIAR",IF(E30<18,"EDAD NO PERMIDITA",""),"")),IF(D9="FAMILIAR",IF(E30<18,"EDAD NO PERMIDITA",""),""))) ->  | G30: ANUAL | H30: =+IMPRESION!K91 -> 0 | I30: 0 | J30: =+H30 -> 0
A31: =IF($D$7="NUEVA",IF(AND(E31>=18,E31<60),1,0),IF(AND(E31>=18,E31<65),1,0)) -> 0 | B31: =IF(D9="FAMILIAR","Cónyuge","") ->  | F31: =IF($D$7="NUEVA",IF(E31>64,"EDAD NO PERMITIDA",""),"") ->  | G31: SEMESTRAL | H31: =IF((IMPRESION!K86*RSEM/2+DER)*(1+$D$26)<1000,0,(IMPRESION!K86*RSEM/2+DER)*(1+$D$26)) -> 0 | I31: =IF(H31=0,0,(IMPRESION!K86*RSEM/2)*(1+$D$26)) -> 0 | J31: =+I31+H31 -> 0
A32: 0 | B32: =IF($D$9="FAMILIAR","Dependiente 1","") ->  | F32: =IF($D$7="NUEVA",IF(E32>69,"EDAD NO PERMITIDA",""),"") ->  | G32: TRIMESTRAL | H32: =IF((IMPRESION!K86*RTRIM/4+DER)*(1+$D$26)<1000,0,(IMPRESION!K86*RTRIM/4+DER)*(1+$D$26)) -> 0 | I32: =IF(H32=0,0,(IMPRESION!K86*RTRIM/4)*(1+$D$26)) -> 0 | J32: =+I32*3+H32 -> 0
A33: 0 | B33: =IF($D$9="FAMILIAR","Dependiente 2","") ->  | G33: MENSUAL | H33: =IF((IMPRESION!K86*RMES/12+DER)*(1+$D$26)<1000,0,(IMPRESION!K86*RMES/12+DER)*(1+$D$26)) -> 0 | I33: =IF(H33=0,0,(IMPRESION!K86*RMES/12)*(1+$D$26)) -> 0 | J33: =+I33*11+H33 -> 0
A34: 0 | B34: =IF($D$9="FAMILIAR","Dependiente 3","") -> 
A35: 0 | B35: =IF($D$9="FAMILIAR","Dependiente 4","") -> 
A36: 0 | B36: =IF($D$9="FAMILIAR","Dependiente 5","") -> 
A37: 0 | B37: =IF($D$9="FAMILIAR","Dependiente 6","") ->  | G37: RECARGOS POR PAGO FRACCIONADO
G39: SEMESTRAL | H39: 0.0473 | I39: FAVOR de Verificar si estos factores son los vigentes
G40: TRIMESTRAL | H40: 0.0699
G41: MENSUAL | H41: 0.0999
B44: NOTA: LAS COTIZACIONES EN EDADES DE 65 A 79 AÑOS SOLO SON VALIDAS PARA RENOVACION LA EDAD DE CONTRATACION DE LA COBERTURA DE ENFERMEDADES GRAVES ES DE 18 A 59 AÑOS
B45: =IF(OR($E$30>64,$E$31>64),"Esta cotización solo es valida para renovaciones","") -> 
A218: NO. | B218: REGIÓN
A219: 1 | B219: OAXACA, TABASCO, VERACRUZ, CAMPECHE, YUCATAN, CHIAPAS, GUERRERO
A220: 2 | B220: PUEBLA, TLAXCALA, HIDALGO, NAYARIT
A221: 3 | B221: AGUASCALIENTES, GUANAJUATO, JALISCO, MICHOACAN, COLIMA,ZACATECAS
A222: 4 | B222: COAHUILA, TAMAULIPAS, NUEVO LEON, DURANGO, CHIHUAHUA
A223: 5 | B223: SAN LUIS POTOSI, BAJA CALIFORNIA NORTE, BAJA CALIFORNIA SUR, SINALOA, SONORA, QUERETARO, MORELOS, QUINTANA ROO
A224: 6 | B224: DISTRITO FEDERAL, EDO. DE MEXICO
C226: DEDUCIBLE | E226: COASEGURO | G226: FORMA DE PAGO | K226: FP
C227: 3500
C228: 4000 | G228: A | H228: =IF(H30=0,"NO APLICA","ANUAL") -> NO APLICA | K228: =IF(#REF!="ANUAL",1,IF(#REF!="SEMESTRAL",2,IF(#REF!="TRIMESTRAL",4,IF(#REF!="MENSUAL",12,1)))) -> 
C229: 4500 | G229: S | H229: =IF(H31=0,"NO APLICA","SEMESTRAL") -> NO APLICA
C230: 5500 | E230: 0.1 | G230: T | H230: =IF(H32=0,"NO APLICA","TRIMESTRAL") -> NO APLICA | K230: IVA
C231: 6000 | E231: 0.15 | G231: M | H231: =IF(H33=0,"NO APLICA","MENSUAL") -> NO APLICA | K231: 0.11
C232: 7000 | E232: 0.2 | G232: COBERTURA EN EL EXT | K232: 0.16
C233: 8000 | G233: S | H233: SI
C234: 9000 | G234: N | H234: NO
C235: 10000
C236: 15000 | G236: DEDUCIBLE CERO POR ACC
C237: 20000 | F237: Catalogo | G237: S | H237: SI
C238: 25000 | G238: N | H238: NO
C239: 30000
C240: 35000 | G240: Tipo de Póliza
C241: 40000 | G241: NUEVA | H241: 0
C242: 45000 | G242: RENOVADA | H242: 1
C243: 50000 | G243: ANTES DEL 01/10/2016 | H243: 1
C244: 75000 | G244: A PARTIR DEL 01/10/2016 | H244: 0
C245: 100000
C246: 300000
C247: 400000
C248: 500000
C249: 600000
C250: 700000
C251: 800000
C252: 900000
C253: 1000000
F255: 0
B256: INC EN PARTO O CESAREA | C256: PARTO O CESAREA | D256: PARTO O CESAREA | F256: 0.15 | G256: 49400 | H256: =+Base -> 49400
B257: SI | C257: 20000 | D257: 20000 | F257: 0.25
B258: NO | C258: 30000 | D258: 30000 | F258: 0.5
C259: 40000 | D259: 40000 | F259: 0.75
C260: 50000 | D260: =+IF(E7=H241," ",50000) -> 50000 | F260: 1
A262: ZONA | B262: EMERGENCIA EN EL EXTRANJERO
A263: A | B263: CIUDADES A 20 KM. DE LA FRANJA FRONTERIZA CON LOS E.U.A.
A264: B | B264: BAJA CALIFORNIA, BAJA CALIFORNIA SUR, SONORA, CHIHUAHUA, COAHUILA, NUEVO LEÓN, CAMPECHE, YUCATÁN Y QUINTANA ROO
A265: C | B265: EL RESTO DEL PAÍS (EXCEPTO ZONA A Y ZONA B)
A266: 0
A267: =1+A266 -> 1
A268: =1+A267 -> 2 | C268: TITULAR | D268: CÓNYUGE
A269: 3 | C269: H | D269: =IF((IF(C31=""," ",D30))="H","M",IF((IF(C31="","",D30))="M","H",IF((IF(C31="","",D30))="",""))) -> 
A270: 4 | C270: M
A271: 5
A272: 6
A273: 7 | C273: SUMA ASEGURADA | G273: ENF GVES
A274: 8 | C274: 200000 | E274: TIPO DE COTIZACIÓN | G274: NO
A275: 9 | C275: 300000 | E275: INDIVIDUAL | G275: 10000
A276: 10 | C276: 400000 | E276: FAMILIAR | G276: 20000
A277: 11 | C277: 500000 | G277: 30000
A278: 12 | C278: 600000 | G278: 40000
A279: 13 | C279: 700000 | G279: 50000
A280: 14 | C280: 800000 | G280: 75000
A281: 15 | C281: 1000000 | G281: 100000
A282: 16 | C282: 2000000 | G282: 150000
A283: 17 | C283: 3000000 | G283: 200000
A284: 18 | C284: 4000000 | G284: 250000
A285: 19 | C285: 5000000 | G285: 300000
A286: 20 | C286: 6000000 | G286: 350000
A287: 21 | C287: 7000000 | G287: 400000
A288: 22 | C288: 8000000 | G288: 450000
A289: 23 | C289: 9000000 | G289: 500000
A290: 24 | C290: 10000000 | G290: 550000
A291: 25 | C291: 20000000 | G291: 600000
A292: 26 | C292: 30000000 | G292: 650000
A293: 27 | C293: 40000000 | G293: 700000
A294: 28 | C294: 50000000 | G294: 750000
A295: 29 | C295: 70000000 | G295: 800000
A296: 30 | C296: 100000000 | G296: 850000
A297: 31
A298: 32
A299: 33
A300: 34
A301: 35
A302: 36
A303: 37
A304: 38
A305: 39
A306: 40
A307: 41
A308: 42
A309: 43
A310: 44
A311: 45
A312: 46
A313: 47
A314: 48
A315: 49 | C315: Estado | D315: REGIÓN
A316: 50 | C316: AGUASCALIENTES | D316: 3 | E316: 3 | F316: 2 | G316: =+F316-D316 -> -1
A317: 51 | C317: BAJA CALIFORNIA | D317: 2 | E317: 5 | F317: 3 | G317: =+F317-D317 -> 1
A318: 52 | C318: BAJA CALIFORNIA SUR | D318: 3 | E318: 5 | F318: 3 | G318: 0
A319: 53 | C319: CAMPECHE | D319: 1 | E319: 1 | F319: 1 | G319: 0
A320: 54 | C320: CHIAPAS | D320: 2 | E320: 1 | F320: 1 | G320: -1
A321: 55 | C321: CHIHUAHUA | D321: 4 | E321: 4 | F321: 3 | G321: -1
A322: 56 | C322: COAHUILA | D322: 4 | E322: 3 | F322: 2 | G322: -2
A323: 57 | C323: COLIMA | D323: 3 | E323: 3 | F323: 2 | G323: -1
A324: 58 | C324: CIUDAD DE MÉXICO | D324: 5 | E324: 6 | F324: 4 | G324: -1
A325: 59 | C325: DURANGO | D325: 3 | E325: 3 | F325: 2 | G325: -1
A326: 60 | C326: ESTADO DE MÉXICO | D326: 5 | E326: 6 | F326: 4 | G326: -1
A327: 61 | C327: GUANAJUATO | D327: 2 | E327: 3 | F327: 2 | G327: 0
A328: 62 | C328: GUERRERO | D328: 2 | E328: 1 | F328: 1 | G328: -1
A329: 63 | C329: HIDALGO | D329: 3 | E329: 2 | F329: 1 | G329: -2
A330: 64 | C330: JALISCO | D330: 3 | E330: 3 | F330: 2 | G330: -1
A331: 65 | C331: MICHOACÁN | D331: 3 | E331: 3 | F331: 2 | G331: -1
A332: =1+A331 -> 66 | C332: MORELOS | D332: 4 | E332: 5 | F332: 3 | G332: -1
A333: =1+A332 -> 67 | C333: NAYARIT | D333: 2 | E333: 2 | F333: 1 | G333: -1
A334: =1+A333 -> 68 | C334: NUEVO LEÓN | D334: 4 | E334: 4 | F334: 3 | G334: -1
A335: =1+A334 -> 69 | C335: OAXACA | D335: 1 | E335: 1 | F335: 1 | G335: 0
A336: =1+A335 -> 70 | C336: PUEBLA | D336: 2 | E336: 2 | F336: 1 | G336: -1
A337: 71 | C337: QUERÉTARO | D337: 3 | E337: 5 | F337: 3 | G337: 0
A338: 72 | C338: QUINTANA ROO | D338: 4 | E338: 5 | F338: 1 | G338: -3
A339: 73 | C339: SAN LUIS POTOSÍ | D339: 4 | E339: 5 | F339: 3 | G339: -1
A340: 74 | C340: SINALOA | D340: 3 | E340: 5 | F340: 3 | G340: 0
A341: 75 | C341: SONORA | D341: 4 | E341: 5 | F341: 3 | G341: -1
A342: 76 | C342: TABASCO | D342: 2 | E342: 1 | F342: 1 | G342: -1
A343: 77 | C343: TAMAULIPAS | D343: 4 | E343: 4 | F343: 3 | G343: -1
A344: 78 | C344: TLAXCALA | D344: 1 | E344: 2 | F344: 1 | G344: 0
A345: 79 | C345: VERACRUZ | D345: 2 | E345: 1 | F345: 1 | G345: -1
A346: 80 | C346: YUCATÁN | D346: 1 | E346: 1 | F346: 1 | G346: 0
A347: 81 | C347: ZACATECAS | D347: 3 | E347: 3 | F347: 2 | G347: -1
A348: 82
A349: 83
A350: 84
A351: 85
A352: 86
A353: 87
A354: 88
A355: 89
A356: 90
A357: =1+A356 -> 91
A358: =1+A357 -> 92
A359: =1+A358 -> 93
A360: =1+A359 -> 94
A361: 95
A362: 96
A363: 97
A364: 98
A365: 99
A366: 100

Sheet IMPRESION (hidden)
K6: =TODAY() -> 2022-02-03
B7: ="Apreciable "&COTIZACION!C30 -> Apreciable
B9: =+"Agradecemos de antemano su preferencia y esperamos que la presente propuesta de Gastos Médicos "&COTIZACION!D9&" cumpla sus expectativas." -> Agradecemos de antemano su preferencia y esperamos que la presente propuesta de Gastos Médicos INDIVIDUAL cumpla sus expectativas.
B12: CUADRO DE COBERTURAS
B13: - | C13: Tipo de Hospital | I13: Todos los hospitales
B15: - | C15: Suma Asegurada | I15: =+CuadroEspecificacionesTARIFARIO!H17 -> 100000000 | J15: =IF(I15<>"SIN LÍMITE","M.N.","") -> M.N.
B17: - | C17: Deducible por Accidente y Enfermedad | I17: =+CuadroEspecificacionesTARIFARIO!H19 -> 10000 | J17: M.N.
B19: - | C19: Coaseguro | G19: Enfermedad | I19: =+CuadroEspecificacionesTARIFARIO!H22 -> 0.1 | J19: =+CONCATENATE("Con tope de ",VLOOKUP(I19,FACTORES!C3:E6,3,FALSE)&" M.N.") -> Con tope de $35,000 M.N.
G20: Accidente | I20: 0
B22: - | C22: Incremento al Catálogo | I22: =+TITULAR!E9 -> 0
B23: - | C23: =IF(I22=0,"Base de Honorarios Quirúrgicos","Base de Honorarios Quirúrgicos (incluye el incremento de "&I22*100&"% seleccionado) ") -> Base de Honorarios Quirúrgicos | I23: =VLOOKUP(COTIZACION!$D$14,FACTORES!$N$8:$O$13,2,0)*FACTORES!$O$14*(1+TITULAR!$E$9) -> 61999.99627 | J23: M.N.
B24: - | C24: Honorarios por visita intrahospitalaria | I24: Catálogo
B25: - | C25: Honorarios por consulta | I25: Catálogo
B26: - | C26: Honorarios por enfermera máximo 3 turnos por día durante 30 días | I26: Catálogo
B27: - | C27: Habitación Hospital | I27: Privado Estándar
B28: - | C28: Sala de operación y recuperación, medicamentos, consumo de oxígeno,
C29: servicios de terapia, tratamiento de diálisis y transfusiones de sangre | I29: Incluido
B30: - | C30: Renta de aparatos ortopédicos y prótesis | I30: Incluido
B31: - | C31: Ambulancia Aérea | I31: Incluida
B32: - | C32: Ambulancia Terrestre | I32: Incluida
B33: - | C33: Reinstalación automática de Suma Asegurada | I33: Incluida
B34: - | C34: Gastos por donación de órganos | I34: =IF(I17<0,"Excluido",100000) -> 100000 | J34: =IF(I34="Excluido","","M.N") -> M.N
B35: - | C35: Renta diaria por hospitalización en un Centro de Asistencia Social máximo 30 días | I35: =IF(I17<0,"Excluido",300) -> 300 | J35: =IF(I35="Excluido","","M.N") -> M.N
B36: - | C36: Gastos por Parto o Cesárea del Titular, Cónyuge o hija asegurada con periodo de
C37: espera de 10 meses sin deducible, ni coaseguro | I37: =IF(COTIZACION!E17="SUMA ASEGURADA NO PERMITIDA PARA PÓLIZAS NUEVAS","EXCLUIDO ",IF(I17>50000,"Excluido",IF(COTIZACION!D16="NO","$20,000",COTIZACION!D17))) -> $20,000 | J37: =IF(I37="Excluido","","M.N") -> M.N
B38: - | C38: Complicaciones del Embarazo y del Parto del Titular, Cónyuge o hija asegurada,
C39: con periodo de espera de 10 meses, con deducible y coaseguro | I39: Catálogo
B40: - | C40: Prematurez siempre que el nacimiento ocurra después de 10 meses de | I40: Suma Asegurada
C41: alta de la madre | I41: Básica | J41: =IF(I41="Excluido","","Por Evento") -> Por Evento
B42: - | C42: Preexistencia Declarada, con periodo de espera de 2 años, no aplica reconocimiento | I42: Incluida
C43: de antigüedad
B44: - | C44: Circuncisión, con periodo de espera de 1 año, no aplica reconocimiento de antigüedad | I44: Incluida
B45: - | C45: Padecimientos congénitos para nacidos dentro de la vigencia, dados de alta dentro
C46: de los 30 días posteriores al nacimiento y que la madre asegurada cumpla con el
C47: periodo de espera de 10 meses. Para los nacidos fuera de vigencia aplica periodo de
C48: espera de 12 meses. | I48: Incluido
B49: - | C49: Legrado | I49: =IF(I17<0,"Excluido",10000) -> 10000 | J49: =IF(I49="Excluido","","M.N") -> M.N
B50: - | C50: SIDA, siempre que el asegurado se encuentre cubierto en Seguros Banorte al
C51: menos 4 años ininterrumpidos | I51: Incluido
B52: - | C52: Terapia Psicológica o Psiquiátrica | I52: Incluido
B53: - | C53: Xifósis, lordósis y escoleosis, con periodo de espera de 2 años
C54: no aplica reconocimiento de antigüedad | I54: Incluido
B55: - | C55: Reconocimiento de Antigüedad, previa comprobación | I55: Incluido
B56: - | C56: Incremento de Catálogo de Honorarios para enfermedades catastróficas | I56: Incluida
B57: - | C57: Trastornos Visuales, con periodo de espera de 18 meses | I57: =IF(I17<0,"Excluido",12000) -> 12000 | J57: =IF(I57="Excluido","","M.N") -> M.N
B58: - | C58: Lente intraocular, con periodo de espera de 12 meses | I58: =IF(I17<0,"Excluido",3000) -> 3000 | J58: =IF(I58="Excluido","","M.N") -> M.N
B59: - | C59: Cobertura Sin Límite de Edad (de acuerdo a la cláusula de edad) | I59: Incluido
B60: - | C60: Cobertura Integral Dental y Visión | I60: Incluido
B61: - | C61: Servicios de Asistencia | I61: Incluido
B63: - | C63: Emergencia Extranjero con suma asegurada de 50,000 Dlls, deducible de 50 Dlls y coaseguro 0% | I63: =IF(COTIZACION!D21="si","Incluido","Excluido") -> Excluido
B64: - | C64: Cobertura Total en el Extranjero | I64: =IF(COTIZACION!D20="si","Incluido","Excluido") -> Excluido
B65: - | C65: Cobertura de Eliminación de Deducible por Accidente | I65: =IF(AND(COTIZACION!D15="si",COTIZACION!D11<=50000),"Incluido","Excluido") -> Excluido
B66: - | C66: Cobertura de Indemnización por Enfermedad Grave | I66: =IF(OR(COTIZACION!D19="NO",SUM(COTIZACION!A30:A37)<=0),"Excluido",COTIZACION!D19) -> Excluido | J66: =IF(I66="EXCLUIDO","","M.N.") -> 
B67: - | C67: Cobertura de Visión Incremental | I67: =IF(COTIZACION!D18="SI","Incluido","Excluido") -> Excluido
B69: Se cobrará doble deducible y coaseguro de póliza, a los Asegurados que se atiendan en Hospiten México S.A de C.V
B70: Se puede otorgar pago directo en la atención con médicos y hospitales en convenio, teniendo una disminución de $1,500 en el deducible y 5 puntos
B71: porcentuales de coaseguro, siempre que la atención sea dentro de la misma zona de tarifa contratada o una zona menor (este beneficio no aplica
B72: para los siguientes hospitales: ABC Observatorio, ABC Santa Fe, Ángeles del Pedregal, Ángeles Lomas, Ángeles Acoxpa,
B73: Star Médica Lomas Verdes y Médica Sur, para estos hospitales aplica pago directo con deducible y coaseguro contratado).
C75: PARTICIPANTES
C76: Nombre | H76: Edad | I76: Sexo | J76: Parentesco | K76: Prima Neta
K77: Anual
A78: =IF(AND(H78<>"",H78>64),1,0) -> 0 | C78: =IF(COTIZACION!C30="","",COTIZACION!C30) ->  | H78: =IF(COTIZACION!E30="","",COTIZACION!E30) ->  | I78: =IF(COTIZACION!D30="","",COTIZACION!D30) ->  | J78: =IF(COTIZACION!C30="","",COTIZACION!B30) ->  | K78: =IF(COTIZACION!E7="NO ES VÁLIDA, RECONSIDERAR SU PRIMERA EMISIÓN","",IF(COTIZACION!F30<>"","",IF(COTIZACION!F30="EDAD NO PERMITIDA","EDAD NO PERMITIDA",IF($I$37="EXCLUIDO ",0,IF(H78="","",IF(I78="H",VLOOKUP(H78,TITULAR!$B$21:$G$127,5,0),VLOOKUP(H78,TITULAR!$B$21:$G$127,6,0))))))) -> 
A79: =IF(AND(H79<>"",H79>64),1,0) -> 0 | C79: =IF(COTIZACION!C31="","",COTIZACION!C31) ->  | H79: =+IF(COTIZACION!D9="INDIVIDUAL","",IF(COTIZACION!E31="","",COTIZACION!E31)) ->  | I79: =IF(COTIZACION!D31="","",COTIZACION!D31) ->  | J79: =IF(COTIZACION!C31="","",COTIZACION!B31) ->  | K79: =IF(COTIZACION!E7="NO ES VÁLIDA, RECONSIDERAR SU PRIMERA EMISIÓN","",IF(COTIZACION!F30<>"","",IF(COTIZACION!F31="EDAD NO PERMITIDA","EDAD NO PERMITIDA",IF($I$37="EXCLUIDO ",0,IF(H79="","",IF(I79="H",VLOOKUP(H79,CONYUGE!$B$21:$G$121,5,0),IF(I79="M",VLOOKUP(H79,CONYUGE!$B$21:$G$121,6,0),""))))))) -> 
A80: 0 | C80: =IF(COTIZACION!C32="","",COTIZACION!C32) ->  | H80: =+IF(COTIZACION!D9="INDIVIDUAL","",IF(COTIZACION!E32="","",COTIZACION!E32)) ->  | I80: =IF(COTIZACION!D32="","",COTIZACION!D32) ->  | J80: =IF(COTIZACION!C32="","",COTIZACION!B32) ->  | K80: =IF(COTIZACION!$E$7="NO ES VÁLIDA, RECONSIDERAR SU PRIMERA EMISIÓN","",IF(COTIZACION!$F$30<>"","",IF(COTIZACION!F32="EDAD NO PERMITIDA","EDAD NO PERMITIDA",IF($I$37="EXCLUIDO ",0,IF(H80="","",IF(I80="H",VLOOKUP(H80,DEPENDIENTE!$B$21:$G$106,5,0),IF(I80="M",VLOOKUP(H80,DEPENDIENTE!$B$21:$G$106,6,0),""))))))) -> 
A81: 0 | C81: =IF(COTIZACION!C33="","",COTIZACION!C33) ->  | H81: =+IF(COTIZACION!D9="INDIVIDUAL","",IF(COTIZACION!E33="","",COTIZACION!E33)) ->  | I81: =IF(COTIZACION!D33="","",COTIZACION!D33) ->  | J81: =IF(COTIZACION!C33="","",COTIZACION!B33) ->  | K81: =IF(COTIZACION!E7="NO ES VÁLIDA, RECONSIDERAR SU PRIMERA EMISIÓN","",IF(COTIZACION!F30<>"","",IF(COTIZACION!F33="EDAD NO PERMITIDA","EDAD NO PERMITIDA",IF($I$37="EXCLUIDO ",0,IF(H81="","",IF(I81="H",VLOOKUP(H81,DEPENDIENTE!$B$21:$G$106,5,0),IF(I81="M",VLOOKUP(H81,DEPENDIENTE!$B$21:$G$106,6,0),""))))))) -> 
A82: 0 | C82: =IF(COTIZACION!C34="","",COTIZACION!C34) ->  | H82: =+IF(COTIZACION!D9="INDIVIDUAL","",IF(COTIZACION!E34="","",COTIZACION!E34)) ->  | I82: =IF(COTIZACION!D34="","",COTIZACION!D34) ->  | J82: =IF(COTIZACION!C34="","",COTIZACION!B34) ->  | K82: =IF(COTIZACION!E7="NO ES VÁLIDA, RECONSIDERAR SU PRIMERA EMISIÓN","",IF(COTIZACION!F30<>"","",IF(COTIZACION!F34="EDAD NO PERMITIDA","EDAD NO PERMITIDA",IF($I$37="EXCLUIDO ",0,IF(H82="","",IF(I82="H",VLOOKUP(H82,DEPENDIENTE!$B$21:$G$106,5,0),IF(I82="M",VLOOKUP(H82,DEPENDIENTE!$B$21:$G$106,6,0),""))))))) -> 
A83: 0 | C83: =IF(COTIZACION!C35="","",COTIZACION!C35) ->  | H83: =+IF(COTIZACION!D9="INDIVIDUAL","",IF(COTIZACION!E35="","",COTIZACION!E35)) ->  | I83: =IF(COTIZACION!D35="","",COTIZACION!D35) ->  | J83: =IF(COTIZACION!C35="","",COTIZACION!B35) ->  | K83: =IF(COTIZACION!E7="NO ES VÁLIDA, RECONSIDERAR SU PRIMERA EMISIÓN","",IF(COTIZACION!F30<>"","",IF(COTIZACION!F35="EDAD NO PERMITIDA","EDAD NO PERMITIDA",IF($I$37="EXCLUIDO ",0,IF(H83="","",IF(I83="H",VLOOKUP(H83,DEPENDIENTE!$B$21:$G$106,5,0),IF(I83="M",VLOOKUP(H83,DEPENDIENTE!$B$21:$G$106,6,0),""))))))) -> 
A84: 0 | C84: =IF(COTIZACION!C36="","",COTIZACION!C36) ->  | H84: =+IF(COTIZACION!D9="INDIVIDUAL","",IF(COTIZACION!E36="","",COTIZACION!E36)) ->  | I84: =IF(COTIZACION!D36="","",COTIZACION!D36) ->  | J84: =IF(COTIZACION!C36="","",COTIZACION!B36) ->  | K84: =IF(COTIZACION!E7="NO ES VÁLIDA, RECONSIDERAR SU PRIMERA EMISIÓN","",IF(COTIZACION!F30<>"","",IF(COTIZACION!F36="EDAD NO PERMITIDA","EDAD NO PERMITIDA",IF($I$37="EXCLUIDO ",0,IF(H84="","",IF(I84="H",VLOOKUP(H84,DEPENDIENTE!$B$21:$G$106,5,0),IF(I84="M",VLOOKUP(H84,DEPENDIENTE!$B$21:$G$106,6,0),""))))))) -> 
A85: 0 | C85: =IF(COTIZACION!C37="","",COTIZACION!C37) ->  | H85: =+IF(COTIZACION!D9="INDIVIDUAL","",IF(COTIZACION!E37="","",COTIZACION!E37)) ->  | I85: =IF(COTIZACION!D37="","",COTIZACION!D37) ->  | J85: =IF(COTIZACION!C37="","",COTIZACION!B37) ->  | K85: =IF(COTIZACION!E7="NO ES VÁLIDA, RECONSIDERAR SU PRIMERA EMISIÓN","",IF(COTIZACION!F30<>"","",IF(COTIZACION!F37="EDAD NO PERMITIDA","EDAD NO PERMITIDA",IF($I$37="EXCLUIDO ",0,IF(H85="","",IF(I85="H",VLOOKUP(H85,DEPENDIENTE!$B$21:$G$106,5,0),IF(I85="M",VLOOKUP(H85,DEPENDIENTE!$B$21:$G$106,6,0),""))))))) -> 
C86: =IF(OR(COTIZACION!$E$30>64,COTIZACION!$E$31>64),"Esta cotización solo es valida para renovaciones","") ->  | I86: Prima Neta Total Anual | K86: =IF(COTIZACION!D7="NUEVA",IF(IMPRESION!A105=0,SUM(K78:K85),0),SUM(K78:K85)) -> 0
I87: Recargo por Pago Fracc. | K87: =+TITULAR!G17 -> 0
I88: Derecho de Póliza | K88: =IF(K86=0,0,IF(I37="EXCLUIDO ",0,+TITULAR!I25)) -> 0
I89: Subtotal | K89: =+K86+K88 -> 0
E90: =COTIZACION!D13 -> CIUDAD DE MÉXICO | I90: I.V.A. | K90: =+K89*TITULAR!K25 -> 0
I91: Prima Total Anual | K91: =SUM(K89:K90) -> 0
E92: =IF(COTIZACION!C42="","",COTIZACION!C42) -> 
C95: =+COTIZACION!G30 -> ANUAL | E95: =IF(COTIZACION!F30<>"",0,IF(K86=0,0,IF(I37="EXCLUIDO ",0,(K86/(1+K87)+DER)*(1+COTIZACION!$D$26)))) -> 0 | F95: 0 | G95: =+F95+E95 -> 0
C96: ="SEMESTRAL (Recargo "&COTIZACION!H39*100&"%)" -> SEMESTRAL (Recargo 4.73%) | E96: =+COTIZACION!H31 -> 0 | F96: =+COTIZACION!I31 -> 0 | G96: =+F96+E96 -> 0
C97: ="TRIMESTRAL (Recargo "&COTIZACION!H40*100&"%)" -> TRIMESTRAL (Recargo 6.99%) | E97: =+COTIZACION!H32 -> 0 | F97: =+COTIZACION!I32 -> 0 | G97: =+F97*3+E97 -> 0
C98: ="MENSUAL (Recargo "&COTIZACION!H41*100&"%)" -> MENSUAL (Recargo 9.99%) | E98: =+COTIZACION!H33 -> 0 | F98: =+COTIZACION!I33 -> 0 | G98: =+F98*11+E98 -> 0
C100: Notas:
C101: *Este producto cuenta con exclusiones y limitaciones, las cuales pueden ser consultadas en las Condiciones Generales del producto en la página
C102: www.segurosbanorte.com.mx
C103: * Esta cotización tiene una validez de 15 días a partir de su fecha de elaboración. La edad limite de aceptación es hasta los 64 años. * El recargo por pago fraccionado está sujeto a cambio sin previo aviso.
A105: =SUM(A78:A85) -> 0 | C105: =+CONCATENATE("EN SEGUROS BANORTE ESTA COTIZACIÓN ",COTIZACION!E7) -> EN SEGUROS BANORTE ESTA COTIZACIÓN APLICA PARA AQUELLA PÓLIZA NUEVA CON PRIMER VIGENCIA EMITIDA A PARTIR DEL 01/10/2016
B107: Tarifa Total Vig: Marzo 01, 2022
A225: FP
A226: =IF(#REF!="ANUAL",1,IF(#REF!="SEMESTRAL",2,IF(#REF!="TRIMESTRAL",4,IF(#REF!="MENSUAL",12,1)))) -> 
A228: IVA
A229: 0.1
A230: 0.15

Sheet TARIFARIO (hidden)
D7: =+COTIZACION!D7 -> NUEVA | K7: REGION | L7: =+COTIZACION!D14 -> 5
C9: COBERTURAS OPCIONALES
C10: Suma Asegurada para Parto y Cesárea | F10: =IF(COTIZACION!D11>50000,"No incluido",IF(COTIZACION!D16="si",COTIZACION!D17,"$20,000 Cobertura Básica")) -> $20,000 Cobertura Básica | H10: Cobertura Total en el Extranjero | K10: =IF(COTIZACION!D20="SI","Incluido"&" con Zona "&COTIZACION!D22,"No Incluido") -> No Incluido
C11: Eliminación de Deducible por Accidente | F11: =IF(COTIZACION!D11>50000,"No incluido",IF(COTIZACION!D15="SI","Incluido","No Incluido")) -> No Incluido | H11: Cobertura de Indemnización por Enfermedad Grave | K11: =IF(AND(COTIZACION!D19<>"NO",COTIZACION!E19=""),COTIZACION!D19,"No Incluido") -> No Incluido
C12: Emergencia en el Extranjero | F12: =IF(COTIZACION!D21="SI","Incluido","No Incluido") -> No Incluido
B15: SUMA ASEGURADA: | D15: =TITULAR!E5 -> 100000000 | F15: SUMA ASEGURADA: | H15: =CONYUGE!E5 -> 100000000 | J15: SUMA ASEGURADA: | L15: =DEPENDIENTE!E5 -> 100000000
B16: DEDUCIBLE: | D16: =TITULAR!E6 -> 10000 | F16: DEDUCIBLE: | H16: =CONYUGE!E6 -> 10000 | J16: DEDUCIBLE: | L16: =DEPENDIENTE!E6 -> 10000
B17: COASEGURO: | D17: =TITULAR!E8 -> 0.1 | F17: COASEGURO: | H17: =CONYUGE!E7 -> 0.1 | J17: COASEGURO: | L17: =DEPENDIENTE!E7 -> 0.1
G19: PRIMA TOTAL CONYUGE
B21: EDAD | C21: HOMBRE | D21: MUJER | F21: EDAD | G21: HOMBRE | H21: MUJER | J21: EDAD | K21: HOMBRE | L21: MUJER
B22: 18 | C22: =+TITULAR!J45 -> 21923.3968 | D22: =+TITULAR!K45 -> 23776.75288 | F22: 18 | G22: =+CONYUGE!J39 -> 20995.3968 | H22: =+CONYUGE!K39 -> 22848.75288 | J22: 0 - 5 | K22: =+DEPENDIENTE!J26 -> 21456.5548 | L22: =+DEPENDIENTE!K26 -> 21468.5724
B23: =+B22+1 -> 19 | C23: =+TITULAR!J46 -> 22564.0068 | D23: =+TITULAR!K46 -> 24030.44488 | F23: =+F22+1 -> 19 | G23: =+CONYUGE!J40 -> 21636.0068 | H23: =+CONYUGE!K40 -> 23102.44488 | J23: 6 | K23: =+DEPENDIENTE!J27 -> 21456.5548 | L23: =+DEPENDIENTE!K27 -> 21468.5724
B24: =+B23+1 -> 20 | C24: =+TITULAR!J47 -> 23156.0708 | D24: =+TITULAR!K47 -> 26809.23648 | F24: =+F23+1 -> 20 | G24: =+CONYUGE!J41 -> 22228.0708 | H24: =+CONYUGE!K41 -> 25881.23648 | J24: =+J23+1 -> 7 | K24: =+DEPENDIENTE!J28 -> 21456.5548 | L24: =+DEPENDIENTE!K28 -> 21468.5724
B25: 21 | C25: =+TITULAR!J48 -> 24213.8168 | D25: =+TITULAR!K48 -> 32773.37648 | F25: 21 | G25: =+CONYUGE!J42 -> 23285.8168 | H25: =+CONYUGE!K42 -> 31845.37648 | J25: =+J24+1 -> 8 | K25: =+DEPENDIENTE!J29 -> 21456.5548 | L25: =+DEPENDIENTE!K29 -> 21468.5724
B26: 22 | C26: =+TITULAR!J49 -> 25162.9636 | D26: =+TITULAR!K49 -> 34032.98568 | F26: 22 | G26: =+CONYUGE!J43 -> 24234.9636 | H26: =+CONYUGE!K43 -> 33104.98568 | J26: 9 | K26: =+DEPENDIENTE!J30 -> 21456.5548 | L26: =+DEPENDIENTE!K30 -> 21468.5724
B27: 23 | C27: =+TITULAR!J50 -> 26622.6496 | D27: =+TITULAR!K50 -> 35340.82768 | F27: 23 | G27: =+CONYUGE!J44 -> 25694.6496 | H27: =+CONYUGE!K44 -> 34412.82768 | J27: 10 | K27: =+DEPENDIENTE!J31 -> 21456.5548 | L27: =+DEPENDIENTE!K31 -> 21468.5724
B28: 24 | C28: =+TITULAR!J51 -> 27602.8148 | D28: =+TITULAR!K51 -> 36704.72088 | F28: 24 | G28: =+CONYUGE!J45 -> 26674.8148 | H28: =+CONYUGE!K45 -> 35776.72088 | J28: 11 | K28: =+DEPENDIENTE!J32 -> 21344.8236 | L28: =+DEPENDIENTE!K32 -> 21170.2436
B29: 25 | C29: =+TITULAR!J52 -> 28572.5052 | D29: =+TITULAR!K52 -> 38111.48768 | F29: 25 | G29: =+CONYUGE!J46 -> 27644.5052 | H29: =+CONYUGE!K46 -> 37183.48768 | J29: 12 | K29: =+DEPENDIENTE!J33 -> 21256.2344 | L29: =+DEPENDIENTE!K33 -> 21430.6172
B30: 26 | C30: =+TITULAR!J53 -> 30305.0232 | D30: =+TITULAR!K53 -> 39616.13528 | F30: 26 | G30: =+CONYUGE!J47 -> 29377.0232 | H30: =+CONYUGE!K47 -> 38688.13528 | J30: 13 | K30: =+DEPENDIENTE!J34 -> 21124.1568 | L30: =+DEPENDIENTE!K34 -> 21303.5972
B31: 27 | C31: =+TITULAR!J54 -> 31505.4724 | D31: =+TITULAR!K54 -> 41136.44288 | F31: 27 | G31: =+CONYUGE!J48 -> 30577.4724 | H31: =+CONYUGE!K48 -> 40208.44288 | J31: 14 | K31: =+DEPENDIENTE!J35 -> 20630.8436 | L31: =+DEPENDIENTE!K35 -> 20913.0716
B32: 28 | C32: =+TITULAR!J55 -> 33194.3628 | D32: =+TITULAR!K55 -> 42772.30968 | F32: 28 | G32: =+CONYUGE!J49 -> 32266.3628 | H32: =+CONYUGE!K49 -> 41844.30968 | J32: 15 | K32: =+DEPENDIENTE!J36 -> 20706.2088 | L32: =+DEPENDIENTE!K36 -> 20608.1424
B33: 29 | C33: =+TITULAR!J56 -> 34762.706 | D33: =+TITULAR!K56 -> 44436.71248 | F33: 29 | G33: =+CONYUGE!J50 -> 33834.706 | H33: =+CONYUGE!K50 -> 43508.71248 | J33: 16 | K33: =+DEPENDIENTE!J37 -> 20358.7192 | L33: =+DEPENDIENTE!K37 -> 19907.166
B34: 30 | C34: =+TITULAR!J57 -> 36234.3284 | D34: =+TITULAR!K57 -> 46227.06808 | F34: 30 | G34: =+CONYUGE!J51 -> 35306.3284 | H34: =+CONYUGE!K51 -> 45299.06808 | J34: 17 | K34: =+DEPENDIENTE!J38 -> 20459.0476 | L34: =+DEPENDIENTE!K38 -> 20188.9532
B35: 31 | C35: =+TITULAR!J58 -> 37612.6288 | D35: =+TITULAR!K58 -> 48074.79728 | F35: 31 | G35: =+CONYUGE!J52 -> 36684.6288 | H35: =+CONYUGE!K52 -> 47146.79728 | J35: 18 | K35: =+DEPENDIENTE!J39 -> 20995.3968 | L35: =+DEPENDIENTE!K39 -> 22848.75288
B36: 32 | C36: =+TITULAR!J59 -> 39733.132 | D36: =+TITULAR!K59 -> 49980.30608 | F36: 32 | G36: =+CONYUGE!J53 -> 38805.132 | H36: =+CONYUGE!K53 -> 49052.30608 | J36: 19 | K36: =+DEPENDIENTE!J40 -> 21636.0068 | L36: =+DEPENDIENTE!K40 -> 23102.44488
B37: 33 | C37: =+TITULAR!J60 -> 41061.1812 | D37: =+TITULAR!K60 -> 51560.38848 | F37: 33 | G37: =+CONYUGE!J54 -> 40133.1812 | H37: =+CONYUGE!K54 -> 50632.38848 | J37: 20 | K37: =+DEPENDIENTE!J41 -> 22228.0708 | L37: =+DEPENDIENTE!K41 -> 25881.23648
B38: 34 | C38: =+TITULAR!J61 -> 43231.46 | D38: =+TITULAR!K61 -> 53635.40808 | F38: 34 | G38: =+CONYUGE!J55 -> 42303.46 | H38: =+CONYUGE!K55 -> 52707.40808 | J38: 21 | K38: =+DEPENDIENTE!J42 -> 23285.8168 | L38: =+DEPENDIENTE!K42 -> 31845.37648
B39: 35 | C39: =+TITULAR!J62 -> 45489.6552 | D39: =+TITULAR!K62 -> 55817.80888 | F39: 35 | G39: =+CONYUGE!J56 -> 44561.6552 | H39: =+CONYUGE!K56 -> 54889.80888 | J39: 22 | K39: =+DEPENDIENTE!J43 -> 24234.9636 | L39: =+DEPENDIENTE!K43 -> 33104.98568
B40: 36 | C40: =+TITULAR!J63 -> 47338.5676 | D40: =+TITULAR!K63 -> 58073.80008 | F40: 36 | G40: =+CONYUGE!J57 -> 46410.5676 | H40: =+CONYUGE!K57 -> 57145.80008 | J40: 23 | K40: =+DEPENDIENTE!J44 -> 25694.6496 | L40: =+DEPENDIENTE!K44 -> 34412.82768
B41: 37 | C41: =+TITULAR!J64 -> 49772.7464 | D41: =+TITULAR!K64 -> 60507.78168 | F41: 37 | G41: =+CONYUGE!J58 -> 48844.7464 | H41: =+CONYUGE!K58 -> 59579.78168 | J41: 24 | K41: =+DEPENDIENTE!J45 -> 26674.8148 | L41: =+DEPENDIENTE!K45 -> 35776.72088
B42: 38 | C42: =+TITULAR!J65 -> 52342.8076 | D42: =+TITULAR!K65 -> 62952.15688 | F42: 38 | G42: =+CONYUGE!J59 -> 51414.8076 | H42: =+CONYUGE!K59 -> 62024.15688
B43: 39 | C43: =+TITULAR!J66 -> 55090.8592 | D43: =+TITULAR!K66 -> 65536.23088 | F43: 39 | G43: =+CONYUGE!J60 -> 54162.8592 | H43: =+CONYUGE!K60 -> 64608.23088
B44: 40 | C44: =+TITULAR!J67 -> 56937.382 | D44: =+TITULAR!K67 -> 68223.03448 | F44: 40 | G44: =+CONYUGE!J61 -> 56009.382 | H44: =+CONYUGE!K61 -> 67295.03448
B45: 41 | C45: =+TITULAR!J68 -> 58960.7584 | D45: =+TITULAR!K68 -> 71042.99448 | F45: 41 | G45: =+CONYUGE!J62 -> 58032.7584 | H45: =+CONYUGE!K62 -> 70114.99448
B46: 42 | C46: =+TITULAR!J69 -> 61167.728 | D46: =+TITULAR!K69 -> 73984.69648 | F46: 42 | G46: =+CONYUGE!J63 -> 60239.728 | H46: =+CONYUGE!K63 -> 73056.69648
B47: 43 | C47: =+TITULAR!J70 -> 63555.7968 | D47: =+TITULAR!K70 -> 77052.29328 | F47: 43 | G47: =+CONYUGE!J64 -> 62627.7968 | H47: =+CONYUGE!K64 -> 76124.29328
B48: 44 | C48: =+TITULAR!J71 -> 66197.0472 | D48: =+TITULAR!K71 -> 80592.56688 | F48: 44 | G48: =+CONYUGE!J65 -> 65269.0472 | H48: =+CONYUGE!K65 -> 79664.56688
B49: 45 | C49: =+TITULAR!J72 -> 69069.9032 | D49: =+TITULAR!K72 -> 84090.16408 | F49: 45 | G49: =+CONYUGE!J66 -> 68141.9032 | H49: =+CONYUGE!K66 -> 83162.16408
B50: 46 | C50: =+TITULAR!J73 -> 72244.0924 | D50: =+TITULAR!K73 -> 87080.09888 | F50: 46 | G50: =+CONYUGE!J67 -> 71316.0924 | H50: =+CONYUGE!K67 -> 86152.09888
B51: 47 | C51: =+TITULAR!J74 -> 75710.1376 | D51: =+TITULAR!K74 -> 91211.97248 | F51: 47 | G51: =+CONYUGE!J68 -> 74782.1376 | H51: =+CONYUGE!K68 -> 90283.97248
B52: 48 | C52: =+TITULAR!J75 -> 79510.1932 | D52: =+TITULAR!K75 -> 94670.29208 | F52: 48 | G52: =+CONYUGE!J69 -> 78582.1932 | H52: =+CONYUGE!K69 -> 93742.29208
B53: 49 | C53: =+TITULAR!J76 -> 83669.6864 | D53: =+TITULAR!K76 -> 98404.08848 | F53: 49 | G53: =+CONYUGE!J70 -> 82741.6864 | H53: =+CONYUGE!K70 -> 97476.08848
B54: 50 | C54: =+TITULAR!J77 -> 88203.6856 | D54: =+TITULAR!K77 -> 102352.7865 | F54: 50 | G54: =+CONYUGE!J71 -> 87275.6856 | H54: =+CONYUGE!K71 -> 101424.7865
B55: 51 | C55: =+TITULAR!J78 -> 93084.5712 | D55: =+TITULAR!K78 -> 106610.9493 | F55: 51 | G55: =+CONYUGE!J72 -> 92156.5712 | H55: =+CONYUGE!K72 -> 105682.9493
B56: 52 | C56: =+TITULAR!J79 -> 98407.6836 | D56: =+TITULAR!K79 -> 111172.0925 | F56: 52 | G56: =+CONYUGE!J73 -> 97479.6836 | H56: =+CONYUGE!K73 -> 110244.0925
B57: 53 | C57: =+TITULAR!J80 -> 104225.8492 | D57: =+TITULAR!K80 -> 116064.7289 | F57: 53 | G57: =+CONYUGE!J74 -> 103297.8492 | H57: =+CONYUGE!K74 -> 115136.7289
B58: 54 | C58: =+TITULAR!J81 -> 110523.3964 | D58: =+TITULAR!K81 -> 121267.4913 | F58: 54 | G58: =+CONYUGE!J75 -> 109595.3964 | H58: =+CONYUGE!K75 -> 120339.4913
B59: 55 | C59: =+TITULAR!J82 -> 117234.3908 | D59: =+TITULAR!K82 -> 123031.6184 | F59: 55 | G59: =+CONYUGE!J76 -> 116306.3908 | H59: =+CONYUGE!K76 -> 122103.6184
B60: 56 | C60: =+TITULAR!J83 -> 124549.5944 | D60: =+TITULAR!K83 -> 130345.4068 | F60: 56 | G60: =+CONYUGE!J77 -> 123621.5944 | H60: =+CONYUGE!K77 -> 129417.4068
B61: 57 | C61: =+TITULAR!J84 -> 132398.2124 | D61: =+TITULAR!K84 -> 135306.9472 | F61: 57 | G61: =+CONYUGE!J78 -> 131470.2124 | H61: =+CONYUGE!K78 -> 134378.9472
B62: 58 | C62: =+TITULAR!J85 -> 138026.7064 | D62: =+TITULAR!K85 -> 140658.6768 | F62: 58 | G62: =+CONYUGE!J79 -> 137098.7064 | H62: =+CONYUGE!K79 -> 139730.6768
B63: 59 | C63: =+TITULAR!J86 -> 146876.764 | D63: =+TITULAR!K86 -> 143033.9508 | F63: 59 | G63: =+CONYUGE!J80 -> 145948.764 | H63: =+CONYUGE!K80 -> 142105.9508
B64: 60 | C64: =+TITULAR!J87 -> 233801.3988 | D64: =+TITULAR!K87 -> 232149.7096 | F64: 60 | G64: =+CONYUGE!J81 -> 232873.3988 | H64: =+CONYUGE!K81 -> 231221.7096
B65: 61 | C65: =+TITULAR!J88 -> 246556.0976 | D65: =+TITULAR!K88 -> 242204.4156 | F65: 61 | G65: =+CONYUGE!J82 -> 245628.0976 | H65: =+CONYUGE!K82 -> 241276.4156
B66: 62 | C66: =+TITULAR!J89 -> 259543.4112 | D66: =+TITULAR!K89 -> 252550.5716 | F66: 62 | G66: =+CONYUGE!J83 -> 258615.4112 | H66: =+CONYUGE!K83 -> 251622.5716
B67: 63 | C67: =+TITULAR!J90 -> 273808.6852 | D67: =+TITULAR!K90 -> 263431.65 | F67: 63 | G67: =+CONYUGE!J84 -> 272880.6852 | H67: =+CONYUGE!K84 -> 262503.65
B68: 64 | C68: =+TITULAR!J91 -> 288190.168 | D68: =+TITULAR!K91 -> 274997.778 | F68: 64 | G68: =+CONYUGE!J85 -> 287262.168 | H68: =+CONYUGE!K85 -> 274069.778
B71: SUMA ASEGURADA: | D71: =+D15 -> 100000000
B72: DEDUCIBLE: | D72: =+D16 -> 10000
B73: COASEGURO: | D73: =+D17 -> 0.1
B77: EDAD | C77: HOMBRE | D77: MUJER
B78: 0 - 5 | C78: =+TITULAR!J32 -> 22384.5548 | D78: =+TITULAR!K32 -> 22396.5724
B79: 6 | C79: =+TITULAR!J33 -> 22384.5548 | D79: =+TITULAR!K33 -> 22396.5724
B80: =+B79+1 -> 7 | C80: =+TITULAR!J34 -> 22384.5548 | D80: =+TITULAR!K34 -> 22396.5724
B81: =+B80+1 -> 8 | C81: =+TITULAR!J35 -> 22384.5548 | D81: =+TITULAR!K35 -> 22396.5724
B82: 9 | C82: =+TITULAR!J36 -> 22384.5548 | D82: =+TITULAR!K36 -> 22396.5724
B83: 10 | C83: =+TITULAR!J37 -> 22384.5548 | D83: =+TITULAR!K37 -> 22396.5724
B84: 11 | C84: =+TITULAR!J38 -> 22272.8236 | D84: =+TITULAR!K38 -> 22098.2436
B85: 12 | C85: =+TITULAR!J39 -> 22184.2344 | D85: =+TITULAR!K39 -> 22358.6172
B86: 13 | C86: =+TITULAR!J40 -> 22052.1568 | D86: =+TITULAR!K40 -> 22231.5972
B87: 14 | C87: =+TITULAR!J41 -> 21558.8436 | D87: =+TITULAR!K41 -> 21841.0716
B88: 15 | C88: =+TITULAR!J42 -> 21634.2088 | D88: =+TITULAR!K42 -> 21536.1424
B89: 16 | C89: =+TITULAR!J43 -> 21286.7192 | D89: =+TITULAR!K43 -> 20835.166
B90: 17 | C90: =+TITULAR!J44 -> 21387.0476 | D90: =+TITULAR!K44 -> 21116.9532
B93: Nota: Esta cotización tiene una validez de 15 días apartir de su fecha de elaboración. La edad limite de aceptación es hasta los 64 años. Incluyen I.V.A. Y derechos de póliza, no incluye recargo por pago fraccionado
B95: =+IMPRESION!B107 -> Tarifa Total Vig: Marzo 01, 2022

Sheet Instrucciones (hidden)
I7: =TODAY() -> 2022-02-03
B10: INSTRUCCIONES
B12: Seguros Banorte elaboró para ti esta herramienta de sencilla utilización de la que . . .
B13: ¡Estamos seguros, te será de gran utilidad!
B17: 1. Seleccione el TIPO DE COTIZACIÓN (Individual o Familiar)
B18: 2. Seleccione la fecha de PRIMER VIGENCIA en Seguros Banorte de la póliza a cotizar
B19: 3. Seleccione la SUMA ASEGURADA deseada
B20: 4. Seleccione el DEDUCIBLE deseado
B21: 5. Seleccione el COASEGURO deseado
B22: 6. Seleccione el ESTADO donde radica el cliente.
B23: (El cotizador le asignará la Región que le corresponda)
B24: 7. Seleccione si desea COBERTURA DE ELIMINACION DE DEDUCIBLE POR ACCIDENTE ("SI", " NO")
B25: 8. Seleccione si desea INCREMENTO EN SUMA ASEGURADA POR PARTO O CESÁREA ("SI", "NO")
B26: 9. Seleccione la SUMA ASEGURADA POR PARTO O CESÁREA
B27: (La base de suma asegurada es de $20,000)
B28: 10. Seleccione si desea COBERTURA DE VISION ("SI", " NO")
B29: 11. Seleccione si desea COBERTURA DE INDEMNIZACION POR ENFERMEDADES GRAVES , la SUMA ASEGURADA
B30: 12. Seleccione si desea COBERTURA TOTAL EN EL EXTRANJERO ("SI", " NO")
B31: 13. Seleccione si desea EMERGENCIA EN EL EXTRANJERO ("SI", " NO")
B33: 14. Si eligió la COBERTURA TOTAL EN EL EXTRANJERO
B34: deberá especificar la ZONA COBERTURA TOTAL EN EL EXTRANJERO a la que pertenece el cliente:
B35: A: Deberá elegir la opción A si reside hasta 20 kms de la franja fronteriza con los Estados Unidos de América
B36: B: Deberá elegir la opción B si reside en alguna de las siguientes ciudades: BAJA CALIFORNIA NORTE,
B37: BAJA CALIFORNIA SUR, SONORA, CHIHUAHUA, COAHUILA, NUEVO LEÓN, CAMPECHE, YUCATÁN,
B38: QUINTANA ROO.
B39: C: Resto del país, excepto ZONA A Y ZONA B
B41: 15. Si desea incrementar la base de honorarios quirúrgicos deberá indicar el porcentaje deseado en INC THQ
B42: 16. Indique el IVA que corresponde a su región (16%)
B43: 17. Llene el NOMBRE, SEXO y EDAD del Titular, Cónyuge y Dependientes (si fuera el caso)
B44: 18. Vaya al FORMATO DE IMPRESIÓN para obtener la COTIZACIÓN
B45: 19. Si desea obtener las Tarifas por Edad, después de haber efectuado una COTIZACIÓN podrá consultarlas en TARIFARIO

Sheet Cotizador

Sheet CAMBIOS (hidden)
A1: CAMBIOS MEDICO TOTAL
A3: HOJA FACTORES (TABLAS DE CALCULO)
A4: Tabla de Deducible
A5: Tabla de Eliminación de Deducible por Accidente
A6: Nueva Tabla de parto y cesárea
A7: Tabla de Enfermedades Graves
A8: Tabla de Tarifas
A9: Se agrega tabla de Base de honorarios
A10: Se modifica tabla de factores por región a quedar 4
A12: HOJA TITULAR DEL COTIZADOR (CALCULO TARIFA)
A13: Modificación de costos cobertura Adicionales (dental, PAQ_ADIC, ASIST_IKE, CVISION)
A14: Se elimina la cobertura de Educasystem (maestro a domicilio)
A15: Se agrega costo por cobertura de parto y cesárea (amarrado a la tabla que se encuentra en factores)
A16: Modificación de costo de Derecho de Póliza a 700 pesos
A18: HOJA COTIZACION (COTIZADOR)
A19: Se deja deducible mínimo en 6,000
A20: se modifica Querétaro a zona 4
A21: se modifican la tabla de estados por zona (sólo hay 4 zonas)
A23: HOJA IMPRESIÓN (formato Cotización y Cuadro de especificaciones) | H23: CUADRO DE ESPECIFICACIONES IMPLICA
A24: Modificación de la cobertura de enfermedades catastróficas | H24: ü Cuadro de especificaciones dentro del botón de “Cuadro de Especificaciones” en el paso 2 del cotizador.
A25: Se elimina de cuadro de coberturas la cobertura de Servicio de Maestro a Domicilio | H25: ü Cuadro de especificaciones dentro de la cotización.
A26: Se MODIFICA en el cuadro de coberturas la Cobertura de Dental para agregar Visión (REVISAR LAS AYUDAS PARA ESPECIFICAR ALCANCES Y EVITAR CONFUSION CON LA OPCIONAL) | H26: ü Cuadro de especificaciones dentro del kit de impresión de la póliza.
A27: Modificación de base de honorarios quirúrgicos y fórmula para calcularlo | H27: ü Cuadro de especificaciones en el botón “Cuadro de Especificaciones” del Tarifario.
A28: Modificación de la leyenda de beneficio por pago directo y una leyenda en NOTAS | H28: ü Cuadro de especificaciones generado dentro del Tarifario.
H29: ü Cuadro de especificaciones dentro de renovaciones Aviso de Renovación de Póliza
A30: MODULOS A IMPACTAR EN ESPACIO
A31: Tarifa de Línea
A32: Tarifa de Empleados
A33: Tarifario
A34: Renovación
A36: CAMBIO EN NUMERO DE REGISTRO
A37: Solicitud
A38: Carátula
A39: Cuadro de Especificaciones
A41: SABE
A42: Aplicar los cambios en la integración
A43: Considerar la nueva cobertura adicional para cobertura de parto y cesárea (adicional 17)
A44: No integrar la cobertura de educasystem (maestro a domicilio)
A46: MODIFICACION EN CARTAS
A47: Cartas de Bienvenida
A48: Carta de Aviso de Renovación
A49: Carta de Renovación
A51: MODIFICACION DE FORMATOS, TAMAÑO DE LETRA Y FORMATOS
A52: Solicitud
A53: carátula
A54: cuadro de especificaciones.
